{"text_format":"1","workbook":"xlsx","n_sheets":4,"sheets":["ГЛАВНЫЙ","Исполнители","Свод","Лист1"],"not_rendered":{"charts":0,"images":1,"macros":1,"external_links":0,"defined_names":2,"comments":0,"pivot_tables":0},"unopened":[],"bounds":{"document_bytes":16777216,"sheet_cells":100000,"rows_first":2000,"rows_last":500,"rows_between":2000,"halvings":0,"cell_chars":16384,"cell_head_chars":4096},"cells_cut":0,"cells_raw":0,"read":"whole","date_system":"1900"}

{"sheet":"ГЛАВНЫЙ","index":0,"n_rows":45,"n_cols":65,"rows_kept":45,"cut":false,"hidden":false,"merged":[[35,12,35,16],[5,36,5,38],[7,14,7,20],[9,1,9,6],[9,12,9,17],[4,56,4,58],[4,49,4,51],[4,45,4,47],[33,1,33,5],[33,45,33,49],[9,45,9,50],[9,56,9,61],[33,56,33,60],[12,54,13,54],[12,46,13,47],[12,51,13,51],[12,52,13,52],[12,53,13,53],[34,45,34,48],[35,45,35,49],[31,45,31,50],[31,34,31,39],[34,34,34,37],[35,34,35,38],[37,1,37,5],[33,12,33,16],[37,12,37,16],[33,23,33,27],[37,23,37,27],[33,34,33,38],[37,34,37,38],[7,25,7,31],[9,23,9,28],[9,34,9,39],[12,34,13,34],[12,35,13,36],[12,37,13,37],[12,38,13,38],[12,39,13,39],[35,1,35,5],[34,1,34,4],[7,1,7,2],[7,3,7,9],[7,12,7,13],[10,23,10,28],[10,34,10,39],[14,34,14,38],[14,39,14,41],[4,60,4,62],[2,57,2,63],[6,61,6,63],[5,58,5,60],[7,58,7,64],[7,45,7,46],[7,56,7,57],[6,28,6,30],[6,39,6,41],[2,24,2,30],[4,23,4,25],[4,27,4,29],[5,25,5,27],[7,23,7,24],[7,34,7,35],[7,36,7,42],[7,47,7,53],[2,35,2,41],[4,34,4,36],[4,38,4,40],[6,50,6,52],[2,46,2,52],[5,47,5,49],[44,1,44,9],[44,12,44,20],[12,28,13,28],[14,45,14,49],[14,50,14,52],[12,57,13,58],[12,56,13,56],[12,45,13,45],[12,23,13,23],[12,24,13,25],[14,56,14,60],[44,56,44,64],[44,45,44,53],[44,23,44,31],[44,34,44,42],[37,45,37,49],[37,56,37,60],[34,12,34,15],[12,64,13,64],[12,63,13,63],[34,56,34,59],[35,56,35,60],[34,23,34,26],[35,23,35,27],[2,2,2,8],[2,13,2,19],[4,1,4,3],[4,5,4,7],[4,12,4,14],[4,16,4,18],[5,3,5,5],[5,14,5,16],[6,6,6,8],[6,17,6,19],[10,45,10,50],[10,56,10,61],[14,1,14,5],[14,6,14,8],[14,12,14,16],[14,17,14,19],[10,1,10,6],[10,12,10,17],[12,1,13,1],[12,2,13,3],[12,4,13,4],[12,5,13,5],[12,6,13,6],[12,7,13,7],[12,8,13,8],[12,9,13,9],[12,12,13,12],[12,13,13,14],[12,15,13,15],[12,16,13,16],[12,17,13,17],[12,41,13,41],[12,30,13,30],[12,31,13,31],[31,1,31,6],[31,12,31,17],[12,42,13,42],[12,48,13,48],[12,26,13,26],[12,27,13,27],[12,29,13,29],[14,61,14,63],[12,49,13,49],[12,50,13,50],[31,56,31,61],[12,18,13,18],[12,19,13,19],[12,20,13,20],[12,62,13,62],[12,61,13,61],[12,60,13,60],[12,59,13,59],[12,40,13,40],[31,23,31,28],[14,23,14,27],[14,28,14,30]]}
[]
[]
[null,"х","Сборочно-монтажный участок",null,null,null,null,null,null,"ОА",null,null,"х",{"$f":"C3","v":"Сборочно-монтажный участок"},null,null,null,null,null,null,"ПЭ",null,null,"х",{"$f":"N3","v":"Сборочно-монтажный участок"},null,null,null,null,null,null,"РР",null,null,"х",{"$f":"Y3","v":"Сборочно-монтажный участок"},null,null,null,null,null,null,"ПУ",null,null,"х",{"$f":"AJ3","v":"Сборочно-монтажный участок"},null,null,null,null,null,null,"Х",null,null,"х",{"$f":"AU3","v":"Сборочно-монтажный участок"},null,null,null,null,null,null,"Д"]
[]
[null,"Наряд на звено №",null,null,null,"на сдельную работу",null,null,"Разряд слесарных работ 3,5",null,null,null,"Наряд на звено №",null,null,null,"на сдельную работу",null,null,"Разряд слесарных работ 3,5",null,null,null,"Наряд на звено №",null,null,null,"на сдельную работу",null,null,"Разряд слесарных работ 3,5",null,null,null,"Наряд на звено №",null,null,null,"на сдельную работу",null,null,"Разряд слесарных работ 3,5",null,null,null,"Наряд на звено №",null,null,null,"на сдельную работу",null,null,"Разряд слесарных работ 3,5",null,null,null,"Наряд на звено №",null,null,null,"на сдельную работу",null,null,"Разряд слесарных работ 3,5"]
[null,null,"от ",null,null,null,null,null,null,null,null,null,null,"от ",null,null,null,null,null,null,null,null,null,null,"от ",null,null,null,null,null,null,null,null,null,null,"от ",null,null,null,null,null,null,null,null,null,null,"от ",null,null,null,null,null,null,null,null,null,null,"от "]
[]
[null,"VIN:",null,null,null,null,null,null,null,null,null,null,"VIN:",null,{"$f":"D8","v":0},null,null,null,null,null,null,null,null,"VIN:",null,{"$f":"O8","v":0},null,null,null,null,null,null,null,null,"VIN:",null,{"$f":"Z8","v":0},null,null,null,null,null,null,null,null,"VIN:",null,{"$f":"AK8","v":0},null,null,null,null,null,null,null,null,"VIN:",null,{"$f":"AV8","v":0}]
[]
[null,"Наименование работ",null,null,null,null,null,"Корл-во рабочих Чр","Норма времени, час.","Кол-во чел./час.",null,null,"Наименование работ",null,null,null,null,null,"Корл-во рабочих Чр","Норма времени, час.","Кол-во чел./час.",null,null,"Наименование работ",null,null,null,null,null,"Корл-во рабочих Чр","Норма времени, час.","Кол-во чел./час.",null,null,"Наименование работ",null,null,null,null,null,"Корл-во рабочих Чр","Норма времени, час.","Кол-во чел./час.",null,null,"Наименование работ",null,null,null,null,null,"Корл-во рабочих Чр","Норма времени, час.","Кол-во чел./час.",null,null,"Наименование работ",null,null,null,null,null,"Корл-во рабочих Чр","Норма времени, час.","Кол-во чел./час."]
[null,"Монтаж осевых агрегатов",null,null,null,null,null,4,5,13,null,null,"Монтаж тормозной системы, пневматики",null,null,null,null,null,4,4,{"$f":"S11*T11","v":16},null,null,"Монтаж разгрузки, тех. ящика, системы рекупирации, компресорной установки, насосы, гидравлику",null,null,null,null,null,8,9,43,null,null,"Монтаж перефирийных устройств (трапы, перила, лестница, крылья, отбойники и т.д.)",null,null,null,null,null,11,6,41,null,null,"Художественное оформление",null,null,null,null,null,2,1,{"$f":"AZ11*BA11","v":2},null,null,"Диагностический стенд, выставление ОА, тормозной расчет",null,null,null,null,null,2,3,{"$f":"BK11*BL11","v":6}]
[null,null,null,null,null,null,null,{"$f":"J24*H24/J11+J16*H16/J11+J17*H17/J11+J18*H18/J11+J19*H19/J11+J20*H20/J11+J21*H21/J11+J22*H22/J11+J23*H23/J11+H25*J25/J11+J26*H26/J11+J27*H27/J11+J28*H28/J11+J29*H29/J11+J30*H30/J11+J31*H31/J11","v":0},null,null,null,null,null,null,null,null,null,null,{"$f":"U24*S24/U11+U16*S16/U11+U17*S17/U11+U18*S18/U11+U19*S19/U11+U20*S20/U11+U21*S21/U11+U22*S22/U11+U23*S23/U11+S25*U25/U11+U26*S26/U11+U27*S27/U11+U28*S28/U11+U29*S29/U11+U30*S30/U11+U31*S31/U11","v":0},null,null,null,null,null,null,null,null,null,null,{"$f":"AF24*AD24/AF11+AF16*AD16/AF11+AF17*AD17/AF11+AF18*AD18/AF11+AF19*AD19/AF11+AF20*AD20/AF11+AF21*AD21/AF11+AF22*AD22/AF11+AF23*AD23/AF11+AD25*AF25/AF11+AF26*AD26/AF11+AF27*AD27/AF11+AF28*AD28/AF11+AF29*AD29/AF11+AF30*AD30/AF11+AF31*AD31/AF11","v":0},null,null,null,null,null,null,null,null,null,null,{"$f":"AQ24*AO24/AQ11+AQ16*AO16/AQ11+AQ17*AO17/AQ11+AQ18*AO18/AQ11+AQ19*AO19/AQ11+AQ20*AO20/AQ11+AQ21*AO21/AQ11+AQ22*AO22/AQ11+AQ23*AO23/AQ11+AO25*AQ25/AQ11+AQ26*AO26/AQ11+AQ27*AO27/AQ11+AQ28*AO28/AQ11+AQ29*AO29/AQ11+AQ30*AO30/AQ11+AQ31*AO31/AQ11","v":0},null,null,null,null,null,null,null,null,null,null,{"$f":"BB24*AZ24/BB11+BB16*AZ16/BB11+BB17*AZ17/BB11+BB18*AZ18/BB11+BB19*AZ19/BB11+BB20*AZ20/BB11+BB21*AZ21/BB11+BB22*AZ22/BB11+BB23*AZ23/BB11+AZ25*BB25/BB11+BB26*AZ26/BB11+BB27*AZ27/BB11+BB28*AZ28/BB11+BB29*AZ29/BB11+BB30*AZ30/BB11+BB31*AZ31/BB11","v":0},null,null,null,null,null,null,null,null,null,null,{"$f":"BM24*BK24/BM11+BM16*BK16/BM11+BM17*BK17/BM11+BM18*BK18/BM11+BM19*BK19/BM11+BM20*BK20/BM11+BM21*BK21/BM11+BM22*BK22/BM11+BM23*BK23/BM11+BK25*BM25/BM11+BM26*BK26/BM11+BM27*BK27/BM11+BM28*BK28/BM11+BM29*BK29/BM11+BM30*BK30/BM11+BM31*BK31/BM11","v":0},{"$f":"#REF!*#REF!/#REF!+#REF!*#REF!/#REF!+#REF!*#REF!/#REF!+#REF!*#REF!/#REF!+#REF!*#REF!/#REF!+#REF!*#REF!/#REF!+#REF!*#REF!/#REF!","v":{"$error":"#REF!"}},{"$f":"#REF!*#REF!/#REF!+#REF!*#REF!/#REF!+#REF!*#REF!/#REF!+#REF!*#REF!/#REF!","v":{"$error":"#REF!"}}]
[null,"№","ФИО",null,"Должность","Таб. №","Расценка работ","Кол-во часов","Сумма, руб.","КТУ",null,null,"№","ФИО",null,"Должность","Таб. №","Расценка работ","Кол-во часов","Сумма, руб.","КТУ",null,null,"№","ФИО",null,"Должность","Таб. №","Расценка работ","Кол-во часов","Сумма, руб.","КТУ",null,null,"№","ФИО",null,"Должность","Таб. №","Расценка работ","Кол-во часов","Сумма, руб.","КТУ",null,null,"№","ФИО",null,"Должность","Таб. №","Расценка работ","Кол-во часов","Сумма, руб.","КТУ",null,null,"№","ФИО",null,"Должность","Таб. №","Расценка работ","Кол-во часов","Сумма, руб.","КТУ"]
[]
[null,"Слесарь",null,null,null,null,"Стоимость н/часа слесаря",null,null,375,null,null,"Слесарь",null,null,null,null,"Стоимость н/часа слесаря",null,null,375,null,null,"Слесаря",null,null,null,null,"Стоимость н/часа слесаря",null,null,375,null,null,"Слесарь",null,null,null,null,"Стоимость н/часа слесаря",null,null,375,null,null,"Художник",null,null,null,null,"Стоимость н/часа художника",null,null,375,null,null,"Диагност ",null,null,null,null,"Стоимость н/часа слесаря",null,null,455]
[null,1,{"$f":"IF(ISNA(VLOOKUP(F16,Исполнители!$C$4:$F$1119,2,FALSE)),\"\",VLOOKUP(F16,Исполнители!$C$4:$F$1119,2,FALSE))","v":""},null,{"$f":"IF(ISNA(VLOOKUP(F16,Исполнители!$C$4:$F$1119,3,FALSE)),\"\",VLOOKUP(F16,Исполнители!$C$4:$F$1119,3,FALSE))","v":""},null,{"$f":"IF(ISNA(VLOOKUP(F16,Исполнители!$C$4:$F$1119,4,FALSE)),\"\",VLOOKUP(F16,Исполнители!$C$4:$F$1119,4,FALSE))","v":""},null,{"$f":"J16*H16/$J$11*$I$32/$H$12","v":{"$error":"#DIV/0!"}},{"$f":"IF(H16=\"\",,5)","v":0},null,null,1,{"$f":"IF(ISNA(VLOOKUP(Q16,Исполнители!$C$4:$F$1119,2,FALSE)),\"\",VLOOKUP(Q16,Исполнители!$C$4:$F$1119,2,FALSE))","v":""},null,{"$f":"IF(ISNA(VLOOKUP(Q16,Исполнители!$C$4:$F$1119,3,FALSE)),\"\",VLOOKUP(Q16,Исполнители!$C$4:$F$1119,3,FALSE))","v":""},null,{"$f":"IF(ISNA(VLOOKUP(Q16,Исполнители!$C$4:$F$1119,4,FALSE)),\"\",VLOOKUP(Q16,Исполнители!$C$4:$F$1119,4,FALSE))","v":""},null,{"$f":"U16*S16/U11*T32/S12","v":{"$error":"#DIV/0!"}},{"$f":"IF(S16=\"\",,5)","v":0},null,null,1,{"$f":"IF(ISNA(VLOOKUP(AB16,Исполнители!$C$4:$F$1119,2,FALSE)),\"\",VLOOKUP(AB16,Исполнители!$C$4:$F$1119,2,FALSE))","v":""},null,{"$f":"IF(ISNA(VLOOKUP(AB16,Исполнители!$C$4:$F$1119,3,FALSE)),\"\",VLOOKUP(AB16,Исполнители!$C$4:$F$1119,3,FALSE))","v":""},null,{"$f":"IF(ISNA(VLOOKUP(AB16,Исполнители!$C$4:$F$1119,4,FALSE)),\"\",VLOOKUP(AB16,Исполнители!$C$4:$F$1119,4,FALSE))","v":""},null,{"$f":"AF16*AD16/$AF$11*$AE$32/$AD$12","v":{"$error":"#DIV/0!"}},{"$f":"IF(AD16=\"\",,5)","v":0},null,null,1,{"$f":"IF(ISNA(VLOOKUP(AM16,Исполнители!$C$4:$F$1119,2,FALSE)),\"\",VLOOKUP(AM16,Исполнители!$C$4:$F$1119,2,FALSE))","v":""},null,{"$f":"IF(ISNA(VLOOKUP(AM16,Исполнители!$C$4:$F$1119,3,FALSE)),\"\",VLOOKUP(AM16,Исполнители!$C$4:$F$1119,3,FALSE))","v":""},null,{"$f":"IF(ISNA(VLOOKUP(AM16,Исполнители!$C$4:$F$1119,4,FALSE)),\"\",VLOOKUP(AM16,Исполнители!$C$4:$F$1119,4,FALSE))","v":""},null,{"$f":"AQ16*AO16/AQ11*AP32/AO12","v":{"$error":"#DIV/0!"}},{"$f":"IF(AO16=\"\",,5)","v":0},null,null,1,{"$f":"IF(ISNA(VLOOKUP(AX16,Исполнители!$C$4:$F$1119,2,FALSE)),\"\",VLOOKUP(AX16,Исполнители!$C$4:$F$1119,2,FALSE))","v":""},null,{"$f":"IF(ISNA(VLOOKUP(AX16,Исполнители!$C$4:$F$1119,3,FALSE)),\"\",VLOOKUP(AX16,Исполнители!$C$4:$F$1119,3,FALSE))","v":""},null,{"$f":"IF(ISNA(VLOOKUP(AX16,Исполнители!$C$4:$F$1119,4,FALSE)),\"\",VLOOKUP(AX16,Исполнители!$C$4:$F$1119,4,FALSE))","v":""},null,{"$f":"BB16*AZ16/$BB$11*$BA$32/$AZ$12","v":{"$error":"#DIV/0!"}},{"$f":"IF(AZ16=\"\",,5)","v":0},null,null,1,{"$f":"IF(ISNA(VLOOKUP(BI16,Исполнители!$C$4:$F$1119,2,FALSE)),\"\",VLOOKUP(BI16,Исполнители!$C$4:$F$1119,2,FALSE))","v":""},null,{"$f":"IF(ISNA(VLOOKUP(BI16,Исполнители!$C$4:$F$1119,3,FALSE)),\"\",VLOOKUP(BI16,Исполнители!$C$4:$F$1119,3,FALSE))","v":""},null,{"$f":"IF(ISNA(VLOOKUP(BI16,Исполнители!$C$4:$F$1119,4,FALSE)),\"\",VLOOKUP(BI16,Исполнители!$C$4:$F$1119,4,FALSE))","v":""},null,{"$f":"BM16*BK16/$BM$11*$BL$32/$BK$12","v":{"$error":"#DIV/0!"}},{"$f":"IF(BK16=\"\",,5)","v":0}]
[null,2,{"$f":"IF(ISNA(VLOOKUP(F17,Исполнители!$C$4:$F$1119,2,FALSE)),\"\",VLOOKUP(F17,Исполнители!$C$4:$F$1119,2,FALSE))","v":""},null,{"$f":"IF(ISNA(VLOOKUP(F17,Исполнители!$C$4:$F$1119,3,FALSE)),\"\",VLOOKUP(F17,Исполнители!$C$4:$F$1119,3,FALSE))","v":""},null,{"$f":"IF(ISNA(VLOOKUP(F17,Исполнители!$C$4:$F$1119,4,FALSE)),\"\",VLOOKUP(F17,Исполнители!$C$4:$F$1119,4,FALSE))","v":""},null,{"$f":"J17*H17/$J$11*$I$32/$H$12","v":{"$error":"#DIV/0!"}},{"$f":"IF(H17=\"\",,5)","v":0},null,null,2,{"$f":"IF(ISNA(VLOOKUP(Q17,Исполнители!$C$4:$F$1119,2,FALSE)),\"\",VLOOKUP(Q17,Исполнители!$C$4:$F$1119,2,FALSE))","v":""},null,{"$f":"IF(ISNA(VLOOKUP(Q17,Исполнители!$C$4:$F$1119,3,FALSE)),\"\",VLOOKUP(Q17,Исполнители!$C$4:$F$1119,3,FALSE))","v":""},null,{"$f":"IF(ISNA(VLOOKUP(Q17,Исполнители!$C$4:$F$1119,4,FALSE)),\"\",VLOOKUP(Q17,Исполнители!$C$4:$F$1119,4,FALSE))","v":""},null,{"$f":"U17*S17/$U$11*$T$32/$S$12","v":{"$error":"#DIV/0!"}},{"$f":"IF(S17=\"\",,5)","v":0},null,null,2,{"$f":"IF(ISNA(VLOOKUP(AB17,Исполнители!$C$4:$F$1119,2,FALSE)),\"\",VLOOKUP(AB17,Исполнители!$C$4:$F$1119,2,FALSE))","v":""},null,{"$f":"IF(ISNA(VLOOKUP(AB17,Исполнители!$C$4:$F$1119,3,FALSE)),\"\",VLOOKUP(AB17,Исполнители!$C$4:$F$1119,3,FALSE))","v":""},null,{"$f":"IF(ISNA(VLOOKUP(AB17,Исполнители!$C$4:$F$1119,4,FALSE)),\"\",VLOOKUP(AB17,Исполнители!$C$4:$F$1119,4,FALSE))","v":""},null,{"$f":"AF17*AD17/$AF$11*$AE$32/$AD$12","v":{"$error":"#DIV/0!"}},{"$f":"IF(AD17=\"\",,5)","v":0},null,null,2,{"$f":"IF(ISNA(VLOOKUP(AM17,Исполнители!$C$4:$F$1119,2,FALSE)),\"\",VLOOKUP(AM17,Исполнители!$C$4:$F$1119,2,FALSE))","v":""},null,{"$f":"IF(ISNA(VLOOKUP(AM17,Исполнители!$C$4:$F$1119,3,FALSE)),\"\",VLOOKUP(AM17,Исполнители!$C$4:$F$1119,3,FALSE))","v":""},null,{"$f":"IF(ISNA(VLOOKUP(AM17,Исполнители!$C$4:$F$1119,4,FALSE)),\"\",VLOOKUP(AM17,Исполнители!$C$4:$F$1119,4,FALSE))","v":""},null,{"$f":"AQ17*AO17/$AQ$11*$AP$32/$AO$12","v":{"$error":"#DIV/0!"}},{"$f":"IF(AO17=\"\",,5)","v":0},null,null,2,{"$f":"IF(ISNA(VLOOKUP(AX17,Исполнители!$C$4:$F$1119,2,FALSE)),\"\",VLOOKUP(AX17,Исполнители!$C$4:$F$1119,2,FALSE))","v":""},null,{"$f":"IF(ISNA(VLOOKUP(AX17,Исполнители!$C$4:$F$1119,3,FALSE)),\"\",VLOOKUP(AX17,Исполнители!$C$4:$F$1119,3,FALSE))","v":""},null,{"$f":"IF(ISNA(VLOOKUP(AX17,Исполнители!$C$4:$F$1119,4,FALSE)),\"\",VLOOKUP(AX17,Исполнители!$C$4:$F$1119,4,FALSE))","v":""},null,{"$error":"#DIV/0!"},{"$f":"IF(AZ17=\"\",,5)","v":0},null,null,2,{"$f":"IF(ISNA(VLOOKUP(BI17,Исполнители!$C$4:$F$1119,2,FALSE)),\"\",VLOOKUP(BI17,Исполнители!$C$4:$F$1119,2,FALSE))","v":""},null,{"$f":"IF(ISNA(VLOOKUP(BI17,Исполнители!$C$4:$F$1119,3,FALSE)),\"\",VLOOKUP(BI17,Исполнители!$C$4:$F$1119,3,FALSE))","v":""},null,{"$f":"IF(ISNA(VLOOKUP(BI17,Исполнители!$C$4:$F$1119,4,FALSE)),\"\",VLOOKUP(BI17,Исполнители!$C$4:$F$1119,4,FALSE))","v":""},null,{"$error":"#DIV/0!"},{"$f":"IF(BK17=\"\",,5)","v":0}]
[null,3,{"$f":"IF(ISNA(VLOOKUP(F18,Исполнители!$C$4:$F$1119,2,FALSE)),\"\",VLOOKUP(F18,Исполнители!$C$4:$F$1119,2,FALSE))","v":""},null,{"$f":"IF(ISNA(VLOOKUP(F18,Исполнители!$C$4:$F$1119,3,FALSE)),\"\",VLOOKUP(F18,Исполнители!$C$4:$F$1119,3,FALSE))","v":""},null,{"$f":"IF(ISNA(VLOOKUP(F18,Исполнители!$C$4:$F$1119,4,FALSE)),\"\",VLOOKUP(F18,Исполнители!$C$4:$F$1119,4,FALSE))","v":""},null,{"$error":"#DIV/0!"},0,null,null,3,{"$f":"IF(ISNA(VLOOKUP(Q18,Исполнители!$C$4:$F$1119,2,FALSE)),\"\",VLOOKUP(Q18,Исполнители!$C$4:$F$1119,2,FALSE))","v":""},null,{"$f":"IF(ISNA(VLOOKUP(Q18,Исполнители!$C$4:$F$1119,3,FALSE)),\"\",VLOOKUP(Q18,Исполнители!$C$4:$F$1119,3,FALSE))","v":""},null,{"$f":"IF(ISNA(VLOOKUP(Q18,Исполнители!$C$4:$F$1119,4,FALSE)),\"\",VLOOKUP(Q18,Исполнители!$C$4:$F$1119,4,FALSE))","v":""},null,{"$error":"#DIV/0!"},0,null,null,3,{"$f":"IF(ISNA(VLOOKUP(AB18,Исполнители!$C$4:$F$1119,2,FALSE)),\"\",VLOOKUP(AB18,Исполнители!$C$4:$F$1119,2,FALSE))","v":""},null,{"$f":"IF(ISNA(VLOOKUP(AB18,Исполнители!$C$4:$F$1119,3,FALSE)),\"\",VLOOKUP(AB18,Исполнители!$C$4:$F$1119,3,FALSE))","v":""},null,{"$f":"IF(ISNA(VLOOKUP(AB18,Исполнители!$C$4:$F$1119,4,FALSE)),\"\",VLOOKUP(AB18,Исполнители!$C$4:$F$1119,4,FALSE))","v":""},null,{"$error":"#DIV/0!"},0,null,null,3,{"$f":"IF(ISNA(VLOOKUP(AM18,Исполнители!$C$4:$F$1119,2,FALSE)),\"\",VLOOKUP(AM18,Исполнители!$C$4:$F$1119,2,FALSE))","v":""},null,{"$f":"IF(ISNA(VLOOKUP(AM18,Исполнители!$C$4:$F$1119,3,FALSE)),\"\",VLOOKUP(AM18,Исполнители!$C$4:$F$1119,3,FALSE))","v":""},null,{"$f":"IF(ISNA(VLOOKUP(AM18,Исполнители!$C$4:$F$1119,4,FALSE)),\"\",VLOOKUP(AM18,Исполнители!$C$4:$F$1119,4,FALSE))","v":""},null,{"$error":"#DIV/0!"},0,null,null,3,{"$f":"IF(ISNA(VLOOKUP(AX18,Исполнители!$C$4:$F$1119,2,FALSE)),\"\",VLOOKUP(AX18,Исполнители!$C$4:$F$1119,2,FALSE))","v":""},null,{"$f":"IF(ISNA(VLOOKUP(AX18,Исполнители!$C$4:$F$1119,3,FALSE)),\"\",VLOOKUP(AX18,Исполнители!$C$4:$F$1119,3,FALSE))","v":""},null,{"$f":"IF(ISNA(VLOOKUP(AX18,Исполнители!$C$4:$F$1119,4,FALSE)),\"\",VLOOKUP(AX18,Исполнители!$C$4:$F$1119,4,FALSE))","v":""},null,{"$error":"#DIV/0!"},0,null,null,3,{"$f":"IF(ISNA(VLOOKUP(BI18,Исполнители!$C$4:$F$1119,2,FALSE)),\"\",VLOOKUP(BI18,Исполнители!$C$4:$F$1119,2,FALSE))","v":""},null,{"$f":"IF(ISNA(VLOOKUP(BI18,Исполнители!$C$4:$F$1119,3,FALSE)),\"\",VLOOKUP(BI18,Исполнители!$C$4:$F$1119,3,FALSE))","v":""},null,{"$f":"IF(ISNA(VLOOKUP(BI18,Исполнители!$C$4:$F$1119,4,FALSE)),\"\",VLOOKUP(BI18,Исполнители!$C$4:$F$1119,4,FALSE))","v":""},null,{"$error":"#DIV/0!"},0]
[null,4,{"$f":"IF(ISNA(VLOOKUP(F19,Исполнители!$C$4:$F$1119,2,FALSE)),\"\",VLOOKUP(F19,Исполнители!$C$4:$F$1119,2,FALSE))","v":""},null,{"$f":"IF(ISNA(VLOOKUP(F19,Исполнители!$C$4:$F$1119,3,FALSE)),\"\",VLOOKUP(F19,Исполнители!$C$4:$F$1119,3,FALSE))","v":""},null,{"$f":"IF(ISNA(VLOOKUP(F19,Исполнители!$C$4:$F$1119,4,FALSE)),\"\",VLOOKUP(F19,Исполнители!$C$4:$F$1119,4,FALSE))","v":""},null,{"$error":"#DIV/0!"},0,null,null,4,{"$f":"IF(ISNA(VLOOKUP(Q19,Исполнители!$C$4:$F$1119,2,FALSE)),\"\",VLOOKUP(Q19,Исполнители!$C$4:$F$1119,2,FALSE))","v":""},null,{"$f":"IF(ISNA(VLOOKUP(Q19,Исполнители!$C$4:$F$1119,3,FALSE)),\"\",VLOOKUP(Q19,Исполнители!$C$4:$F$1119,3,FALSE))","v":""},null,{"$f":"IF(ISNA(VLOOKUP(Q19,Исполнители!$C$4:$F$1119,4,FALSE)),\"\",VLOOKUP(Q19,Исполнители!$C$4:$F$1119,4,FALSE))","v":""},null,{"$error":"#DIV/0!"},0,null,null,4,{"$f":"IF(ISNA(VLOOKUP(AB19,Исполнители!$C$4:$F$1119,2,FALSE)),\"\",VLOOKUP(AB19,Исполнители!$C$4:$F$1119,2,FALSE))","v":""},null,{"$f":"IF(ISNA(VLOOKUP(AB19,Исполнители!$C$4:$F$1119,3,FALSE)),\"\",VLOOKUP(AB19,Исполнители!$C$4:$F$1119,3,FALSE))","v":""},null,{"$f":"IF(ISNA(VLOOKUP(AB19,Исполнители!$C$4:$F$1119,4,FALSE)),\"\",VLOOKUP(AB19,Исполнители!$C$4:$F$1119,4,FALSE))","v":""},null,{"$error":"#DIV/0!"},0,null,null,4,{"$f":"IF(ISNA(VLOOKUP(AM19,Исполнители!$C$4:$F$1119,2,FALSE)),\"\",VLOOKUP(AM19,Исполнители!$C$4:$F$1119,2,FALSE))","v":""},null,{"$f":"IF(ISNA(VLOOKUP(AM19,Исполнители!$C$4:$F$1119,3,FALSE)),\"\",VLOOKUP(AM19,Исполнители!$C$4:$F$1119,3,FALSE))","v":""},null,{"$f":"IF(ISNA(VLOOKUP(AM19,Исполнители!$C$4:$F$1119,4,FALSE)),\"\",VLOOKUP(AM19,Исполнители!$C$4:$F$1119,4,FALSE))","v":""},null,{"$error":"#DIV/0!"},0,null,null,4,{"$f":"IF(ISNA(VLOOKUP(AX19,Исполнители!$C$4:$F$1119,2,FALSE)),\"\",VLOOKUP(AX19,Исполнители!$C$4:$F$1119,2,FALSE))","v":""},null,{"$f":"IF(ISNA(VLOOKUP(AX19,Исполнители!$C$4:$F$1119,3,FALSE)),\"\",VLOOKUP(AX19,Исполнители!$C$4:$F$1119,3,FALSE))","v":""},null,{"$f":"IF(ISNA(VLOOKUP(AX19,Исполнители!$C$4:$F$1119,4,FALSE)),\"\",VLOOKUP(AX19,Исполнители!$C$4:$F$1119,4,FALSE))","v":""},null,{"$error":"#DIV/0!"},0,null,null,4,{"$f":"IF(ISNA(VLOOKUP(BI19,Исполнители!$C$4:$F$1119,2,FALSE)),\"\",VLOOKUP(BI19,Исполнители!$C$4:$F$1119,2,FALSE))","v":""},null,{"$f":"IF(ISNA(VLOOKUP(BI19,Исполнители!$C$4:$F$1119,3,FALSE)),\"\",VLOOKUP(BI19,Исполнители!$C$4:$F$1119,3,FALSE))","v":""},null,{"$f":"IF(ISNA(VLOOKUP(BI19,Исполнители!$C$4:$F$1119,4,FALSE)),\"\",VLOOKUP(BI19,Исполнители!$C$4:$F$1119,4,FALSE))","v":""},null,{"$error":"#DIV/0!"},0]
[null,5,{"$f":"IF(ISNA(VLOOKUP(F20,Исполнители!$C$4:$F$1119,2,FALSE)),\"\",VLOOKUP(F20,Исполнители!$C$4:$F$1119,2,FALSE))","v":""},null,{"$f":"IF(ISNA(VLOOKUP(F20,Исполнители!$C$4:$F$1119,3,FALSE)),\"\",VLOOKUP(F20,Исполнители!$C$4:$F$1119,3,FALSE))","v":""},null,{"$f":"IF(ISNA(VLOOKUP(F20,Исполнители!$C$4:$F$1119,4,FALSE)),\"\",VLOOKUP(F20,Исполнители!$C$4:$F$1119,4,FALSE))","v":""},null,{"$error":"#DIV/0!"},0,null,null,5,{"$f":"IF(ISNA(VLOOKUP(Q20,Исполнители!$C$4:$F$1119,2,FALSE)),\"\",VLOOKUP(Q20,Исполнители!$C$4:$F$1119,2,FALSE))","v":""},null,{"$f":"IF(ISNA(VLOOKUP(Q20,Исполнители!$C$4:$F$1119,3,FALSE)),\"\",VLOOKUP(Q20,Исполнители!$C$4:$F$1119,3,FALSE))","v":""},null,{"$f":"IF(ISNA(VLOOKUP(Q20,Исполнители!$C$4:$F$1119,4,FALSE)),\"\",VLOOKUP(Q20,Исполнители!$C$4:$F$1119,4,FALSE))","v":""},null,{"$error":"#DIV/0!"},0,null,null,5,{"$f":"IF(ISNA(VLOOKUP(AB20,Исполнители!$C$4:$F$1119,2,FALSE)),\"\",VLOOKUP(AB20,Исполнители!$C$4:$F$1119,2,FALSE))","v":""},null,{"$f":"IF(ISNA(VLOOKUP(AB20,Исполнители!$C$4:$F$1119,3,FALSE)),\"\",VLOOKUP(AB20,Исполнители!$C$4:$F$1119,3,FALSE))","v":""},null,{"$f":"IF(ISNA(VLOOKUP(AB20,Исполнители!$C$4:$F$1119,4,FALSE)),\"\",VLOOKUP(AB20,Исполнители!$C$4:$F$1119,4,FALSE))","v":""},null,{"$error":"#DIV/0!"},0,null,null,5,{"$f":"IF(ISNA(VLOOKUP(AM20,Исполнители!$C$4:$F$1119,2,FALSE)),\"\",VLOOKUP(AM20,Исполнители!$C$4:$F$1119,2,FALSE))","v":""},null,{"$f":"IF(ISNA(VLOOKUP(AM20,Исполнители!$C$4:$F$1119,3,FALSE)),\"\",VLOOKUP(AM20,Исполнители!$C$4:$F$1119,3,FALSE))","v":""},null,{"$f":"IF(ISNA(VLOOKUP(AM20,Исполнители!$C$4:$F$1119,4,FALSE)),\"\",VLOOKUP(AM20,Исполнители!$C$4:$F$1119,4,FALSE))","v":""},null,{"$error":"#DIV/0!"},0,null,null,5,{"$f":"IF(ISNA(VLOOKUP(AX20,Исполнители!$C$4:$F$1119,2,FALSE)),\"\",VLOOKUP(AX20,Исполнители!$C$4:$F$1119,2,FALSE))","v":""},null,{"$f":"IF(ISNA(VLOOKUP(AX20,Исполнители!$C$4:$F$1119,3,FALSE)),\"\",VLOOKUP(AX20,Исполнители!$C$4:$F$1119,3,FALSE))","v":""},null,{"$f":"IF(ISNA(VLOOKUP(AX20,Исполнители!$C$4:$F$1119,4,FALSE)),\"\",VLOOKUP(AX20,Исполнители!$C$4:$F$1119,4,FALSE))","v":""},null,{"$error":"#DIV/0!"},0,null,null,5,{"$f":"IF(ISNA(VLOOKUP(BI20,Исполнители!$C$4:$F$1119,2,FALSE)),\"\",VLOOKUP(BI20,Исполнители!$C$4:$F$1119,2,FALSE))","v":""},null,{"$f":"IF(ISNA(VLOOKUP(BI20,Исполнители!$C$4:$F$1119,3,FALSE)),\"\",VLOOKUP(BI20,Исполнители!$C$4:$F$1119,3,FALSE))","v":""},null,{"$f":"IF(ISNA(VLOOKUP(BI20,Исполнители!$C$4:$F$1119,4,FALSE)),\"\",VLOOKUP(BI20,Исполнители!$C$4:$F$1119,4,FALSE))","v":""},null,{"$error":"#DIV/0!"},0]
[null,6,{"$f":"IF(ISNA(VLOOKUP(F21,Исполнители!$C$4:$F$1119,2,FALSE)),\"\",VLOOKUP(F21,Исполнители!$C$4:$F$1119,2,FALSE))","v":""},null,{"$f":"IF(ISNA(VLOOKUP(F21,Исполнители!$C$4:$F$1119,3,FALSE)),\"\",VLOOKUP(F21,Исполнители!$C$4:$F$1119,3,FALSE))","v":""},null,{"$f":"IF(ISNA(VLOOKUP(F21,Исполнители!$C$4:$F$1119,4,FALSE)),\"\",VLOOKUP(F21,Исполнители!$C$4:$F$1119,4,FALSE))","v":""},null,{"$error":"#DIV/0!"},0,null,null,6,{"$f":"IF(ISNA(VLOOKUP(Q21,Исполнители!$C$4:$F$1119,2,FALSE)),\"\",VLOOKUP(Q21,Исполнители!$C$4:$F$1119,2,FALSE))","v":""},null,{"$f":"IF(ISNA(VLOOKUP(Q21,Исполнители!$C$4:$F$1119,3,FALSE)),\"\",VLOOKUP(Q21,Исполнители!$C$4:$F$1119,3,FALSE))","v":""},null,{"$f":"IF(ISNA(VLOOKUP(Q21,Исполнители!$C$4:$F$1119,4,FALSE)),\"\",VLOOKUP(Q21,Исполнители!$C$4:$F$1119,4,FALSE))","v":""},null,{"$error":"#DIV/0!"},0,null,null,6,{"$f":"IF(ISNA(VLOOKUP(AB21,Исполнители!$C$4:$F$1119,2,FALSE)),\"\",VLOOKUP(AB21,Исполнители!$C$4:$F$1119,2,FALSE))","v":""},null,{"$f":"IF(ISNA(VLOOKUP(AB21,Исполнители!$C$4:$F$1119,3,FALSE)),\"\",VLOOKUP(AB21,Исполнители!$C$4:$F$1119,3,FALSE))","v":""},null,{"$f":"IF(ISNA(VLOOKUP(AB21,Исполнители!$C$4:$F$1119,4,FALSE)),\"\",VLOOKUP(AB21,Исполнители!$C$4:$F$1119,4,FALSE))","v":""},null,{"$error":"#DIV/0!"},0,null,null,6,{"$f":"IF(ISNA(VLOOKUP(AM21,Исполнители!$C$4:$F$1119,2,FALSE)),\"\",VLOOKUP(AM21,Исполнители!$C$4:$F$1119,2,FALSE))","v":""},null,{"$f":"IF(ISNA(VLOOKUP(AM21,Исполнители!$C$4:$F$1119,3,FALSE)),\"\",VLOOKUP(AM21,Исполнители!$C$4:$F$1119,3,FALSE))","v":""},null,{"$f":"IF(ISNA(VLOOKUP(AM21,Исполнители!$C$4:$F$1119,4,FALSE)),\"\",VLOOKUP(AM21,Исполнители!$C$4:$F$1119,4,FALSE))","v":""},null,{"$error":"#DIV/0!"},0,null,null,6,{"$f":"IF(ISNA(VLOOKUP(AX21,Исполнители!$C$4:$F$1119,2,FALSE)),\"\",VLOOKUP(AX21,Исполнители!$C$4:$F$1119,2,FALSE))","v":""},null,{"$f":"IF(ISNA(VLOOKUP(AX21,Исполнители!$C$4:$F$1119,3,FALSE)),\"\",VLOOKUP(AX21,Исполнители!$C$4:$F$1119,3,FALSE))","v":""},null,{"$f":"IF(ISNA(VLOOKUP(AX21,Исполнители!$C$4:$F$1119,4,FALSE)),\"\",VLOOKUP(AX21,Исполнители!$C$4:$F$1119,4,FALSE))","v":""},null,{"$error":"#DIV/0!"},0,null,null,6,{"$f":"IF(ISNA(VLOOKUP(BI21,Исполнители!$C$4:$F$1119,2,FALSE)),\"\",VLOOKUP(BI21,Исполнители!$C$4:$F$1119,2,FALSE))","v":""},null,{"$f":"IF(ISNA(VLOOKUP(BI21,Исполнители!$C$4:$F$1119,3,FALSE)),\"\",VLOOKUP(BI21,Исполнители!$C$4:$F$1119,3,FALSE))","v":""},null,{"$f":"IF(ISNA(VLOOKUP(BI21,Исполнители!$C$4:$F$1119,4,FALSE)),\"\",VLOOKUP(BI21,Исполнители!$C$4:$F$1119,4,FALSE))","v":""},null,{"$error":"#DIV/0!"},0]
[null,7,{"$f":"IF(ISNA(VLOOKUP(F22,Исполнители!$C$4:$F$1119,2,FALSE)),\"\",VLOOKUP(F22,Исполнители!$C$4:$F$1119,2,FALSE))","v":""},null,{"$f":"IF(ISNA(VLOOKUP(F22,Исполнители!$C$4:$F$1119,3,FALSE)),\"\",VLOOKUP(F22,Исполнители!$C$4:$F$1119,3,FALSE))","v":""},null,{"$f":"IF(ISNA(VLOOKUP(F22,Исполнители!$C$4:$F$1119,4,FALSE)),\"\",VLOOKUP(F22,Исполнители!$C$4:$F$1119,4,FALSE))","v":""},null,{"$error":"#DIV/0!"},0,null,null,7,{"$f":"IF(ISNA(VLOOKUP(Q22,Исполнители!$C$4:$F$1119,2,FALSE)),\"\",VLOOKUP(Q22,Исполнители!$C$4:$F$1119,2,FALSE))","v":""},null,{"$f":"IF(ISNA(VLOOKUP(Q22,Исполнители!$C$4:$F$1119,3,FALSE)),\"\",VLOOKUP(Q22,Исполнители!$C$4:$F$1119,3,FALSE))","v":""},null,{"$f":"IF(ISNA(VLOOKUP(Q22,Исполнители!$C$4:$F$1119,4,FALSE)),\"\",VLOOKUP(Q22,Исполнители!$C$4:$F$1119,4,FALSE))","v":""},null,{"$error":"#DIV/0!"},0,null,null,7,{"$f":"IF(ISNA(VLOOKUP(AB22,Исполнители!$C$4:$F$1119,2,FALSE)),\"\",VLOOKUP(AB22,Исполнители!$C$4:$F$1119,2,FALSE))","v":""},null,{"$f":"IF(ISNA(VLOOKUP(AB22,Исполнители!$C$4:$F$1119,3,FALSE)),\"\",VLOOKUP(AB22,Исполнители!$C$4:$F$1119,3,FALSE))","v":""},null,{"$f":"IF(ISNA(VLOOKUP(AB22,Исполнители!$C$4:$F$1119,4,FALSE)),\"\",VLOOKUP(AB22,Исполнители!$C$4:$F$1119,4,FALSE))","v":""},null,{"$error":"#DIV/0!"},0,null,null,7,{"$f":"IF(ISNA(VLOOKUP(AM22,Исполнители!$C$4:$F$1119,2,FALSE)),\"\",VLOOKUP(AM22,Исполнители!$C$4:$F$1119,2,FALSE))","v":""},null,{"$f":"IF(ISNA(VLOOKUP(AM22,Исполнители!$C$4:$F$1119,3,FALSE)),\"\",VLOOKUP(AM22,Исполнители!$C$4:$F$1119,3,FALSE))","v":""},null,{"$f":"IF(ISNA(VLOOKUP(AM22,Исполнители!$C$4:$F$1119,4,FALSE)),\"\",VLOOKUP(AM22,Исполнители!$C$4:$F$1119,4,FALSE))","v":""},null,{"$error":"#DIV/0!"},0,null,null,7,{"$f":"IF(ISNA(VLOOKUP(AX22,Исполнители!$C$4:$F$1119,2,FALSE)),\"\",VLOOKUP(AX22,Исполнители!$C$4:$F$1119,2,FALSE))","v":""},null,{"$f":"IF(ISNA(VLOOKUP(AX22,Исполнители!$C$4:$F$1119,3,FALSE)),\"\",VLOOKUP(AX22,Исполнители!$C$4:$F$1119,3,FALSE))","v":""},null,{"$f":"IF(ISNA(VLOOKUP(AX22,Исполнители!$C$4:$F$1119,4,FALSE)),\"\",VLOOKUP(AX22,Исполнители!$C$4:$F$1119,4,FALSE))","v":""},null,{"$error":"#DIV/0!"},0,null,null,7,{"$f":"IF(ISNA(VLOOKUP(BI22,Исполнители!$C$4:$F$1119,2,FALSE)),\"\",VLOOKUP(BI22,Исполнители!$C$4:$F$1119,2,FALSE))","v":""},null,{"$f":"IF(ISNA(VLOOKUP(BI22,Исполнители!$C$4:$F$1119,3,FALSE)),\"\",VLOOKUP(BI22,Исполнители!$C$4:$F$1119,3,FALSE))","v":""},null,{"$f":"IF(ISNA(VLOOKUP(BI22,Исполнители!$C$4:$F$1119,4,FALSE)),\"\",VLOOKUP(BI22,Исполнители!$C$4:$F$1119,4,FALSE))","v":""},null,{"$error":"#DIV/0!"},0]
[null,8,{"$f":"IF(ISNA(VLOOKUP(F23,Исполнители!$C$4:$F$1119,2,FALSE)),\"\",VLOOKUP(F23,Исполнители!$C$4:$F$1119,2,FALSE))","v":""},null,{"$f":"IF(ISNA(VLOOKUP(F23,Исполнители!$C$4:$F$1119,3,FALSE)),\"\",VLOOKUP(F23,Исполнители!$C$4:$F$1119,3,FALSE))","v":""},null,{"$f":"IF(ISNA(VLOOKUP(F23,Исполнители!$C$4:$F$1119,4,FALSE)),\"\",VLOOKUP(F23,Исполнители!$C$4:$F$1119,4,FALSE))","v":""},null,{"$error":"#DIV/0!"},0,null,null,8,{"$f":"IF(ISNA(VLOOKUP(Q23,Исполнители!$C$4:$F$1119,2,FALSE)),\"\",VLOOKUP(Q23,Исполнители!$C$4:$F$1119,2,FALSE))","v":""},null,{"$f":"IF(ISNA(VLOOKUP(Q23,Исполнители!$C$4:$F$1119,3,FALSE)),\"\",VLOOKUP(Q23,Исполнители!$C$4:$F$1119,3,FALSE))","v":""},null,{"$f":"IF(ISNA(VLOOKUP(Q23,Исполнители!$C$4:$F$1119,4,FALSE)),\"\",VLOOKUP(Q23,Исполнители!$C$4:$F$1119,4,FALSE))","v":""},null,{"$error":"#DIV/0!"},0,null,null,8,{"$f":"IF(ISNA(VLOOKUP(AB23,Исполнители!$C$4:$F$1119,2,FALSE)),\"\",VLOOKUP(AB23,Исполнители!$C$4:$F$1119,2,FALSE))","v":""},null,{"$f":"IF(ISNA(VLOOKUP(AB23,Исполнители!$C$4:$F$1119,3,FALSE)),\"\",VLOOKUP(AB23,Исполнители!$C$4:$F$1119,3,FALSE))","v":""},null,{"$f":"IF(ISNA(VLOOKUP(AB23,Исполнители!$C$4:$F$1119,4,FALSE)),\"\",VLOOKUP(AB23,Исполнители!$C$4:$F$1119,4,FALSE))","v":""},null,{"$error":"#DIV/0!"},0,null,null,8,{"$f":"IF(ISNA(VLOOKUP(AM23,Исполнители!$C$4:$F$1119,2,FALSE)),\"\",VLOOKUP(AM23,Исполнители!$C$4:$F$1119,2,FALSE))","v":""},null,{"$f":"IF(ISNA(VLOOKUP(AM23,Исполнители!$C$4:$F$1119,3,FALSE)),\"\",VLOOKUP(AM23,Исполнители!$C$4:$F$1119,3,FALSE))","v":""},null,{"$f":"IF(ISNA(VLOOKUP(AM23,Исполнители!$C$4:$F$1119,4,FALSE)),\"\",VLOOKUP(AM23,Исполнители!$C$4:$F$1119,4,FALSE))","v":""},null,{"$error":"#DIV/0!"},0,null,null,8,{"$f":"IF(ISNA(VLOOKUP(AX23,Исполнители!$C$4:$F$1119,2,FALSE)),\"\",VLOOKUP(AX23,Исполнители!$C$4:$F$1119,2,FALSE))","v":""},null,{"$f":"IF(ISNA(VLOOKUP(AX23,Исполнители!$C$4:$F$1119,3,FALSE)),\"\",VLOOKUP(AX23,Исполнители!$C$4:$F$1119,3,FALSE))","v":""},null,{"$f":"IF(ISNA(VLOOKUP(AX23,Исполнители!$C$4:$F$1119,4,FALSE)),\"\",VLOOKUP(AX23,Исполнители!$C$4:$F$1119,4,FALSE))","v":""},null,{"$error":"#DIV/0!"},0,null,null,8,{"$f":"IF(ISNA(VLOOKUP(BI23,Исполнители!$C$4:$F$1119,2,FALSE)),\"\",VLOOKUP(BI23,Исполнители!$C$4:$F$1119,2,FALSE))","v":""},null,{"$f":"IF(ISNA(VLOOKUP(BI23,Исполнители!$C$4:$F$1119,3,FALSE)),\"\",VLOOKUP(BI23,Исполнители!$C$4:$F$1119,3,FALSE))","v":""},null,{"$f":"IF(ISNA(VLOOKUP(BI23,Исполнители!$C$4:$F$1119,4,FALSE)),\"\",VLOOKUP(BI23,Исполнители!$C$4:$F$1119,4,FALSE))","v":""},null,{"$error":"#DIV/0!"},0]
[null,9,{"$f":"IF(ISNA(VLOOKUP(F24,Исполнители!$C$4:$F$1119,2,FALSE)),\"\",VLOOKUP(F24,Исполнители!$C$4:$F$1119,2,FALSE))","v":""},null,{"$f":"IF(ISNA(VLOOKUP(F24,Исполнители!$C$4:$F$1119,3,FALSE)),\"\",VLOOKUP(F24,Исполнители!$C$4:$F$1119,3,FALSE))","v":""},null,{"$f":"IF(ISNA(VLOOKUP(F24,Исполнители!$C$4:$F$1119,4,FALSE)),\"\",VLOOKUP(F24,Исполнители!$C$4:$F$1119,4,FALSE))","v":""},null,{"$error":"#DIV/0!"},0,null,null,9,{"$f":"IF(ISNA(VLOOKUP(Q24,Исполнители!$C$4:$F$1119,2,FALSE)),\"\",VLOOKUP(Q24,Исполнители!$C$4:$F$1119,2,FALSE))","v":""},null,{"$f":"IF(ISNA(VLOOKUP(Q24,Исполнители!$C$4:$F$1119,3,FALSE)),\"\",VLOOKUP(Q24,Исполнители!$C$4:$F$1119,3,FALSE))","v":""},null,{"$f":"IF(ISNA(VLOOKUP(Q24,Исполнители!$C$4:$F$1119,4,FALSE)),\"\",VLOOKUP(Q24,Исполнители!$C$4:$F$1119,4,FALSE))","v":""},null,{"$error":"#DIV/0!"},0,null,null,9,{"$f":"IF(ISNA(VLOOKUP(AB24,Исполнители!$C$4:$F$1119,2,FALSE)),\"\",VLOOKUP(AB24,Исполнители!$C$4:$F$1119,2,FALSE))","v":""},null,{"$f":"IF(ISNA(VLOOKUP(AB24,Исполнители!$C$4:$F$1119,3,FALSE)),\"\",VLOOKUP(AB24,Исполнители!$C$4:$F$1119,3,FALSE))","v":""},null,{"$f":"IF(ISNA(VLOOKUP(AB24,Исполнители!$C$4:$F$1119,4,FALSE)),\"\",VLOOKUP(AB24,Исполнители!$C$4:$F$1119,4,FALSE))","v":""},null,{"$error":"#DIV/0!"},0,null,null,9,{"$f":"IF(ISNA(VLOOKUP(AM24,Исполнители!$C$4:$F$1119,2,FALSE)),\"\",VLOOKUP(AM24,Исполнители!$C$4:$F$1119,2,FALSE))","v":""},null,{"$f":"IF(ISNA(VLOOKUP(AM24,Исполнители!$C$4:$F$1119,3,FALSE)),\"\",VLOOKUP(AM24,Исполнители!$C$4:$F$1119,3,FALSE))","v":""},null,{"$f":"IF(ISNA(VLOOKUP(AM24,Исполнители!$C$4:$F$1119,4,FALSE)),\"\",VLOOKUP(AM24,Исполнители!$C$4:$F$1119,4,FALSE))","v":""},null,{"$error":"#DIV/0!"},0,null,null,9,{"$f":"IF(ISNA(VLOOKUP(AX24,Исполнители!$C$4:$F$1119,2,FALSE)),\"\",VLOOKUP(AX24,Исполнители!$C$4:$F$1119,2,FALSE))","v":""},null,{"$f":"IF(ISNA(VLOOKUP(AX24,Исполнители!$C$4:$F$1119,3,FALSE)),\"\",VLOOKUP(AX24,Исполнители!$C$4:$F$1119,3,FALSE))","v":""},null,{"$f":"IF(ISNA(VLOOKUP(AX24,Исполнители!$C$4:$F$1119,4,FALSE)),\"\",VLOOKUP(AX24,Исполнители!$C$4:$F$1119,4,FALSE))","v":""},null,{"$error":"#DIV/0!"},0,null,null,9,{"$f":"IF(ISNA(VLOOKUP(BI24,Исполнители!$C$4:$F$1119,2,FALSE)),\"\",VLOOKUP(BI24,Исполнители!$C$4:$F$1119,2,FALSE))","v":""},null,{"$f":"IF(ISNA(VLOOKUP(BI24,Исполнители!$C$4:$F$1119,3,FALSE)),\"\",VLOOKUP(BI24,Исполнители!$C$4:$F$1119,3,FALSE))","v":""},null,{"$f":"IF(ISNA(VLOOKUP(BI24,Исполнители!$C$4:$F$1119,4,FALSE)),\"\",VLOOKUP(BI24,Исполнители!$C$4:$F$1119,4,FALSE))","v":""},null,{"$error":"#DIV/0!"},0]
[null,10,{"$f":"IF(ISNA(VLOOKUP(F25,Исполнители!$C$4:$F$1119,2,FALSE)),\"\",VLOOKUP(F25,Исполнители!$C$4:$F$1119,2,FALSE))","v":""},null,{"$f":"IF(ISNA(VLOOKUP(F25,Исполнители!$C$4:$F$1119,3,FALSE)),\"\",VLOOKUP(F25,Исполнители!$C$4:$F$1119,3,FALSE))","v":""},null,{"$f":"IF(ISNA(VLOOKUP(F25,Исполнители!$C$4:$F$1119,4,FALSE)),\"\",VLOOKUP(F25,Исполнители!$C$4:$F$1119,4,FALSE))","v":""},null,{"$f":"J25*H25/$J$11*$I$32/$H$12","v":{"$error":"#DIV/0!"}},0,null,null,10,{"$f":"IF(ISNA(VLOOKUP(Q25,Исполнители!$C$4:$F$1119,2,FALSE)),\"\",VLOOKUP(Q25,Исполнители!$C$4:$F$1119,2,FALSE))","v":""},null,{"$f":"IF(ISNA(VLOOKUP(Q25,Исполнители!$C$4:$F$1119,3,FALSE)),\"\",VLOOKUP(Q25,Исполнители!$C$4:$F$1119,3,FALSE))","v":""},null,{"$f":"IF(ISNA(VLOOKUP(Q25,Исполнители!$C$4:$F$1119,4,FALSE)),\"\",VLOOKUP(Q25,Исполнители!$C$4:$F$1119,4,FALSE))","v":""},null,{"$error":"#DIV/0!"},0,null,null,10,{"$f":"IF(ISNA(VLOOKUP(AB25,Исполнители!$C$4:$F$1119,2,FALSE)),\"\",VLOOKUP(AB25,Исполнители!$C$4:$F$1119,2,FALSE))","v":""},null,{"$f":"IF(ISNA(VLOOKUP(AB25,Исполнители!$C$4:$F$1119,3,FALSE)),\"\",VLOOKUP(AB25,Исполнители!$C$4:$F$1119,3,FALSE))","v":""},null,{"$f":"IF(ISNA(VLOOKUP(AB25,Исполнители!$C$4:$F$1119,4,FALSE)),\"\",VLOOKUP(AB25,Исполнители!$C$4:$F$1119,4,FALSE))","v":""},null,{"$error":"#DIV/0!"},0,null,null,10,{"$f":"IF(ISNA(VLOOKUP(AM25,Исполнители!$C$4:$F$1119,2,FALSE)),\"\",VLOOKUP(AM25,Исполнители!$C$4:$F$1119,2,FALSE))","v":""},null,{"$f":"IF(ISNA(VLOOKUP(AM25,Исполнители!$C$4:$F$1119,3,FALSE)),\"\",VLOOKUP(AM25,Исполнители!$C$4:$F$1119,3,FALSE))","v":""},null,{"$f":"IF(ISNA(VLOOKUP(AM25,Исполнители!$C$4:$F$1119,4,FALSE)),\"\",VLOOKUP(AM25,Исполнители!$C$4:$F$1119,4,FALSE))","v":""},null,{"$error":"#DIV/0!"},0,null,null,10,{"$f":"IF(ISNA(VLOOKUP(AX25,Исполнители!$C$4:$F$1119,2,FALSE)),\"\",VLOOKUP(AX25,Исполнители!$C$4:$F$1119,2,FALSE))","v":""},null,{"$f":"IF(ISNA(VLOOKUP(AX25,Исполнители!$C$4:$F$1119,3,FALSE)),\"\",VLOOKUP(AX25,Исполнители!$C$4:$F$1119,3,FALSE))","v":""},null,{"$f":"IF(ISNA(VLOOKUP(AX25,Исполнители!$C$4:$F$1119,4,FALSE)),\"\",VLOOKUP(AX25,Исполнители!$C$4:$F$1119,4,FALSE))","v":""},null,{"$error":"#DIV/0!"},0,null,null,10,{"$f":"IF(ISNA(VLOOKUP(BI25,Исполнители!$C$4:$F$1119,2,FALSE)),\"\",VLOOKUP(BI25,Исполнители!$C$4:$F$1119,2,FALSE))","v":""},null,{"$f":"IF(ISNA(VLOOKUP(BI25,Исполнители!$C$4:$F$1119,3,FALSE)),\"\",VLOOKUP(BI25,Исполнители!$C$4:$F$1119,3,FALSE))","v":""},null,{"$f":"IF(ISNA(VLOOKUP(BI25,Исполнители!$C$4:$F$1119,4,FALSE)),\"\",VLOOKUP(BI25,Исполнители!$C$4:$F$1119,4,FALSE))","v":""},null,{"$error":"#DIV/0!"},0]
[null,11,{"$f":"IF(ISNA(VLOOKUP(F26,Исполнители!$C$4:$F$1119,2,FALSE)),\"\",VLOOKUP(F26,Исполнители!$C$4:$F$1119,2,FALSE))","v":""},null,{"$f":"IF(ISNA(VLOOKUP(F26,Исполнители!$C$4:$F$1119,3,FALSE)),\"\",VLOOKUP(F26,Исполнители!$C$4:$F$1119,3,FALSE))","v":""},null,{"$f":"IF(ISNA(VLOOKUP(F26,Исполнители!$C$4:$F$1119,4,FALSE)),\"\",VLOOKUP(F26,Исполнители!$C$4:$F$1119,4,FALSE))","v":""},null,{"$f":"J26*H26/$J$11*$I$32/$H$12","v":{"$error":"#DIV/0!"}},0,null,null,11,{"$f":"IF(ISNA(VLOOKUP(Q26,Исполнители!$C$4:$F$1119,2,FALSE)),\"\",VLOOKUP(Q26,Исполнители!$C$4:$F$1119,2,FALSE))","v":""},null,{"$f":"IF(ISNA(VLOOKUP(Q26,Исполнители!$C$4:$F$1119,3,FALSE)),\"\",VLOOKUP(Q26,Исполнители!$C$4:$F$1119,3,FALSE))","v":""},null,{"$f":"IF(ISNA(VLOOKUP(Q26,Исполнители!$C$4:$F$1119,4,FALSE)),\"\",VLOOKUP(Q26,Исполнители!$C$4:$F$1119,4,FALSE))","v":""},null,{"$error":"#DIV/0!"},0,null,null,11,{"$f":"IF(ISNA(VLOOKUP(AB26,Исполнители!$C$4:$F$1119,2,FALSE)),\"\",VLOOKUP(AB26,Исполнители!$C$4:$F$1119,2,FALSE))","v":""},null,{"$f":"IF(ISNA(VLOOKUP(AB26,Исполнители!$C$4:$F$1119,3,FALSE)),\"\",VLOOKUP(AB26,Исполнители!$C$4:$F$1119,3,FALSE))","v":""},null,{"$f":"IF(ISNA(VLOOKUP(AB26,Исполнители!$C$4:$F$1119,4,FALSE)),\"\",VLOOKUP(AB26,Исполнители!$C$4:$F$1119,4,FALSE))","v":""},null,{"$error":"#DIV/0!"},0,null,null,11,{"$f":"IF(ISNA(VLOOKUP(AM26,Исполнители!$C$4:$F$1119,2,FALSE)),\"\",VLOOKUP(AM26,Исполнители!$C$4:$F$1119,2,FALSE))","v":""},null,{"$f":"IF(ISNA(VLOOKUP(AM26,Исполнители!$C$4:$F$1119,3,FALSE)),\"\",VLOOKUP(AM26,Исполнители!$C$4:$F$1119,3,FALSE))","v":""},null,{"$f":"IF(ISNA(VLOOKUP(AM26,Исполнители!$C$4:$F$1119,4,FALSE)),\"\",VLOOKUP(AM26,Исполнители!$C$4:$F$1119,4,FALSE))","v":""},null,{"$error":"#DIV/0!"},0,null,null,11,{"$f":"IF(ISNA(VLOOKUP(AX26,Исполнители!$C$4:$F$1119,2,FALSE)),\"\",VLOOKUP(AX26,Исполнители!$C$4:$F$1119,2,FALSE))","v":""},null,{"$f":"IF(ISNA(VLOOKUP(AX26,Исполнители!$C$4:$F$1119,3,FALSE)),\"\",VLOOKUP(AX26,Исполнители!$C$4:$F$1119,3,FALSE))","v":""},null,{"$f":"IF(ISNA(VLOOKUP(AX26,Исполнители!$C$4:$F$1119,4,FALSE)),\"\",VLOOKUP(AX26,Исполнители!$C$4:$F$1119,4,FALSE))","v":""},null,{"$error":"#DIV/0!"},0,null,null,11,{"$f":"IF(ISNA(VLOOKUP(BI26,Исполнители!$C$4:$F$1119,2,FALSE)),\"\",VLOOKUP(BI26,Исполнители!$C$4:$F$1119,2,FALSE))","v":""},null,{"$f":"IF(ISNA(VLOOKUP(BI26,Исполнители!$C$4:$F$1119,3,FALSE)),\"\",VLOOKUP(BI26,Исполнители!$C$4:$F$1119,3,FALSE))","v":""},null,{"$f":"IF(ISNA(VLOOKUP(BI26,Исполнители!$C$4:$F$1119,4,FALSE)),\"\",VLOOKUP(BI26,Исполнители!$C$4:$F$1119,4,FALSE))","v":""},null,{"$error":"#DIV/0!"},0]
[null,12,{"$f":"IF(ISNA(VLOOKUP(F27,Исполнители!$C$4:$F$1119,2,FALSE)),\"\",VLOOKUP(F27,Исполнители!$C$4:$F$1119,2,FALSE))","v":""},null,{"$f":"IF(ISNA(VLOOKUP(F27,Исполнители!$C$4:$F$1119,3,FALSE)),\"\",VLOOKUP(F27,Исполнители!$C$4:$F$1119,3,FALSE))","v":""},null,{"$f":"IF(ISNA(VLOOKUP(F27,Исполнители!$C$4:$F$1119,4,FALSE)),\"\",VLOOKUP(F27,Исполнители!$C$4:$F$1119,4,FALSE))","v":""},null,{"$error":"#DIV/0!"},0,null,null,12,{"$f":"IF(ISNA(VLOOKUP(Q27,Исполнители!$C$4:$F$1119,2,FALSE)),\"\",VLOOKUP(Q27,Исполнители!$C$4:$F$1119,2,FALSE))","v":""},null,{"$f":"IF(ISNA(VLOOKUP(Q27,Исполнители!$C$4:$F$1119,3,FALSE)),\"\",VLOOKUP(Q27,Исполнители!$C$4:$F$1119,3,FALSE))","v":""},null,{"$f":"IF(ISNA(VLOOKUP(Q27,Исполнители!$C$4:$F$1119,4,FALSE)),\"\",VLOOKUP(Q27,Исполнители!$C$4:$F$1119,4,FALSE))","v":""},null,{"$error":"#DIV/0!"},0,null,null,12,{"$f":"IF(ISNA(VLOOKUP(AB27,Исполнители!$C$4:$F$1119,2,FALSE)),\"\",VLOOKUP(AB27,Исполнители!$C$4:$F$1119,2,FALSE))","v":""},null,{"$f":"IF(ISNA(VLOOKUP(AB27,Исполнители!$C$4:$F$1119,3,FALSE)),\"\",VLOOKUP(AB27,Исполнители!$C$4:$F$1119,3,FALSE))","v":""},null,{"$f":"IF(ISNA(VLOOKUP(AB27,Исполнители!$C$4:$F$1119,4,FALSE)),\"\",VLOOKUP(AB27,Исполнители!$C$4:$F$1119,4,FALSE))","v":""},null,{"$error":"#DIV/0!"},0,null,null,12,{"$f":"IF(ISNA(VLOOKUP(AM27,Исполнители!$C$4:$F$1119,2,FALSE)),\"\",VLOOKUP(AM27,Исполнители!$C$4:$F$1119,2,FALSE))","v":""},null,{"$f":"IF(ISNA(VLOOKUP(AM27,Исполнители!$C$4:$F$1119,3,FALSE)),\"\",VLOOKUP(AM27,Исполнители!$C$4:$F$1119,3,FALSE))","v":""},null,{"$f":"IF(ISNA(VLOOKUP(AM27,Исполнители!$C$4:$F$1119,4,FALSE)),\"\",VLOOKUP(AM27,Исполнители!$C$4:$F$1119,4,FALSE))","v":""},null,{"$error":"#DIV/0!"},0,null,null,12,{"$f":"IF(ISNA(VLOOKUP(AX27,Исполнители!$C$4:$F$1119,2,FALSE)),\"\",VLOOKUP(AX27,Исполнители!$C$4:$F$1119,2,FALSE))","v":""},null,{"$f":"IF(ISNA(VLOOKUP(AX27,Исполнители!$C$4:$F$1119,3,FALSE)),\"\",VLOOKUP(AX27,Исполнители!$C$4:$F$1119,3,FALSE))","v":""},null,{"$f":"IF(ISNA(VLOOKUP(AX27,Исполнители!$C$4:$F$1119,4,FALSE)),\"\",VLOOKUP(AX27,Исполнители!$C$4:$F$1119,4,FALSE))","v":""},null,{"$error":"#DIV/0!"},0,null,null,12,{"$f":"IF(ISNA(VLOOKUP(BI27,Исполнители!$C$4:$F$1119,2,FALSE)),\"\",VLOOKUP(BI27,Исполнители!$C$4:$F$1119,2,FALSE))","v":""},null,{"$f":"IF(ISNA(VLOOKUP(BI27,Исполнители!$C$4:$F$1119,3,FALSE)),\"\",VLOOKUP(BI27,Исполнители!$C$4:$F$1119,3,FALSE))","v":""},null,{"$f":"IF(ISNA(VLOOKUP(BI27,Исполнители!$C$4:$F$1119,4,FALSE)),\"\",VLOOKUP(BI27,Исполнители!$C$4:$F$1119,4,FALSE))","v":""},null,{"$error":"#DIV/0!"},0]
[null,13,{"$f":"IF(ISNA(VLOOKUP(F28,Исполнители!$C$4:$F$1119,2,FALSE)),\"\",VLOOKUP(F28,Исполнители!$C$4:$F$1119,2,FALSE))","v":""},null,{"$f":"IF(ISNA(VLOOKUP(F28,Исполнители!$C$4:$F$1119,3,FALSE)),\"\",VLOOKUP(F28,Исполнители!$C$4:$F$1119,3,FALSE))","v":""},null,{"$f":"IF(ISNA(VLOOKUP(F28,Исполнители!$C$4:$F$1119,4,FALSE)),\"\",VLOOKUP(F28,Исполнители!$C$4:$F$1119,4,FALSE))","v":""},null,{"$error":"#DIV/0!"},0,null,null,13,{"$f":"IF(ISNA(VLOOKUP(Q28,Исполнители!$C$4:$F$1119,2,FALSE)),\"\",VLOOKUP(Q28,Исполнители!$C$4:$F$1119,2,FALSE))","v":""},null,{"$f":"IF(ISNA(VLOOKUP(Q28,Исполнители!$C$4:$F$1119,3,FALSE)),\"\",VLOOKUP(Q28,Исполнители!$C$4:$F$1119,3,FALSE))","v":""},null,{"$f":"IF(ISNA(VLOOKUP(Q28,Исполнители!$C$4:$F$1119,4,FALSE)),\"\",VLOOKUP(Q28,Исполнители!$C$4:$F$1119,4,FALSE))","v":""},null,{"$error":"#DIV/0!"},0,null,null,13,{"$f":"IF(ISNA(VLOOKUP(AB28,Исполнители!$C$4:$F$1119,2,FALSE)),\"\",VLOOKUP(AB28,Исполнители!$C$4:$F$1119,2,FALSE))","v":""},null,{"$f":"IF(ISNA(VLOOKUP(AB28,Исполнители!$C$4:$F$1119,3,FALSE)),\"\",VLOOKUP(AB28,Исполнители!$C$4:$F$1119,3,FALSE))","v":""},null,{"$f":"IF(ISNA(VLOOKUP(AB28,Исполнители!$C$4:$F$1119,4,FALSE)),\"\",VLOOKUP(AB28,Исполнители!$C$4:$F$1119,4,FALSE))","v":""},null,{"$error":"#DIV/0!"},0,null,null,13,{"$f":"IF(ISNA(VLOOKUP(AM28,Исполнители!$C$4:$F$1119,2,FALSE)),\"\",VLOOKUP(AM28,Исполнители!$C$4:$F$1119,2,FALSE))","v":""},null,{"$f":"IF(ISNA(VLOOKUP(AM28,Исполнители!$C$4:$F$1119,3,FALSE)),\"\",VLOOKUP(AM28,Исполнители!$C$4:$F$1119,3,FALSE))","v":""},null,{"$f":"IF(ISNA(VLOOKUP(AM28,Исполнители!$C$4:$F$1119,4,FALSE)),\"\",VLOOKUP(AM28,Исполнители!$C$4:$F$1119,4,FALSE))","v":""},null,{"$error":"#DIV/0!"},0,null,null,13,{"$f":"IF(ISNA(VLOOKUP(AX28,Исполнители!$C$4:$F$1119,2,FALSE)),\"\",VLOOKUP(AX28,Исполнители!$C$4:$F$1119,2,FALSE))","v":""},null,{"$f":"IF(ISNA(VLOOKUP(AX28,Исполнители!$C$4:$F$1119,3,FALSE)),\"\",VLOOKUP(AX28,Исполнители!$C$4:$F$1119,3,FALSE))","v":""},null,{"$f":"IF(ISNA(VLOOKUP(AX28,Исполнители!$C$4:$F$1119,4,FALSE)),\"\",VLOOKUP(AX28,Исполнители!$C$4:$F$1119,4,FALSE))","v":""},null,{"$error":"#DIV/0!"},0,null,null,13,{"$f":"IF(ISNA(VLOOKUP(BI28,Исполнители!$C$4:$F$1119,2,FALSE)),\"\",VLOOKUP(BI28,Исполнители!$C$4:$F$1119,2,FALSE))","v":""},null,{"$f":"IF(ISNA(VLOOKUP(BI28,Исполнители!$C$4:$F$1119,3,FALSE)),\"\",VLOOKUP(BI28,Исполнители!$C$4:$F$1119,3,FALSE))","v":""},null,{"$f":"IF(ISNA(VLOOKUP(BI28,Исполнители!$C$4:$F$1119,4,FALSE)),\"\",VLOOKUP(BI28,Исполнители!$C$4:$F$1119,4,FALSE))","v":""},null,{"$error":"#DIV/0!"},0]
[null,14,{"$f":"IF(ISNA(VLOOKUP(F29,Исполнители!$C$4:$F$1119,2,FALSE)),\"\",VLOOKUP(F29,Исполнители!$C$4:$F$1119,2,FALSE))","v":""},null,{"$f":"IF(ISNA(VLOOKUP(F29,Исполнители!$C$4:$F$1119,3,FALSE)),\"\",VLOOKUP(F29,Исполнители!$C$4:$F$1119,3,FALSE))","v":""},null,{"$f":"IF(ISNA(VLOOKUP(F29,Исполнители!$C$4:$F$1119,4,FALSE)),\"\",VLOOKUP(F29,Исполнители!$C$4:$F$1119,4,FALSE))","v":""},null,{"$error":"#DIV/0!"},0,null,null,14,{"$f":"IF(ISNA(VLOOKUP(Q29,Исполнители!$C$4:$F$1119,2,FALSE)),\"\",VLOOKUP(Q29,Исполнители!$C$4:$F$1119,2,FALSE))","v":""},null,{"$f":"IF(ISNA(VLOOKUP(Q29,Исполнители!$C$4:$F$1119,3,FALSE)),\"\",VLOOKUP(Q29,Исполнители!$C$4:$F$1119,3,FALSE))","v":""},null,{"$f":"IF(ISNA(VLOOKUP(Q29,Исполнители!$C$4:$F$1119,4,FALSE)),\"\",VLOOKUP(Q29,Исполнители!$C$4:$F$1119,4,FALSE))","v":""},null,{"$error":"#DIV/0!"},0,null,null,14,{"$f":"IF(ISNA(VLOOKUP(AB29,Исполнители!$C$4:$F$1119,2,FALSE)),\"\",VLOOKUP(AB29,Исполнители!$C$4:$F$1119,2,FALSE))","v":""},null,{"$f":"IF(ISNA(VLOOKUP(AB29,Исполнители!$C$4:$F$1119,3,FALSE)),\"\",VLOOKUP(AB29,Исполнители!$C$4:$F$1119,3,FALSE))","v":""},null,{"$f":"IF(ISNA(VLOOKUP(AB29,Исполнители!$C$4:$F$1119,4,FALSE)),\"\",VLOOKUP(AB29,Исполнители!$C$4:$F$1119,4,FALSE))","v":""},null,{"$error":"#DIV/0!"},0,null,null,14,{"$f":"IF(ISNA(VLOOKUP(AM29,Исполнители!$C$4:$F$1119,2,FALSE)),\"\",VLOOKUP(AM29,Исполнители!$C$4:$F$1119,2,FALSE))","v":""},null,{"$f":"IF(ISNA(VLOOKUP(AM29,Исполнители!$C$4:$F$1119,3,FALSE)),\"\",VLOOKUP(AM29,Исполнители!$C$4:$F$1119,3,FALSE))","v":""},null,{"$f":"IF(ISNA(VLOOKUP(AM29,Исполнители!$C$4:$F$1119,4,FALSE)),\"\",VLOOKUP(AM29,Исполнители!$C$4:$F$1119,4,FALSE))","v":""},null,{"$error":"#DIV/0!"},0,null,null,14,{"$f":"IF(ISNA(VLOOKUP(AX29,Исполнители!$C$4:$F$1119,2,FALSE)),\"\",VLOOKUP(AX29,Исполнители!$C$4:$F$1119,2,FALSE))","v":""},null,{"$f":"IF(ISNA(VLOOKUP(AX29,Исполнители!$C$4:$F$1119,3,FALSE)),\"\",VLOOKUP(AX29,Исполнители!$C$4:$F$1119,3,FALSE))","v":""},null,{"$f":"IF(ISNA(VLOOKUP(AX29,Исполнители!$C$4:$F$1119,4,FALSE)),\"\",VLOOKUP(AX29,Исполнители!$C$4:$F$1119,4,FALSE))","v":""},null,{"$error":"#DIV/0!"},0,null,null,14,{"$f":"IF(ISNA(VLOOKUP(BI29,Исполнители!$C$4:$F$1119,2,FALSE)),\"\",VLOOKUP(BI29,Исполнители!$C$4:$F$1119,2,FALSE))","v":""},null,{"$f":"IF(ISNA(VLOOKUP(BI29,Исполнители!$C$4:$F$1119,3,FALSE)),\"\",VLOOKUP(BI29,Исполнители!$C$4:$F$1119,3,FALSE))","v":""},null,{"$f":"IF(ISNA(VLOOKUP(BI29,Исполнители!$C$4:$F$1119,4,FALSE)),\"\",VLOOKUP(BI29,Исполнители!$C$4:$F$1119,4,FALSE))","v":""},null,{"$error":"#DIV/0!"},0]
[null,15,{"$f":"IF(ISNA(VLOOKUP(F30,Исполнители!$C$4:$F$1119,2,FALSE)),\"\",VLOOKUP(F30,Исполнители!$C$4:$F$1119,2,FALSE))","v":""},null,{"$f":"IF(ISNA(VLOOKUP(F30,Исполнители!$C$4:$F$1119,3,FALSE)),\"\",VLOOKUP(F30,Исполнители!$C$4:$F$1119,3,FALSE))","v":""},null,{"$f":"IF(ISNA(VLOOKUP(F30,Исполнители!$C$4:$F$1119,4,FALSE)),\"\",VLOOKUP(F30,Исполнители!$C$4:$F$1119,4,FALSE))","v":""},null,{"$error":"#DIV/0!"},0,null,null,15,{"$f":"IF(ISNA(VLOOKUP(Q30,Исполнители!$C$4:$F$1119,2,FALSE)),\"\",VLOOKUP(Q30,Исполнители!$C$4:$F$1119,2,FALSE))","v":""},null,{"$f":"IF(ISNA(VLOOKUP(Q30,Исполнители!$C$4:$F$1119,3,FALSE)),\"\",VLOOKUP(Q30,Исполнители!$C$4:$F$1119,3,FALSE))","v":""},null,{"$f":"IF(ISNA(VLOOKUP(Q30,Исполнители!$C$4:$F$1119,4,FALSE)),\"\",VLOOKUP(Q30,Исполнители!$C$4:$F$1119,4,FALSE))","v":""},null,{"$error":"#DIV/0!"},0,null,null,15,{"$f":"IF(ISNA(VLOOKUP(AB30,Исполнители!$C$4:$F$1119,2,FALSE)),\"\",VLOOKUP(AB30,Исполнители!$C$4:$F$1119,2,FALSE))","v":""},null,{"$f":"IF(ISNA(VLOOKUP(AB30,Исполнители!$C$4:$F$1119,3,FALSE)),\"\",VLOOKUP(AB30,Исполнители!$C$4:$F$1119,3,FALSE))","v":""},null,{"$f":"IF(ISNA(VLOOKUP(AB30,Исполнители!$C$4:$F$1119,4,FALSE)),\"\",VLOOKUP(AB30,Исполнители!$C$4:$F$1119,4,FALSE))","v":""},null,{"$error":"#DIV/0!"},0,null,null,15,{"$f":"IF(ISNA(VLOOKUP(AM30,Исполнители!$C$4:$F$1119,2,FALSE)),\"\",VLOOKUP(AM30,Исполнители!$C$4:$F$1119,2,FALSE))","v":""},null,{"$f":"IF(ISNA(VLOOKUP(AM30,Исполнители!$C$4:$F$1119,3,FALSE)),\"\",VLOOKUP(AM30,Исполнители!$C$4:$F$1119,3,FALSE))","v":""},null,{"$f":"IF(ISNA(VLOOKUP(AM30,Исполнители!$C$4:$F$1119,4,FALSE)),\"\",VLOOKUP(AM30,Исполнители!$C$4:$F$1119,4,FALSE))","v":""},null,{"$error":"#DIV/0!"},0,null,null,15,{"$f":"IF(ISNA(VLOOKUP(AX30,Исполнители!$C$4:$F$1119,2,FALSE)),\"\",VLOOKUP(AX30,Исполнители!$C$4:$F$1119,2,FALSE))","v":""},null,{"$f":"IF(ISNA(VLOOKUP(AX30,Исполнители!$C$4:$F$1119,3,FALSE)),\"\",VLOOKUP(AX30,Исполнители!$C$4:$F$1119,3,FALSE))","v":""},null,{"$f":"IF(ISNA(VLOOKUP(AX30,Исполнители!$C$4:$F$1119,4,FALSE)),\"\",VLOOKUP(AX30,Исполнители!$C$4:$F$1119,4,FALSE))","v":""},null,{"$error":"#DIV/0!"},0,null,null,15,{"$f":"IF(ISNA(VLOOKUP(BI30,Исполнители!$C$4:$F$1119,2,FALSE)),\"\",VLOOKUP(BI30,Исполнители!$C$4:$F$1119,2,FALSE))","v":""},null,{"$f":"IF(ISNA(VLOOKUP(BI30,Исполнители!$C$4:$F$1119,3,FALSE)),\"\",VLOOKUP(BI30,Исполнители!$C$4:$F$1119,3,FALSE))","v":""},null,{"$f":"IF(ISNA(VLOOKUP(BI30,Исполнители!$C$4:$F$1119,4,FALSE)),\"\",VLOOKUP(BI30,Исполнители!$C$4:$F$1119,4,FALSE))","v":""},null,{"$error":"#DIV/0!"},0]
[null,16,{"$f":"IF(ISNA(VLOOKUP(F31,Исполнители!$C$4:$F$1119,2,FALSE)),\"\",VLOOKUP(F31,Исполнители!$C$4:$F$1119,2,FALSE))","v":""},null,{"$f":"IF(ISNA(VLOOKUP(F31,Исполнители!$C$4:$F$1119,3,FALSE)),\"\",VLOOKUP(F31,Исполнители!$C$4:$F$1119,3,FALSE))","v":""},null,{"$f":"IF(ISNA(VLOOKUP(F31,Исполнители!$C$4:$F$1119,4,FALSE)),\"\",VLOOKUP(F31,Исполнители!$C$4:$F$1119,4,FALSE))","v":""},null,{"$error":"#DIV/0!"},0,null,null,16,{"$f":"IF(ISNA(VLOOKUP(Q31,Исполнители!$C$4:$F$1119,2,FALSE)),\"\",VLOOKUP(Q31,Исполнители!$C$4:$F$1119,2,FALSE))","v":""},null,{"$f":"IF(ISNA(VLOOKUP(Q31,Исполнители!$C$4:$F$1119,3,FALSE)),\"\",VLOOKUP(Q31,Исполнители!$C$4:$F$1119,3,FALSE))","v":""},null,{"$f":"IF(ISNA(VLOOKUP(Q31,Исполнители!$C$4:$F$1119,4,FALSE)),\"\",VLOOKUP(Q31,Исполнители!$C$4:$F$1119,4,FALSE))","v":""},null,{"$error":"#DIV/0!"},0,null,null,16,{"$f":"IF(ISNA(VLOOKUP(AB31,Исполнители!$C$4:$F$1119,2,FALSE)),\"\",VLOOKUP(AB31,Исполнители!$C$4:$F$1119,2,FALSE))","v":""},null,{"$f":"IF(ISNA(VLOOKUP(AB31,Исполнители!$C$4:$F$1119,3,FALSE)),\"\",VLOOKUP(AB31,Исполнители!$C$4:$F$1119,3,FALSE))","v":""},null,{"$f":"IF(ISNA(VLOOKUP(AB31,Исполнители!$C$4:$F$1119,4,FALSE)),\"\",VLOOKUP(AB31,Исполнители!$C$4:$F$1119,4,FALSE))","v":""},null,{"$error":"#DIV/0!"},0,null,null,16,{"$f":"IF(ISNA(VLOOKUP(AM31,Исполнители!$C$4:$F$1119,2,FALSE)),\"\",VLOOKUP(AM31,Исполнители!$C$4:$F$1119,2,FALSE))","v":""},null,{"$f":"IF(ISNA(VLOOKUP(AM31,Исполнители!$C$4:$F$1119,3,FALSE)),\"\",VLOOKUP(AM31,Исполнители!$C$4:$F$1119,3,FALSE))","v":""},null,{"$f":"IF(ISNA(VLOOKUP(AM31,Исполнители!$C$4:$F$1119,4,FALSE)),\"\",VLOOKUP(AM31,Исполнители!$C$4:$F$1119,4,FALSE))","v":""},null,{"$error":"#DIV/0!"},0,null,null,16,{"$f":"IF(ISNA(VLOOKUP(AX31,Исполнители!$C$4:$F$1119,2,FALSE)),\"\",VLOOKUP(AX31,Исполнители!$C$4:$F$1119,2,FALSE))","v":""},null,{"$f":"IF(ISNA(VLOOKUP(AX31,Исполнители!$C$4:$F$1119,3,FALSE)),\"\",VLOOKUP(AX31,Исполнители!$C$4:$F$1119,3,FALSE))","v":""},null,{"$f":"IF(ISNA(VLOOKUP(AX31,Исполнители!$C$4:$F$1119,4,FALSE)),\"\",VLOOKUP(AX31,Исполнители!$C$4:$F$1119,4,FALSE))","v":""},null,{"$error":"#DIV/0!"},0,null,null,16,{"$f":"IF(ISNA(VLOOKUP(BI31,Исполнители!$C$4:$F$1119,2,FALSE)),\"\",VLOOKUP(BI31,Исполнители!$C$4:$F$1119,2,FALSE))","v":""},null,{"$f":"IF(ISNA(VLOOKUP(BI31,Исполнители!$C$4:$F$1119,3,FALSE)),\"\",VLOOKUP(BI31,Исполнители!$C$4:$F$1119,3,FALSE))","v":""},null,{"$f":"IF(ISNA(VLOOKUP(BI31,Исполнители!$C$4:$F$1119,4,FALSE)),\"\",VLOOKUP(BI31,Исполнители!$C$4:$F$1119,4,FALSE))","v":""},null,{"$error":"#DIV/0!"},0]
[null,"Итого по наряду",null,null,null,null,null,{"$f":"SUM(H16:H25)","v":0},{"$f":"J15*J11","v":4875},null,null,null,"Итого по наряду",null,null,null,null,null,{"$f":"SUM(S16:S25)","v":0},{"$f":"U15*U11","v":6000},null,null,null,"Итого по наряду",null,null,null,null,null,{"$f":"SUM(AD16:AD25)","v":0},{"$f":"AF15*AF11","v":16125},null,null,null,"Итого по наряду",null,null,null,null,null,{"$f":"SUM(AO16:AO25)","v":0},{"$f":"AQ15*AQ11","v":15375},null,null,null,"Итого по наряду",null,null,null,null,null,{"$f":"SUM(AZ16:AZ25)","v":0},{"$f":"BB15*BB11","v":750},null,null,null,"Итого по наряду",null,null,null,null,null,{"$f":"SUM(BK16:BK25)","v":0},{"$f":"BM15*BM11","v":2730}]
[]
[null,"Бригадир: ______________________",null,null,null,null,"Подпись__________________",null,"Дата ____________",null,null,null,"Бригадир: ______________________",null,null,null,null,"Подпись__________________",null,"Дата ____________",null,null,null,"Бригадир: ______________________",null,null,null,null,"Подпись__________________",null,"Дата ____________",null,null,null,"Бригадир: ______________________",null,null,null,null,"Подпись__________________",null,"Дата ____________",null,null,null,"Бригадир: ______________________",null,null,null,null,"Подпись__________________",null,"Дата ____________",null,null,null,"Бригадир: ______________________",null,null,null,null,"Подпись__________________",null,"Дата ____________"]
[null,"Работа принята:   ",null,null,null,null,null,null,null,null,null,null,"Работа принята:   ",null,null,null,null,null,null,null,null,null,null,"Работа принята:   ",null,null,null,null,null,null,null,null,null,null,"Работа принята:   ",null,null,null,null,null,null,null,null,null,null,"Работа принята:   ",null,null,null,null,null,null,null,null,null,null,"Работа принята:   "]
[null,"Мастер: Яковлев В.А./Апроськин Н.М",null,null,null,null,"Подпись__________________",null,"Дата ____________",null,null,null,"Мастер: Яковлев В.А./Апроськин Н.М",null,null,null,null,"Подпись__________________",null,"Дата ____________",null,null,null,"Мастер: Яковлев В.А./Апроськин Н.М",null,null,null,null,"Подпись__________________",null,"Дата ____________",null,null,null,"Мастер: Яковлев В.А./Апроськин Н.М",null,null,null,null,"Подпись__________________",null,"Дата ____________",null,null,null,"Мастер: Яковлев В.А./Апроськин Н.М",null,null,null,null,"Подпись__________________",null,"Дата ____________",null,null,null,"Мастер: Яковлев В.А./Апроськин Н.М",null,null,null,null,"Подпись__________________",null,"Дата ____________"]
[]
[null,"ОТК: Александров П.В./Адюков А.В.  №____предьявления",null,null,null,null,"Подпись__________________",null,"Дата ____________",null,null,null,"ОТК: Александров П.В./Адюков А.В.  №____предьявления",null,null,null,null,"Подпись__________________",null,"Дата ____________",null,null,null,"ОТК: Александров П.В./Адюков А.В.  №____предьявления",null,null,null,null,"Подпись__________________",null,"Дата ____________",null,null,null,"ОТК: Александров П.В./Адюков А.В.  №____предьявления",null,null,null,null,"Подпись__________________",null,"Дата ____________",null,null,null,"ОТК: Александров П.В./Адюков А.В.  №____предьявления",null,null,null,null,"Подпись__________________",null,"Дата ____________",null,null,null,"ОТК: Александров П.В./Адюков А.В.  №____предьявления",null,null,null,null,"Подпись__________________",null,"Дата ____________"]
[]
[]
[]
[null,"ПДО: Быкова С.Ю.",null,null,null,null,"Подпись__________________",null,"Дата ____________",null,null,null,"ПДО: Быкова С.Ю.",null,null,null,null,"Подпись__________________",null,"Дата ____________",null,null,null,"ПДО: Быкова С.Ю.",null,null,null,null,"Подпись__________________",null,"Дата ____________",null,null,null,"ПДО: Быкова С.Ю.",null,null,null,null,"Подпись__________________",null,"Дата ____________",null,null,null,"ПДО: Быкова С.Ю.",null,null,null,null,"Подпись__________________",null,"Дата ____________",null,null,null,"ПДО: Быкова С.Ю.",null,null,null,null,"Подпись__________________",null,"Дата ____________"]
[]
[null,"Нач. производства: Атаманчук М.Е.",null,null,null,null,"Подпись__________________",null,"Дата ____________",null,null,null,"Нач. производства: Атаманчук М.Е.",null,null,null,null,"Подпись__________________",null,"Дата ____________",null,null,null,"Нач. производства: Атаманчук М.Е.",null,null,null,null,"Подпись__________________",null,"Дата ____________",null,null,null,"Нач. производства: Атаманчук М.Е.",null,null,null,null,"Подпись__________________",null,"Дата ____________",null,null,null,"Нач. производства: Атаманчук М.Е.",null,null,null,null,"Подпись__________________",null,"Дата ____________",null,null,null,"Нач. производства: Атаманчук М.Е.",null,null,null,null,"Подпись__________________",null,"Дата ____________"]
[null,"Оплате подлежат только ЧАСЫ ПО НОРМАТИВУ",null,null,null,null,null,null,null,null,null,null,"Оплате подлежат только ЧАСЫ ПО НОРМАТИВУ",null,null,null,null,null,null,null,null,null,null,"Оплате подлежат только ЧАСЫ ПО НОРМАТИВУ",null,null,null,null,null,null,null,null,null,null,"Оплате подлежат только ЧАСЫ ПО НОРМАТИВУ",null,null,null,null,null,null,null,null,null,null,"Оплате подлежат только ЧАСЫ ПО НОРМАТИВУ",null,null,null,null,null,null,null,null,null,null,"Оплате подлежат только ЧАСЫ ПО НОРМАТИВУ"]

{"sheet":"Исполнители","index":1,"n_rows":68,"n_cols":6,"rows_kept":68,"cut":false,"hidden":false,"merged":[[1,1,1,3],[1,5,1,6]]}
[]
[null,"Маляры"]
[null,"Должность","Таб. №","ФОИ","Должность краткая","Расценка за час"]
[null,"Слесарь механосборочных работ",2108,"Башмаков Д.Р.","Слесарь",375]
[null,"Слесарь механосборочных работ",1705,"Белов С.М.","Слесарь",375]
[null,"Слесарь механосборочных работ",726,"Васильев В.В.","Слесарь",375]
[null,"Слесарь механосборочных работ",1443,"Васильев П.В.","Слесарь",375]
[null,"Слесарь механосборочных работ",1199,"Вишнев Н.Г.","Слесарь",375]
[null,"Слесарь механосборочных работ",1350,"Горшков В.Н.","Слесарь",375]
[null,"Слесарь механосборочных работ",939,"Грачев А.А.","Слесарь",375]
[null,"Слесарь механосборочных работ",1288,"Данилов Н.А.","Слесарь",375]
[null,"Слесарь механосборочных работ",2120,"Егоров А.А.","Слесарь",375]
[null,"Слесарь механосборочных работ",782,"Енисеев С.Ю.","Слесарь",375]
[null,"Слесарь механосборочных работ",1712,"Иванов А.С.","Слесарь",375]
[null,"Слесарь механосборочных работ",2215,"Иванов Д.Д.","Слесарь",375]
[null,"Слесарь механосборочных работ",1581,"Инжебейкин М.Е.","Слесарь",375]
[null,"Слесарь механосборочных работ",1196,"Карпов А.В.","Слесарь",375]
[null,"Слесарь механосборочных работ",1967,"Карпов Д.В.","Слесарь",375]
[null,"Слесарь механосборочных работ",1638,"Краснов Р.А.","Слесарь",375]
[null,"Слесарь механосборочных работ",236,"Лазарев П.М.","Слесарь",375]
[null,"Слесарь механосборочных работ",1715,"Майков А.В.","Слесарь",375]
[null,"Слесарь механосборочных работ",1342,"Мидюков Н.Ю.","Слесарь",375]
[null,"Слесарь механосборочных работ",1747,"Мразов А.Г.","Слесарь",375]
[null,"Слесарь механосборочных работ",2118,"Никитин Д.А.","Слесарь",375]
[null,"Слесарь механосборочных работ",2053,"Олаев А.Ф.","Слесарь",375]
[null,"Слесарь механосборочных работ",2139,"Тимофеев А.А.","Слесарь",375]
[null,"Слесарь механосборочных работ",720,"Тимофеев М.А.","Слесарь",375]
[null,"Слесарь механосборочных работ",803,"Тихонов Ю.В.","Слесарь",375]
[null,"Слесарь механосборочных работ",2210,"Ястребов С.Ю.","Слесарь",375]
[null,"Слесарь механосборочных работ",172,"Ятмасов О.М.","Слесарь",375]
[null,"Слесарь механосборочных работ",1389,"Аксендаров П.И.","Слесарь",375]
[null,"Слесарь механосборочных работ",495,"Андреев С.В.","Слесарь",375]
[null,"Слесарь механосборочных работ",2218,"Аптрейкин А.В.","Слесарь",375]
[null,"Слесарь механосборочных работ",1619,"Афанасьев В.И.","Слесарь",375]
[null,"Слесарь механосборочных работ",2022,"Бурцев М.В.","Слесарь",375]
[null,"Слесарь механосборочных работ",2085,"Валежников С.Н.","Слесарь",375]
[null,"Слесарь механосборочных работ",801,"Ванюшкин В.Г.","Слесарь",375]
[null,"Слесарь механосборочных работ",1344,"Васильев Е.М.","Слесарь",375]
[null,"Слесарь механосборочных работ",873,"Васильев С.Ю.","Слесарь",375]
[null,"Слесарь механосборочных работ",2209,"Волков А.А.","Слесарь",375]
[null,"Слесарь механосборочных работ",2208,"Гончаров А.М.","Слесарь",375]
[null,"Слесарь механосборочных работ",2193,"Данилов А.В.","Слесарь",375]
[null,"Слесарь механосборочных работ",2124,"Егоров А.Г.","Слесарь",375]
[null,"Слесарь механосборочных работ",1444,"Ефимов А.В.","Слесарь",375]
[null,"Слесарь механосборочных работ",1542,"Ефимов В.В.","Слесарь",375]
[null,"Слесарь механосборочных работ",1831,"Иванов Д.Н.","Слесарь",375]
[null,"Слесарь механосборочных работ",870,"Матвеев С.В.","Слесарь",375]
[null,"Слесарь механосборочных работ",792,"Мясников А.Б.","Слесарь",375]
[null,"Слесарь механосборочных работ",909,"Николаев А.В.","Слесарь",375]
[null,"Слесарь механосборочных работ",1493,"Паргеев Ф.В.","Слесарь",375]
[null,"Слесарь механосборочных работ",876,"Смирнов В.Н.","Слесарь",375]
[null,"Слесарь механосборочных работ",2114,"Старцев А.Ю.","Слесарь",375]
[null,"Слесарь механосборочных работ",861,"Терентьев Д.А.","Слесарь",375]
[null,"Слесарь механосборочных работ",2217,"Тяров Н.Ю.","Слесарь",375]
[null,"Слесарь механосборочных работ",2199,"Фомин Д.Ю.","Слесарь",375]
[null,"Слесарь механосборочных работ",1821,"Черепанов Г.В.","Слесарь",375]
[null,"Слесарь механосборочных работ",2002,"Яковлев О.Ю.","Слесарь",375]
[null,"Слесарь механосборочных работ",904,"Яшмолкин В.А.","Слесарь",375]
[null,"Слесарь механосборочных работ",1168,"Грачев С.А.","Слесарь",375]
[null,"Слесарь механосборочных работ",1356,"Григорьев А.М.","Слесарь",375]
[null,"Слесарь механосборочных работ",2196,"Емельянов О.О.","Слесарь",375]
[null,"Слесарь механосборочных работ",1709,"Яковлев С.М.","Слесарь",375]
[null,"Художник-оформитель по металлу",1006,"Николаев А.В.","Художник",375]
[null,"Художник-оформитель по металлу",933,"Трихалкина Н.П.","Художник",375]
[null,"Специалист по диагностике торм. систем",616,"Андреев В.Ю.","Диагност",455]
[null,"Специалист по диагностике торм. систем",91,"Андреев С.Н.","Диагност",455]
[null,"Специалист по диагностике торм. систем",682,"Иванов Е.М.","Диагност",455]
[null,"Специалист по диагностике торм. систем",986,"Тимофеев А.А.","Диагност",455]

{"sheet":"Свод","index":2,"n_rows":1000,"n_cols":23,"rows_kept":1000,"cut":false,"hidden":false,"merged":[[3,26,4,26],[3,17,4,17],[3,19,4,19],[3,20,4,20],[3,4,4,4],[3,5,4,5],[3,13,4,13],[3,14,4,14],[3,16,4,16],[3,10,4,10],[3,11,4,11],[3,7,4,7],[3,8,4,8],[3,37,4,37],[3,38,4,38],[1,0,2,2],[1,3,1,21],[2,3,2,21],[3,21,4,21],[4,0,4,2],[3,28,4,28],[3,29,4,29],[3,31,4,31],[3,32,4,32],[3,34,4,34],[3,35,4,35],[3,22,4,22],[3,23,4,23],[3,25,4,25]]}
[]
[null,null,null,"VIN наряда от"]
[null,null,null,{"$f":"ГЛАВНЫЙ!D8","v":0}]
["Смена, бригада","ФИО","Таб.№","Сумма","часы","КТУ","Сумма","часы","КТУ","Сумма","часы","КТУ","Сумма","часы","КТУ","Сумма","часы","КТУ","Сумма","часы","КТУ","Итого","Часы"]
["Сумма по нарядам за сутки",null,null,"ОА",null,null,"ПЭ",null,null,"РР",null,null,"ПУ",null,null,"Х",null,null,"Д"]
["Слесарь механосборочных работ","Башмаков Д.Р.",2108,null,null,null,null,null,null,null,null,null,null,null,null,null,null,null,null,null,null,{"$f":"D6+G6+J6+M6+P6+S6","v":0},{"$f":"E6+H6+K6+N6+Q6+T6","v":0}]
["Слесарь механосборочных работ","Белов С.М.",1705,null,null,null,null,null,null,null,null,null,null,null,null,null,null,null,null,null,null,{"$f":"D7+G7+J7+M7+P7+S7","v":0},{"$f":"E7+H7+K7+N7+Q7+T7","v":0}]
["Слесарь механосборочных работ","Васильев В.В.",726,null,null,null,null,null,null,null,null,null,null,null,null,null,null,null,null,null,null,0,0]
["Слесарь механосборочных работ","Васильев П.В.",1443,null,null,null,null,null,null,null,null,null,null,null,null,null,null,null,null,null,null,0,0]
["Слесарь механосборочных работ","Вишнев Н.Г.",1199,null,null,null,null,null,null,null,null,null,null,null,null,null,null,null,null,null,null,0,0]
["Слесарь механосборочных работ","Горшков В.Н.",1350,null,null,null,null,null,null,null,null,null,null,null,null,null,null,null,null,null,null,0,0]
["Слесарь механосборочных работ","Грачев А.А.",939,null,null,null,null,null,null,null,null,null,null,null,null,null,null,null,null,null,null,0,0]
["Слесарь механосборочных работ","Данилов Н.А.",1288,null,null,null,null,null,null,null,null,null,null,null,null,null,null,null,null,null,null,0,0]
["Слесарь механосборочных работ","Егоров А.А.",2120,null,null,null,null,null,null,null,null,null,null,null,null,null,null,null,null,null,null,0,0]
["Слесарь механосборочных работ","Енисеев С.Ю.",782,null,null,null,null,null,null,null,null,null,null,null,null,null,null,null,null,null,null,0,0]
["Слесарь механосборочных работ","Иванов А.С.",1712,null,null,null,null,null,null,null,null,null,null,null,null,null,null,null,null,null,null,0,0]
["Слесарь механосборочных работ","Иванов Д.Д.",2215,null,null,null,null,null,null,null,null,null,null,null,null,null,null,null,null,null,null,0,0]
["Слесарь механосборочных работ","Инжебейкин М.Е.",1581,null,null,null,null,null,null,null,null,null,null,null,null,null,null,null,null,null,null,0,0]
["Слесарь механосборочных работ","Карпов А.В.",1196,null,null,null,null,null,null,null,null,null,null,null,null,null,null,null,null,null,null,0,0]
["Слесарь механосборочных работ","Карпов Д.В.",1967,null,null,null,null,null,null,null,null,null,null,null,null,null,null,null,null,null,null,0,0]
["Слесарь механосборочных работ","Краснов Р.А.",1638,null,null,null,null,null,null,null,null,null,null,null,null,null,null,null,null,null,null,0,0]
["Слесарь механосборочных работ","Лазарев П.М.",236,null,null,null,null,null,null,null,null,null,null,null,null,null,null,null,null,null,null,0,0]
["Слесарь механосборочных работ","Майков А.В.",1715,null,null,null,null,null,null,null,null,null,null,null,null,null,null,null,null,null,null,0,0]
["Слесарь механосборочных работ","Мидюков Н.Ю.",1342,null,null,null,null,null,null,null,null,null,null,null,null,null,null,null,null,null,null,0,0]
["Слесарь механосборочных работ","Мразов А.Г.",1747,null,null,null,null,null,null,null,null,null,null,null,null,null,null,null,null,null,null,0,0]
["Слесарь механосборочных работ","Никитин Д.А.",2118,null,null,null,null,null,null,null,null,null,null,null,null,null,null,null,null,null,null,0,0]
["Слесарь механосборочных работ","Олаев А.Ф.",2053,null,null,null,null,null,null,null,null,null,null,null,null,null,null,null,null,null,null,0,0]
["Слесарь механосборочных работ","Тимофеев А.А.",2139,null,null,null,null,null,null,null,null,null,null,null,null,null,null,null,null,null,null,0,0]
["Слесарь механосборочных работ","Тимофеев М.А.",720,null,null,null,null,null,null,null,null,null,null,null,null,null,null,null,null,null,null,0,0]
["Слесарь механосборочных работ","Тихонов Ю.В.",803,null,null,null,null,null,null,null,null,null,null,null,null,null,null,null,null,null,null,0,0]
["Слесарь механосборочных работ","Ястребов С.Ю.",2210,null,null,null,null,null,null,null,null,null,null,null,null,null,null,null,null,null,null,0,0]
["Слесарь механосборочных работ","Ятмасов О.М.",172,null,null,null,null,null,null,null,null,null,null,null,null,null,null,null,null,null,null,0,0]
["Слесарь механосборочных работ","Аксендаров П.И.",1389,null,null,null,null,null,null,null,null,null,null,null,null,null,null,null,null,null,null,0,0]
["Слесарь механосборочных работ","Андреев С.В.",495,null,null,null,null,null,null,null,null,null,null,null,null,null,null,null,null,null,null,0,0]
["Слесарь механосборочных работ","Аптрейкин А.В.",2218,null,null,null,null,null,null,null,null,null,null,null,null,null,null,null,null,null,null,0,0]
["Слесарь механосборочных работ","Афанасьев В.И.",1619,null,null,null,null,null,null,null,null,null,null,null,null,null,null,null,null,null,null,0,0]
["Слесарь механосборочных работ","Бурцев М.В.",2022,null,null,null,null,null,null,null,null,null,null,null,null,null,null,null,null,null,null,0,0]
["Слесарь механосборочных работ","Валежников С.Н.",2085,null,null,null,null,null,null,null,null,null,null,null,null,null,null,null,null,null,null,0,0]
["Слесарь механосборочных работ","Ванюшкин В.Г.",801,null,null,null,null,null,null,null,null,null,null,null,null,null,null,null,null,null,null,0,0]
["Слесарь механосборочных работ","Васильев Е.М.",1344,null,null,null,null,null,null,null,null,null,null,null,null,null,null,null,null,null,null,0,0]
["Слесарь механосборочных работ","Васильев С.Ю.",873,null,null,null,null,null,null,null,null,null,null,null,null,null,null,null,null,null,null,0,0]
["Слесарь механосборочных работ","Волков А.А.",2209,null,null,null,null,null,null,null,null,null,null,null,null,null,null,null,null,null,null,0,0]
["Слесарь механосборочных работ","Гончаров А.М.",2208,null,null,null,null,null,null,null,null,null,null,null,null,null,null,null,null,null,null,0,0]
["Слесарь механосборочных работ","Данилов А.В.",2193,null,null,null,null,null,null,null,null,null,null,null,null,null,null,null,null,null,null,0,0]
["Слесарь механосборочных работ","Егоров А.Г.",2124,null,null,null,null,null,null,null,null,null,null,null,null,null,null,null,null,null,null,0,0]
["Слесарь механосборочных работ","Ефимов А.В.",1444,null,null,null,null,null,null,null,null,null,null,null,null,null,null,null,null,null,null,0,0]
["Слесарь механосборочных работ","Ефимов В.В.",1542,null,null,null,null,null,null,null,null,null,null,null,null,null,null,null,null,null,null,0,0]
["Слесарь механосборочных работ","Иванов Д.Н.",1831,null,null,null,null,null,null,null,null,null,null,null,null,null,null,null,null,null,null,0,0]
["Слесарь механосборочных работ","Матвеев С.В.",870,null,null,null,null,null,null,null,null,null,null,null,null,null,null,null,null,null,null,0,0]
["Слесарь механосборочных работ","Мясников А.Б.",792,null,null,null,null,null,null,null,null,null,null,null,null,null,null,null,null,null,null,0,0]
["Слесарь механосборочных работ","Николаев А.В.",909,null,null,null,null,null,null,null,null,null,null,null,null,null,null,null,null,null,null,0,0]
["Слесарь механосборочных работ","Паргеев Ф.В.",1493,null,null,null,null,null,null,null,null,null,null,null,null,null,null,null,null,null,null,0,0]
["Слесарь механосборочных работ","Смирнов В.Н.",876,null,null,null,null,null,null,null,null,null,null,null,null,null,null,null,null,null,null,0,0]
["Слесарь механосборочных работ","Старцев А.Ю.",2114,null,null,null,null,null,null,null,null,null,null,null,null,null,null,null,null,null,null,0,0]
["Слесарь механосборочных работ","Терентьев Д.А.",861,null,null,null,null,null,null,null,null,null,null,null,null,null,null,null,null,null,null,0,0]
["Слесарь механосборочных работ","Тяров Н.Ю.",2217,null,null,null,null,null,null,null,null,null,null,null,null,null,null,null,null,null,null,0,0]
["Слесарь механосборочных работ","Фомин Д.Ю.",2199,null,null,null,null,null,null,null,null,null,null,null,null,null,null,null,null,null,null,0,0]
["Слесарь механосборочных работ","Черепанов Г.В.",1821,null,null,null,null,null,null,null,null,null,null,null,null,null,null,null,null,null,null,0,0]
["Слесарь механосборочных работ","Яковлев О.Ю.",2002,null,null,null,null,null,null,null,null,null,null,null,null,null,null,null,null,null,null,0,0]
["Слесарь механосборочных работ","Яшмолкин В.А.",904,null,null,null,null,null,null,null,null,null,null,null,null,null,null,null,null,null,null,0,0]
["Слесарь механосборочных работ","Грачев С.А.",1168,null,null,null,null,null,null,null,null,null,null,null,null,null,null,null,null,null,null,0,0]
["Слесарь механосборочных работ","Григорьев А.М.",1356,null,null,null,null,null,null,null,null,null,null,null,null,null,null,null,null,null,null,0,0]
["Слесарь механосборочных работ","Емельянов О.О.",2196,null,null,null,null,null,null,null,null,null,null,null,null,null,null,null,null,null,null,0,0]
["Слесарь механосборочных работ","Яковлев С.М.",1709,null,null,null,null,null,null,null,null,null,null,null,null,null,null,null,null,null,null,0,0]
["Художник-оформитель по металлу","Николаев А.В.",1006,null,null,null,null,null,null,null,null,null,null,null,null,null,null,null,null,null,null,0,0]
["Художник-оформитель по металлу","Трихалкина Н.П.",933,null,null,null,null,null,null,null,null,null,null,null,null,null,null,null,null,null,null,0,0]
["Специалист по диагностике торм. систем","Андреев В.Ю.",616,null,null,null,null,null,null,null,null,null,null,null,null,null,null,null,null,null,null,0,0]
["Специалист по диагностике торм. систем","Андреев С.Н.",91,null,null,null,null,null,null,null,null,null,null,null,null,null,null,null,null,null,null,0,0]
["Специалист по диагностике торм. систем","Иванов Е.М.",682,null,null,null,null,null,null,null,null,null,null,null,null,null,null,null,null,null,null,0,0]
["Специалист по диагностике торм. систем","Тимофеев А.А.",986,null,null,null,null,null,null,null,null,null,null,null,null,null,null,null,null,null,null,0,0]
[null,null,null,null,null,null,null,null,null,null,null,null,null,null,null,null,null,null,null,null,null,{"$f":"D71+G71+J71+M71+P71+S71","v":0},{"$f":"E71+H71+K71+N71+Q71+T71","v":0}]
[null,null,null,null,null,null,null,null,null,null,null,null,null,null,null,null,null,null,null,null,null,0,0]
[null,null,null,null,null,null,null,null,null,null,null,null,null,null,null,null,null,null,null,null,null,0,0]
[null,null,null,null,null,null,null,null,null,null,null,null,null,null,null,null,null,null,null,null,null,0,0]
[null,null,null,null,null,null,null,null,null,null,null,null,null,null,null,null,null,null,null,null,null,0,0]
[null,null,null,null,null,null,null,null,null,null,null,null,null,null,null,null,null,null,null,null,null,0,0]
[null,null,null,null,null,null,null,null,null,null,null,null,null,null,null,null,null,null,null,null,null,0,0]
[null,null,null,null,null,null,null,null,null,null,null,null,null,null,null,null,null,null,null,null,null,0,0]
[null,null,null,null,null,null,null,null,null,null,null,null,null,null,null,null,null,null,null,null,null,0,0]
[null,null,null,null,null,null,null,null,null,null,null,null,null,null,null,null,null,null,null,null,null,0,0]
[null,null,null,null,null,null,null,null,null,null,null,null,null,null,null,null,null,null,null,null,null,0,0]
[null,null,null,null,null,null,null,null,null,null,null,null,null,null,null,null,null,null,null,null,null,0,0]
[null,null,null,null,null,null,null,null,null,null,null,null,null,null,null,null,null,null,null,null,null,0,0]
[null,null,null,null,null,null,null,null,null,null,null,null,null,null,null,null,null,null,null,null,null,0,0]
[null,null,null,null,null,null,null,null,null,null,null,null,null,null,null,null,null,null,null,null,null,0,0]
[null,null,null,null,null,null,null,null,null,null,null,null,null,null,null,null,null,null,null,null,null,0,0]
[null,null,null,null,null,null,null,null,null,null,null,null,null,null,null,null,null,null,null,null,null,0,0]
[null,null,null,null,null,null,null,null,null,null,null,null,null,null,null,null,null,null,null,null,null,0,0]
[null,null,null,null,null,null,null,null,null,null,null,null,null,null,null,null,null,null,null,null,null,0,0]
[null,null,null,null,null,null,null,null,null,null,null,null,null,null,null,null,null,null,null,null,null,0,0]
[null,null,null,null,null,null,null,null,null,null,null,null,null,null,null,null,null,null,null,null,null,0,0]
[null,null,null,null,null,null,null,null,null,null,null,null,null,null,null,null,null,null,null,null,null,0,0]
[null,null,null,null,null,null,null,null,null,null,null,null,null,null,null,null,null,null,null,null,null,0,0]
[null,null,null,null,null,null,null,null,null,null,null,null,null,null,null,null,null,null,null,null,null,0,0]
[null,null,null,null,null,null,null,null,null,null,null,null,null,null,null,null,null,null,null,null,null,0,0]
[null,null,null,null,null,null,null,null,null,null,null,null,null,null,null,null,null,null,null,null,null,0,0]
[null,null,null,null,null,null,null,null,null,null,null,null,null,null,null,null,null,null,null,null,null,0,0]
[null,null,null,null,null,null,null,null,null,null,null,null,null,null,null,null,null,null,null,null,null,0,0]
[null,null,null,null,null,null,null,null,null,null,null,null,null,null,null,null,null,null,null,null,null,0,0]
[null,null,null,null,null,null,null,null,null,null,null,null,null,null,null,null,null,null,null,null,null,0,0]
[null,null,null,null,null,null,null,null,null,null,null,null,null,null,null,null,null,null,null,null,null,0,0]
[null,null,null,null,null,null,null,null,null,null,null,null,null,null,null,null,null,null,null,null,null,0,0]
[null,null,null,null,null,null,null,null,null,null,null,null,null,null,null,null,null,null,null,null,null,0,0]
[null,null,null,null,null,null,null,null,null,null,null,null,null,null,null,null,null,null,null,null,null,0,0]
[null,null,null,null,null,null,null,null,null,null,null,null,null,null,null,null,null,null,null,null,null,0,0]
[null,null,null,null,null,null,null,null,null,null,null,null,null,null,null,null,null,null,null,null,null,0,0]
[null,null,null,null,null,null,null,null,null,null,null,null,null,null,null,null,null,null,null,null,null,0,0]
[null,null,null,null,null,null,null,null,null,null,null,null,null,null,null,null,null,null,null,null,null,0,0]
[null,null,null,null,null,null,null,null,null,null,null,null,null,null,null,null,null,null,null,null,null,0,0]
[null,null,null,null,null,null,null,null,null,null,null,null,null,null,null,null,null,null,null,null,null,0,0]
[null,null,null,null,null,null,null,null,null,null,null,null,null,null,null,null,null,null,null,null,null,0,0]
[null,null,null,null,null,null,null,null,null,null,null,null,null,null,null,null,null,null,null,null,null,0,0]
[null,null,null,null,null,null,null,null,null,null,null,null,null,null,null,null,null,null,null,null,null,0,0]
[null,null,null,null,null,null,null,null,null,null,null,null,null,null,null,null,null,null,null,null,null,0,0]
[null,null,null,null,null,null,null,null,null,null,null,null,null,null,null,null,null,null,null,null,null,0,0]
[null,null,null,null,null,null,null,null,null,null,null,null,null,null,null,null,null,null,null,null,null,0,0]
[null,null,null,null,null,null,null,null,null,null,null,null,null,null,null,null,null,null,null,null,null,0,0]
[null,null,null,null,null,null,null,null,null,null,null,null,null,null,null,null,null,null,null,null,null,0,0]
[null,null,null,null,null,null,null,null,null,null,null,null,null,null,null,null,null,null,null,null,null,0,0]
[null,null,null,null,null,null,null,null,null,null,null,null,null,null,null,null,null,null,null,null,null,0,0]
[null,null,null,null,null,null,null,null,null,null,null,null,null,null,null,null,null,null,null,null,null,0,0]
[null,null,null,null,null,null,null,null,null,null,null,null,null,null,null,null,null,null,null,null,null,0,0]
[null,null,null,null,null,null,null,null,null,null,null,null,null,null,null,null,null,null,null,null,null,0,0]
[null,null,null,null,null,null,null,null,null,null,null,null,null,null,null,null,null,null,null,null,null,0,0]
[null,null,null,null,null,null,null,null,null,null,null,null,null,null,null,null,null,null,null,null,null,0,0]
[null,null,null,null,null,null,null,null,null,null,null,null,null,null,null,null,null,null,null,null,null,0,0]
[null,null,null,null,null,null,null,null,null,null,null,null,null,null,null,null,null,null,null,null,null,0,0]
[null,null,null,null,null,null,null,null,null,null,null,null,null,null,null,null,null,null,null,null,null,0,0]
[null,null,null,null,null,null,null,null,null,null,null,null,null,null,null,null,null,null,null,null,null,0,0]
[null,null,null,null,null,null,null,null,null,null,null,null,null,null,null,null,null,null,null,null,null,0,0]
[null,null,null,null,null,null,null,null,null,null,null,null,null,null,null,null,null,null,null,null,null,0,0]
[null,null,null,null,null,null,null,null,null,null,null,null,null,null,null,null,null,null,null,null,null,0,0]
[null,null,null,null,null,null,null,null,null,null,null,null,null,null,null,null,null,null,null,null,null,0,0]
[null,null,null,null,null,null,null,null,null,null,null,null,null,null,null,null,null,null,null,null,null,0,0]
[null,null,null,null,null,null,null,null,null,null,null,null,null,null,null,null,null,null,null,null,null,{"$f":"D135+G135+J135+M135+P135+S135","v":0},{"$f":"E135+H135+K135+N135+Q135+T135","v":0}]
[null,null,null,null,null,null,null,null,null,null,null,null,null,null,null,null,null,null,null,null,null,0,0]
[null,null,null,null,null,null,null,null,null,null,null,null,null,null,null,null,null,null,null,null,null,0,0]
[null,null,null,null,null,null,null,null,null,null,null,null,null,null,null,null,null,null,null,null,null,0,0]
[null,null,null,null,null,null,null,null,null,null,null,null,null,null,null,null,null,null,null,null,null,0,0]
[null,null,null,null,null,null,null,null,null,null,null,null,null,null,null,null,null,null,null,null,null,0,0]
[null,null,null,null,null,null,null,null,null,null,null,null,null,null,null,null,null,null,null,null,null,0,0]
[null,null,null,null,null,null,null,null,null,null,null,null,null,null,null,null,null,null,null,null,null,0,0]
[null,null,null,null,null,null,null,null,null,null,null,null,null,null,null,null,null,null,null,null,null,0,0]
[null,null,null,null,null,null,null,null,null,null,null,null,null,null,null,null,null,null,null,null,null,0,0]
[null,null,null,null,null,null,null,null,null,null,null,null,null,null,null,null,null,null,null,null,null,0,0]
[null,null,null,null,null,null,null,null,null,null,null,null,null,null,null,null,null,null,null,null,null,0,0]
[null,null,null,null,null,null,null,null,null,null,null,null,null,null,null,null,null,null,null,null,null,0,0]
[null,null,null,null,null,null,null,null,null,null,null,null,null,null,null,null,null,null,null,null,null,0,0]
[null,null,null,null,null,null,null,null,null,null,null,null,null,null,null,null,null,null,null,null,null,0,0]
[null,null,null,null,null,null,null,null,null,null,null,null,null,null,null,null,null,null,null,null,null,0,0]
[null,null,null,null,null,null,null,null,null,null,null,null,null,null,null,null,null,null,null,null,null,0,0]
[null,null,null,null,null,null,null,null,null,null,null,null,null,null,null,null,null,null,null,null,null,0,0]
[null,null,null,null,null,null,null,null,null,null,null,null,null,null,null,null,null,null,null,null,null,0,0]
[null,null,null,null,null,null,null,null,null,null,null,null,null,null,null,null,null,null,null,null,null,0,0]
[null,null,null,null,null,null,null,null,null,null,null,null,null,null,null,null,null,null,null,null,null,0,0]
[null,null,null,null,null,null,null,null,null,null,null,null,null,null,null,null,null,null,null,null,null,0,0]
[null,null,null,null,null,null,null,null,null,null,null,null,null,null,null,null,null,null,null,null,null,0,0]
[null,null,null,null,null,null,null,null,null,null,null,null,null,null,null,null,null,null,null,null,null,0,0]
[null,null,null,null,null,null,null,null,null,null,null,null,null,null,null,null,null,null,null,null,null,0,0]
[null,null,null,null,null,null,null,null,null,null,null,null,null,null,null,null,null,null,null,null,null,0,0]
[null,null,null,null,null,null,null,null,null,null,null,null,null,null,null,null,null,null,null,null,null,0,0]
[null,null,null,null,null,null,null,null,null,null,null,null,null,null,null,null,null,null,null,null,null,0,0]
[null,null,null,null,null,null,null,null,null,null,null,null,null,null,null,null,null,null,null,null,null,0,0]
[null,null,null,null,null,null,null,null,null,null,null,null,null,null,null,null,null,null,null,null,null,0,0]
[null,null,null,null,null,null,null,null,null,null,null,null,null,null,null,null,null,null,null,null,null,0,0]
[null,null,null,null,null,null,null,null,null,null,null,null,null,null,null,null,null,null,null,null,null,0,0]
[null,null,null,null,null,null,null,null,null,null,null,null,null,null,null,null,null,null,null,null,null,0,0]
[null,null,null,null,null,null,null,null,null,null,null,null,null,null,null,null,null,null,null,null,null,0,0]
[null,null,null,null,null,null,null,null,null,null,null,null,null,null,null,null,null,null,null,null,null,0,0]
[null,null,null,null,null,null,null,null,null,null,null,null,null,null,null,null,null,null,null,null,null,0,0]
[null,null,null,null,null,null,null,null,null,null,null,null,null,null,null,null,null,null,null,null,null,0,0]
[null,null,null,null,null,null,null,null,null,null,null,null,null,null,null,null,null,null,null,null,null,0,0]
[null,null,null,null,null,null,null,null,null,null,null,null,null,null,null,null,null,null,null,null,null,0,0]
[null,null,null,null,null,null,null,null,null,null,null,null,null,null,null,null,null,null,null,null,null,0,0]
[null,null,null,null,null,null,null,null,null,null,null,null,null,null,null,null,null,null,null,null,null,0,0]
[null,null,null,null,null,null,null,null,null,null,null,null,null,null,null,null,null,null,null,null,null,0,0]
[null,null,null,null,null,null,null,null,null,null,null,null,null,null,null,null,null,null,null,null,null,0,0]
[null,null,null,null,null,null,null,null,null,null,null,null,null,null,null,null,null,null,null,null,null,0,0]
[null,null,null,null,null,null,null,null,null,null,null,null,null,null,null,null,null,null,null,null,null,0,0]
[null,null,null,null,null,null,null,null,null,null,null,null,null,null,null,null,null,null,null,null,null,0,0]
[null,null,null,null,null,null,null,null,null,null,null,null,null,null,null,null,null,null,null,null,null,0,0]
[null,null,null,null,null,null,null,null,null,null,null,null,null,null,null,null,null,null,null,null,null,0,0]
[null,null,null,null,null,null,null,null,null,null,null,null,null,null,null,null,null,null,null,null,null,0,0]
[null,null,null,null,null,null,null,null,null,null,null,null,null,null,null,null,null,null,null,null,null,0,0]
[null,null,null,null,null,null,null,null,null,null,null,null,null,null,null,null,null,null,null,null,null,0,0]
[null,null,null,null,null,null,null,null,null,null,null,null,null,null,null,null,null,null,null,null,null,0,0]
[null,null,null,null,null,null,null,null,null,null,null,null,null,null,null,null,null,null,null,null,null,0,0]
[null,null,null,null,null,null,null,null,null,null,null,null,null,null,null,null,null,null,null,null,null,0,0]
[null,null,null,null,null,null,null,null,null,null,null,null,null,null,null,null,null,null,null,null,null,0,0]
[null,null,null,null,null,null,null,null,null,null,null,null,null,null,null,null,null,null,null,null,null,0,0]
[null,null,null,null,null,null,null,null,null,null,null,null,null,null,null,null,null,null,null,null,null,0,0]
[null,null,null,null,null,null,null,null,null,null,null,null,null,null,null,null,null,null,null,null,null,0,0]
[null,null,null,null,null,null,null,null,null,null,null,null,null,null,null,null,null,null,null,null,null,0,0]
[null,null,null,null,null,null,null,null,null,null,null,null,null,null,null,null,null,null,null,null,null,0,0]
[null,null,null,null,null,null,null,null,null,null,null,null,null,null,null,null,null,null,null,null,null,0,0]
[null,null,null,null,null,null,null,null,null,null,null,null,null,null,null,null,null,null,null,null,null,0,0]
[null,null,null,null,null,null,null,null,null,null,null,null,null,null,null,null,null,null,null,null,null,0,0]
[null,null,null,null,null,null,null,null,null,null,null,null,null,null,null,null,null,null,null,null,null,0,0]
[null,null,null,null,null,null,null,null,null,null,null,null,null,null,null,null,null,null,null,null,null,{"$f":"D199+G199+J199+M199+P199+S199","v":0},{"$f":"E199+H199+K199+N199+Q199+T199","v":0}]
[null,null,null,null,null,null,null,null,null,null,null,null,null,null,null,null,null,null,null,null,null,0,0]
[null,null,null,null,null,null,null,null,null,null,null,null,null,null,null,null,null,null,null,null,null,0,0]
[null,null,null,null,null,null,null,null,null,null,null,null,null,null,null,null,null,null,null,null,null,0,0]
[null,null,null,null,null,null,null,null,null,null,null,null,null,null,null,null,null,null,null,null,null,0,0]
[null,null,null,null,null,null,null,null,null,null,null,null,null,null,null,null,null,null,null,null,null,0,0]
[null,null,null,null,null,null,null,null,null,null,null,null,null,null,null,null,null,null,null,null,null,0,0]
[null,null,null,null,null,null,null,null,null,null,null,null,null,null,null,null,null,null,null,null,null,0,0]
[null,null,null,null,null,null,null,null,null,null,null,null,null,null,null,null,null,null,null,null,null,0,0]
[null,null,null,null,null,null,null,null,null,null,null,null,null,null,null,null,null,null,null,null,null,0,0]
[null,null,null,null,null,null,null,null,null,null,null,null,null,null,null,null,null,null,null,null,null,0,0]
[null,null,null,null,null,null,null,null,null,null,null,null,null,null,null,null,null,null,null,null,null,0,0]
[null,null,null,null,null,null,null,null,null,null,null,null,null,null,null,null,null,null,null,null,null,0,0]
[null,null,null,null,null,null,null,null,null,null,null,null,null,null,null,null,null,null,null,null,null,0,0]
[null,null,null,null,null,null,null,null,null,null,null,null,null,null,null,null,null,null,null,null,null,0,0]
[null,null,null,null,null,null,null,null,null,null,null,null,null,null,null,null,null,null,null,null,null,0,0]
[null,null,null,null,null,null,null,null,null,null,null,null,null,null,null,null,null,null,null,null,null,0,0]
[null,null,null,null,null,null,null,null,null,null,null,null,null,null,null,null,null,null,null,null,null,0,0]
[null,null,null,null,null,null,null,null,null,null,null,null,null,null,null,null,null,null,null,null,null,0,0]
[null,null,null,null,null,null,null,null,null,null,null,null,null,null,null,null,null,null,null,null,null,0,0]
[null,null,null,null,null,null,null,null,null,null,null,null,null,null,null,null,null,null,null,null,null,0,0]
[null,null,null,null,null,null,null,null,null,null,null,null,null,null,null,null,null,null,null,null,null,0,0]
[null,null,null,null,null,null,null,null,null,null,null,null,null,null,null,null,null,null,null,null,null,0,0]
[null,null,null,null,null,null,null,null,null,null,null,null,null,null,null,null,null,null,null,null,null,0,0]
[null,null,null,null,null,null,null,null,null,null,null,null,null,null,null,null,null,null,null,null,null,0,0]
[null,null,null,null,null,null,null,null,null,null,null,null,null,null,null,null,null,null,null,null,null,0,0]
[null,null,null,null,null,null,null,null,null,null,null,null,null,null,null,null,null,null,null,null,null,0,0]
[null,null,null,null,null,null,null,null,null,null,null,null,null,null,null,null,null,null,null,null,null,0,0]
[null,null,null,null,null,null,null,null,null,null,null,null,null,null,null,null,null,null,null,null,null,0,0]
[null,null,null,null,null,null,null,null,null,null,null,null,null,null,null,null,null,null,null,null,null,0,0]
[null,null,null,null,null,null,null,null,null,null,null,null,null,null,null,null,null,null,null,null,null,0,0]
[null,null,null,null,null,null,null,null,null,null,null,null,null,null,null,null,null,null,null,null,null,0,0]
[null,null,null,null,null,null,null,null,null,null,null,null,null,null,null,null,null,null,null,null,null,0,0]
[null,null,null,null,null,null,null,null,null,null,null,null,null,null,null,null,null,null,null,null,null,0,0]
[null,null,null,null,null,null,null,null,null,null,null,null,null,null,null,null,null,null,null,null,null,0,0]
[null,null,null,null,null,null,null,null,null,null,null,null,null,null,null,null,null,null,null,null,null,0,0]
[null,null,null,null,null,null,null,null,null,null,null,null,null,null,null,null,null,null,null,null,null,0,0]
[null,null,null,null,null,null,null,null,null,null,null,null,null,null,null,null,null,null,null,null,null,0,0]
[null,null,null,null,null,null,null,null,null,null,null,null,null,null,null,null,null,null,null,null,null,0,0]
[null,null,null,null,null,null,null,null,null,null,null,null,null,null,null,null,null,null,null,null,null,0,0]
[null,null,null,null,null,null,null,null,null,null,null,null,null,null,null,null,null,null,null,null,null,0,0]
[null,null,null,null,null,null,null,null,null,null,null,null,null,null,null,null,null,null,null,null,null,0,0]
[null,null,null,null,null,null,null,null,null,null,null,null,null,null,null,null,null,null,null,null,null,0,0]
[null,null,null,null,null,null,null,null,null,null,null,null,null,null,null,null,null,null,null,null,null,0,0]
[null,null,null,null,null,null,null,null,null,null,null,null,null,null,null,null,null,null,null,null,null,0,0]
[null,null,null,null,null,null,null,null,null,null,null,null,null,null,null,null,null,null,null,null,null,0,0]
[null,null,null,null,null,null,null,null,null,null,null,null,null,null,null,null,null,null,null,null,null,0,0]
[null,null,null,null,null,null,null,null,null,null,null,null,null,null,null,null,null,null,null,null,null,0,0]
[null,null,null,null,null,null,null,null,null,null,null,null,null,null,null,null,null,null,null,null,null,0,0]
[null,null,null,null,null,null,null,null,null,null,null,null,null,null,null,null,null,null,null,null,null,0,0]
[null,null,null,null,null,null,null,null,null,null,null,null,null,null,null,null,null,null,null,null,null,0,0]
[null,null,null,null,null,null,null,null,null,null,null,null,null,null,null,null,null,null,null,null,null,0,0]
[null,null,null,null,null,null,null,null,null,null,null,null,null,null,null,null,null,null,null,null,null,0,0]
[null,null,null,null,null,null,null,null,null,null,null,null,null,null,null,null,null,null,null,null,null,0,0]
[null,null,null,null,null,null,null,null,null,null,null,null,null,null,null,null,null,null,null,null,null,0,0]
[null,null,null,null,null,null,null,null,null,null,null,null,null,null,null,null,null,null,null,null,null,0,0]
[null,null,null,null,null,null,null,null,null,null,null,null,null,null,null,null,null,null,null,null,null,0,0]
[null,null,null,null,null,null,null,null,null,null,null,null,null,null,null,null,null,null,null,null,null,0,0]
[null,null,null,null,null,null,null,null,null,null,null,null,null,null,null,null,null,null,null,null,null,0,0]
[null,null,null,null,null,null,null,null,null,null,null,null,null,null,null,null,null,null,null,null,null,0,0]
[null,null,null,null,null,null,null,null,null,null,null,null,null,null,null,null,null,null,null,null,null,0,0]
[null,null,null,null,null,null,null,null,null,null,null,null,null,null,null,null,null,null,null,null,null,0,0]
[null,null,null,null,null,null,null,null,null,null,null,null,null,null,null,null,null,null,null,null,null,0,0]
[null,null,null,null,null,null,null,null,null,null,null,null,null,null,null,null,null,null,null,null,null,0,0]
[null,null,null,null,null,null,null,null,null,null,null,null,null,null,null,null,null,null,null,null,null,{"$f":"D263+G263+J263+M263+P263+S263","v":0},{"$f":"E263+H263+K263+N263+Q263+T263","v":0}]
[null,null,null,null,null,null,null,null,null,null,null,null,null,null,null,null,null,null,null,null,null,0,0]
[null,null,null,null,null,null,null,null,null,null,null,null,null,null,null,null,null,null,null,null,null,0,0]
[null,null,null,null,null,null,null,null,null,null,null,null,null,null,null,null,null,null,null,null,null,0,0]
[null,null,null,null,null,null,null,null,null,null,null,null,null,null,null,null,null,null,null,null,null,0,0]
[null,null,null,null,null,null,null,null,null,null,null,null,null,null,null,null,null,null,null,null,null,0,0]
[null,null,null,null,null,null,null,null,null,null,null,null,null,null,null,null,null,null,null,null,null,0,0]
[null,null,null,null,null,null,null,null,null,null,null,null,null,null,null,null,null,null,null,null,null,0,0]
[null,null,null,null,null,null,null,null,null,null,null,null,null,null,null,null,null,null,null,null,null,0,0]
[null,null,null,null,null,null,null,null,null,null,null,null,null,null,null,null,null,null,null,null,null,0,0]
[null,null,null,null,null,null,null,null,null,null,null,null,null,null,null,null,null,null,null,null,null,0,0]
[null,null,null,null,null,null,null,null,null,null,null,null,null,null,null,null,null,null,null,null,null,0,0]
[null,null,null,null,null,null,null,null,null,null,null,null,null,null,null,null,null,null,null,null,null,0,0]
[null,null,null,null,null,null,null,null,null,null,null,null,null,null,null,null,null,null,null,null,null,0,0]
[null,null,null,null,null,null,null,null,null,null,null,null,null,null,null,null,null,null,null,null,null,0,0]
[null,null,null,null,null,null,null,null,null,null,null,null,null,null,null,null,null,null,null,null,null,0,0]
[null,null,null,null,null,null,null,null,null,null,null,null,null,null,null,null,null,null,null,null,null,0,0]
[null,null,null,null,null,null,null,null,null,null,null,null,null,null,null,null,null,null,null,null,null,0,0]
[null,null,null,null,null,null,null,null,null,null,null,null,null,null,null,null,null,null,null,null,null,0,0]
[null,null,null,null,null,null,null,null,null,null,null,null,null,null,null,null,null,null,null,null,null,0,0]
[null,null,null,null,null,null,null,null,null,null,null,null,null,null,null,null,null,null,null,null,null,0,0]
[null,null,null,null,null,null,null,null,null,null,null,null,null,null,null,null,null,null,null,null,null,0,0]
[null,null,null,null,null,null,null,null,null,null,null,null,null,null,null,null,null,null,null,null,null,0,0]
[null,null,null,null,null,null,null,null,null,null,null,null,null,null,null,null,null,null,null,null,null,0,0]
[null,null,null,null,null,null,null,null,null,null,null,null,null,null,null,null,null,null,null,null,null,0,0]
[null,null,null,null,null,null,null,null,null,null,null,null,null,null,null,null,null,null,null,null,null,0,0]
[null,null,null,null,null,null,null,null,null,null,null,null,null,null,null,null,null,null,null,null,null,0,0]
[null,null,null,null,null,null,null,null,null,null,null,null,null,null,null,null,null,null,null,null,null,0,0]
[null,null,null,null,null,null,null,null,null,null,null,null,null,null,null,null,null,null,null,null,null,0,0]
[null,null,null,null,null,null,null,null,null,null,null,null,null,null,null,null,null,null,null,null,null,0,0]
[null,null,null,null,null,null,null,null,null,null,null,null,null,null,null,null,null,null,null,null,null,0,0]
[null,null,null,null,null,null,null,null,null,null,null,null,null,null,null,null,null,null,null,null,null,0,0]
[null,null,null,null,null,null,null,null,null,null,null,null,null,null,null,null,null,null,null,null,null,0,0]
[null,null,null,null,null,null,null,null,null,null,null,null,null,null,null,null,null,null,null,null,null,0,0]
[null,null,null,null,null,null,null,null,null,null,null,null,null,null,null,null,null,null,null,null,null,0,0]
[null,null,null,null,null,null,null,null,null,null,null,null,null,null,null,null,null,null,null,null,null,0,0]
[null,null,null,null,null,null,null,null,null,null,null,null,null,null,null,null,null,null,null,null,null,0,0]
[null,null,null,null,null,null,null,null,null,null,null,null,null,null,null,null,null,null,null,null,null,0,0]
[null,null,null,null,null,null,null,null,null,null,null,null,null,null,null,null,null,null,null,null,null,0,0]
[null,null,null,null,null,null,null,null,null,null,null,null,null,null,null,null,null,null,null,null,null,0,0]
[null,null,null,null,null,null,null,null,null,null,null,null,null,null,null,null,null,null,null,null,null,0,0]
[null,null,null,null,null,null,null,null,null,null,null,null,null,null,null,null,null,null,null,null,null,0,0]
[null,null,null,null,null,null,null,null,null,null,null,null,null,null,null,null,null,null,null,null,null,0,0]
[null,null,null,null,null,null,null,null,null,null,null,null,null,null,null,null,null,null,null,null,null,0,0]
[null,null,null,null,null,null,null,null,null,null,null,null,null,null,null,null,null,null,null,null,null,0,0]
[null,null,null,null,null,null,null,null,null,null,null,null,null,null,null,null,null,null,null,null,null,0,0]
[null,null,null,null,null,null,null,null,null,null,null,null,null,null,null,null,null,null,null,null,null,0,0]
[null,null,null,null,null,null,null,null,null,null,null,null,null,null,null,null,null,null,null,null,null,0,0]
[null,null,null,null,null,null,null,null,null,null,null,null,null,null,null,null,null,null,null,null,null,0,0]
[null,null,null,null,null,null,null,null,null,null,null,null,null,null,null,null,null,null,null,null,null,0,0]
[null,null,null,null,null,null,null,null,null,null,null,null,null,null,null,null,null,null,null,null,null,0,0]
[null,null,null,null,null,null,null,null,null,null,null,null,null,null,null,null,null,null,null,null,null,0,0]
[null,null,null,null,null,null,null,null,null,null,null,null,null,null,null,null,null,null,null,null,null,0,0]
[null,null,null,null,null,null,null,null,null,null,null,null,null,null,null,null,null,null,null,null,null,0,0]
[null,null,null,null,null,null,null,null,null,null,null,null,null,null,null,null,null,null,null,null,null,0,0]
[null,null,null,null,null,null,null,null,null,null,null,null,null,null,null,null,null,null,null,null,null,0,0]
[null,null,null,null,null,null,null,null,null,null,null,null,null,null,null,null,null,null,null,null,null,0,0]
[null,null,null,null,null,null,null,null,null,null,null,null,null,null,null,null,null,null,null,null,null,0,0]
[null,null,null,null,null,null,null,null,null,null,null,null,null,null,null,null,null,null,null,null,null,0,0]
[null,null,null,null,null,null,null,null,null,null,null,null,null,null,null,null,null,null,null,null,null,0,0]
[null,null,null,null,null,null,null,null,null,null,null,null,null,null,null,null,null,null,null,null,null,0,0]
[null,null,null,null,null,null,null,null,null,null,null,null,null,null,null,null,null,null,null,null,null,0,0]
[null,null,null,null,null,null,null,null,null,null,null,null,null,null,null,null,null,null,null,null,null,0,0]
[null,null,null,null,null,null,null,null,null,null,null,null,null,null,null,null,null,null,null,null,null,0,0]
[null,null,null,null,null,null,null,null,null,null,null,null,null,null,null,null,null,null,null,null,null,{"$f":"D327+G327+J327+M327+P327+S327","v":0},{"$f":"E327+H327+K327+N327+Q327+T327","v":0}]
[null,null,null,null,null,null,null,null,null,null,null,null,null,null,null,null,null,null,null,null,null,0,0]
[null,null,null,null,null,null,null,null,null,null,null,null,null,null,null,null,null,null,null,null,null,0,0]
[null,null,null,null,null,null,null,null,null,null,null,null,null,null,null,null,null,null,null,null,null,0,0]
[null,null,null,null,null,null,null,null,null,null,null,null,null,null,null,null,null,null,null,null,null,0,0]
[null,null,null,null,null,null,null,null,null,null,null,null,null,null,null,null,null,null,null,null,null,0,0]
[null,null,null,null,null,null,null,null,null,null,null,null,null,null,null,null,null,null,null,null,null,0,0]
[null,null,null,null,null,null,null,null,null,null,null,null,null,null,null,null,null,null,null,null,null,0,0]
[null,null,null,null,null,null,null,null,null,null,null,null,null,null,null,null,null,null,null,null,null,0,0]
[null,null,null,null,null,null,null,null,null,null,null,null,null,null,null,null,null,null,null,null,null,0,0]
[null,null,null,null,null,null,null,null,null,null,null,null,null,null,null,null,null,null,null,null,null,0,0]
[null,null,null,null,null,null,null,null,null,null,null,null,null,null,null,null,null,null,null,null,null,0,0]
[null,null,null,null,null,null,null,null,null,null,null,null,null,null,null,null,null,null,null,null,null,0,0]
[null,null,null,null,null,null,null,null,null,null,null,null,null,null,null,null,null,null,null,null,null,0,0]
[null,null,null,null,null,null,null,null,null,null,null,null,null,null,null,null,null,null,null,null,null,0,0]
[null,null,null,null,null,null,null,null,null,null,null,null,null,null,null,null,null,null,null,null,null,0,0]
[null,null,null,null,null,null,null,null,null,null,null,null,null,null,null,null,null,null,null,null,null,0,0]
[null,null,null,null,null,null,null,null,null,null,null,null,null,null,null,null,null,null,null,null,null,0,0]
[null,null,null,null,null,null,null,null,null,null,null,null,null,null,null,null,null,null,null,null,null,0,0]
[null,null,null,null,null,null,null,null,null,null,null,null,null,null,null,null,null,null,null,null,null,0,0]
[null,null,null,null,null,null,null,null,null,null,null,null,null,null,null,null,null,null,null,null,null,0,0]
[null,null,null,null,null,null,null,null,null,null,null,null,null,null,null,null,null,null,null,null,null,0,0]
[null,null,null,null,null,null,null,null,null,null,null,null,null,null,null,null,null,null,null,null,null,0,0]
[null,null,null,null,null,null,null,null,null,null,null,null,null,null,null,null,null,null,null,null,null,0,0]
[null,null,null,null,null,null,null,null,null,null,null,null,null,null,null,null,null,null,null,null,null,0,0]
[null,null,null,null,null,null,null,null,null,null,null,null,null,null,null,null,null,null,null,null,null,0,0]
[null,null,null,null,null,null,null,null,null,null,null,null,null,null,null,null,null,null,null,null,null,0,0]
[null,null,null,null,null,null,null,null,null,null,null,null,null,null,null,null,null,null,null,null,null,0,0]
[null,null,null,null,null,null,null,null,null,null,null,null,null,null,null,null,null,null,null,null,null,0,0]
[null,null,null,null,null,null,null,null,null,null,null,null,null,null,null,null,null,null,null,null,null,0,0]
[null,null,null,null,null,null,null,null,null,null,null,null,null,null,null,null,null,null,null,null,null,0,0]
[null,null,null,null,null,null,null,null,null,null,null,null,null,null,null,null,null,null,null,null,null,0,0]
[null,null,null,null,null,null,null,null,null,null,null,null,null,null,null,null,null,null,null,null,null,0,0]
[null,null,null,null,null,null,null,null,null,null,null,null,null,null,null,null,null,null,null,null,null,0,0]
[null,null,null,null,null,null,null,null,null,null,null,null,null,null,null,null,null,null,null,null,null,0,0]
[null,null,null,null,null,null,null,null,null,null,null,null,null,null,null,null,null,null,null,null,null,0,0]
[null,null,null,null,null,null,null,null,null,null,null,null,null,null,null,null,null,null,null,null,null,0,0]
[null,null,null,null,null,null,null,null,null,null,null,null,null,null,null,null,null,null,null,null,null,0,0]
[null,null,null,null,null,null,null,null,null,null,null,null,null,null,null,null,null,null,null,null,null,0,0]
[null,null,null,null,null,null,null,null,null,null,null,null,null,null,null,null,null,null,null,null,null,0,0]
[null,null,null,null,null,null,null,null,null,null,null,null,null,null,null,null,null,null,null,null,null,0,0]
[null,null,null,null,null,null,null,null,null,null,null,null,null,null,null,null,null,null,null,null,null,0,0]
[null,null,null,null,null,null,null,null,null,null,null,null,null,null,null,null,null,null,null,null,null,0,0]
[null,null,null,null,null,null,null,null,null,null,null,null,null,null,null,null,null,null,null,null,null,0,0]
[null,null,null,null,null,null,null,null,null,null,null,null,null,null,null,null,null,null,null,null,null,0,0]
[null,null,null,null,null,null,null,null,null,null,null,null,null,null,null,null,null,null,null,null,null,0,0]
[null,null,null,null,null,null,null,null,null,null,null,null,null,null,null,null,null,null,null,null,null,0,0]
[null,null,null,null,null,null,null,null,null,null,null,null,null,null,null,null,null,null,null,null,null,0,0]
[null,null,null,null,null,null,null,null,null,null,null,null,null,null,null,null,null,null,null,null,null,0,0]
[null,null,null,null,null,null,null,null,null,null,null,null,null,null,null,null,null,null,null,null,null,0,0]
[null,null,null,null,null,null,null,null,null,null,null,null,null,null,null,null,null,null,null,null,null,0,0]
[null,null,null,null,null,null,null,null,null,null,null,null,null,null,null,null,null,null,null,null,null,0,0]
[null,null,null,null,null,null,null,null,null,null,null,null,null,null,null,null,null,null,null,null,null,0,0]
[null,null,null,null,null,null,null,null,null,null,null,null,null,null,null,null,null,null,null,null,null,0,0]
[null,null,null,null,null,null,null,null,null,null,null,null,null,null,null,null,null,null,null,null,null,0,0]
[null,null,null,null,null,null,null,null,null,null,null,null,null,null,null,null,null,null,null,null,null,0,0]
[null,null,null,null,null,null,null,null,null,null,null,null,null,null,null,null,null,null,null,null,null,0,0]
[null,null,null,null,null,null,null,null,null,null,null,null,null,null,null,null,null,null,null,null,null,0,0]
[null,null,null,null,null,null,null,null,null,null,null,null,null,null,null,null,null,null,null,null,null,0,0]
[null,null,null,null,null,null,null,null,null,null,null,null,null,null,null,null,null,null,null,null,null,0,0]
[null,null,null,null,null,null,null,null,null,null,null,null,null,null,null,null,null,null,null,null,null,0,0]
[null,null,null,null,null,null,null,null,null,null,null,null,null,null,null,null,null,null,null,null,null,0,0]
[null,null,null,null,null,null,null,null,null,null,null,null,null,null,null,null,null,null,null,null,null,0,0]
[null,null,null,null,null,null,null,null,null,null,null,null,null,null,null,null,null,null,null,null,null,0,0]
[null,null,null,null,null,null,null,null,null,null,null,null,null,null,null,null,null,null,null,null,null,{"$f":"D391+G391+J391+M391+P391+S391","v":0},{"$f":"E391+H391+K391+N391+Q391+T391","v":0}]
[null,null,null,null,null,null,null,null,null,null,null,null,null,null,null,null,null,null,null,null,null,0,0]
[null,null,null,null,null,null,null,null,null,null,null,null,null,null,null,null,null,null,null,null,null,0,0]
[null,null,null,null,null,null,null,null,null,null,null,null,null,null,null,null,null,null,null,null,null,0,0]
[null,null,null,null,null,null,null,null,null,null,null,null,null,null,null,null,null,null,null,null,null,0,0]
[null,null,null,null,null,null,null,null,null,null,null,null,null,null,null,null,null,null,null,null,null,0,0]
[null,null,null,null,null,null,null,null,null,null,null,null,null,null,null,null,null,null,null,null,null,0,0]
[null,null,null,null,null,null,null,null,null,null,null,null,null,null,null,null,null,null,null,null,null,0,0]
[null,null,null,null,null,null,null,null,null,null,null,null,null,null,null,null,null,null,null,null,null,0,0]
[null,null,null,null,null,null,null,null,null,null,null,null,null,null,null,null,null,null,null,null,null,0,0]
[null,null,null,null,null,null,null,null,null,null,null,null,null,null,null,null,null,null,null,null,null,0,0]
[null,null,null,null,null,null,null,null,null,null,null,null,null,null,null,null,null,null,null,null,null,0,0]
[null,null,null,null,null,null,null,null,null,null,null,null,null,null,null,null,null,null,null,null,null,0,0]
[null,null,null,null,null,null,null,null,null,null,null,null,null,null,null,null,null,null,null,null,null,0,0]
[null,null,null,null,null,null,null,null,null,null,null,null,null,null,null,null,null,null,null,null,null,0,0]
[null,null,null,null,null,null,null,null,null,null,null,null,null,null,null,null,null,null,null,null,null,0,0]
[null,null,null,null,null,null,null,null,null,null,null,null,null,null,null,null,null,null,null,null,null,0,0]
[null,null,null,null,null,null,null,null,null,null,null,null,null,null,null,null,null,null,null,null,null,0,0]
[null,null,null,null,null,null,null,null,null,null,null,null,null,null,null,null,null,null,null,null,null,0,0]
[null,null,null,null,null,null,null,null,null,null,null,null,null,null,null,null,null,null,null,null,null,0,0]
[null,null,null,null,null,null,null,null,null,null,null,null,null,null,null,null,null,null,null,null,null,0,0]
[null,null,null,null,null,null,null,null,null,null,null,null,null,null,null,null,null,null,null,null,null,0,0]
[null,null,null,null,null,null,null,null,null,null,null,null,null,null,null,null,null,null,null,null,null,0,0]
[null,null,null,null,null,null,null,null,null,null,null,null,null,null,null,null,null,null,null,null,null,0,0]
[null,null,null,null,null,null,null,null,null,null,null,null,null,null,null,null,null,null,null,null,null,0,0]
[null,null,null,null,null,null,null,null,null,null,null,null,null,null,null,null,null,null,null,null,null,0,0]
[null,null,null,null,null,null,null,null,null,null,null,null,null,null,null,null,null,null,null,null,null,0,0]
[null,null,null,null,null,null,null,null,null,null,null,null,null,null,null,null,null,null,null,null,null,0,0]
[null,null,null,null,null,null,null,null,null,null,null,null,null,null,null,null,null,null,null,null,null,0,0]
[null,null,null,null,null,null,null,null,null,null,null,null,null,null,null,null,null,null,null,null,null,0,0]
[null,null,null,null,null,null,null,null,null,null,null,null,null,null,null,null,null,null,null,null,null,0,0]
[null,null,null,null,null,null,null,null,null,null,null,null,null,null,null,null,null,null,null,null,null,0,0]
[null,null,null,null,null,null,null,null,null,null,null,null,null,null,null,null,null,null,null,null,null,0,0]
[null,null,null,null,null,null,null,null,null,null,null,null,null,null,null,null,null,null,null,null,null,0,0]
[null,null,null,null,null,null,null,null,null,null,null,null,null,null,null,null,null,null,null,null,null,0,0]
[null,null,null,null,null,null,null,null,null,null,null,null,null,null,null,null,null,null,null,null,null,0,0]
[null,null,null,null,null,null,null,null,null,null,null,null,null,null,null,null,null,null,null,null,null,0,0]
[null,null,null,null,null,null,null,null,null,null,null,null,null,null,null,null,null,null,null,null,null,0,0]
[null,null,null,null,null,null,null,null,null,null,null,null,null,null,null,null,null,null,null,null,null,0,0]
[null,null,null,null,null,null,null,null,null,null,null,null,null,null,null,null,null,null,null,null,null,0,0]
[null,null,null,null,null,null,null,null,null,null,null,null,null,null,null,null,null,null,null,null,null,0,0]
[null,null,null,null,null,null,null,null,null,null,null,null,null,null,null,null,null,null,null,null,null,0,0]
[null,null,null,null,null,null,null,null,null,null,null,null,null,null,null,null,null,null,null,null,null,0,0]
[null,null,null,null,null,null,null,null,null,null,null,null,null,null,null,null,null,null,null,null,null,0,0]
[null,null,null,null,null,null,null,null,null,null,null,null,null,null,null,null,null,null,null,null,null,0,0]
[null,null,null,null,null,null,null,null,null,null,null,null,null,null,null,null,null,null,null,null,null,0,0]
[null,null,null,null,null,null,null,null,null,null,null,null,null,null,null,null,null,null,null,null,null,0,0]
[null,null,null,null,null,null,null,null,null,null,null,null,null,null,null,null,null,null,null,null,null,0,0]
[null,null,null,null,null,null,null,null,null,null,null,null,null,null,null,null,null,null,null,null,null,0,0]
[null,null,null,null,null,null,null,null,null,null,null,null,null,null,null,null,null,null,null,null,null,0,0]
[null,null,null,null,null,null,null,null,null,null,null,null,null,null,null,null,null,null,null,null,null,0,0]
[null,null,null,null,null,null,null,null,null,null,null,null,null,null,null,null,null,null,null,null,null,0,0]
[null,null,null,null,null,null,null,null,null,null,null,null,null,null,null,null,null,null,null,null,null,0,0]
[null,null,null,null,null,null,null,null,null,null,null,null,null,null,null,null,null,null,null,null,null,0,0]
[null,null,null,null,null,null,null,null,null,null,null,null,null,null,null,null,null,null,null,null,null,0,0]
[null,null,null,null,null,null,null,null,null,null,null,null,null,null,null,null,null,null,null,null,null,0,0]
[null,null,null,null,null,null,null,null,null,null,null,null,null,null,null,null,null,null,null,null,null,0,0]
[null,null,null,null,null,null,null,null,null,null,null,null,null,null,null,null,null,null,null,null,null,0,0]
[null,null,null,null,null,null,null,null,null,null,null,null,null,null,null,null,null,null,null,null,null,0,0]
[null,null,null,null,null,null,null,null,null,null,null,null,null,null,null,null,null,null,null,null,null,0,0]
[null,null,null,null,null,null,null,null,null,null,null,null,null,null,null,null,null,null,null,null,null,0,0]
[null,null,null,null,null,null,null,null,null,null,null,null,null,null,null,null,null,null,null,null,null,0,0]
[null,null,null,null,null,null,null,null,null,null,null,null,null,null,null,null,null,null,null,null,null,0,0]
[null,null,null,null,null,null,null,null,null,null,null,null,null,null,null,null,null,null,null,null,null,0,0]
[null,null,null,null,null,null,null,null,null,null,null,null,null,null,null,null,null,null,null,null,null,{"$f":"D455+G455+J455+M455+P455+S455","v":0},{"$f":"E455+H455+K455+N455+Q455+T455","v":0}]
[null,null,null,null,null,null,null,null,null,null,null,null,null,null,null,null,null,null,null,null,null,0,0]
[null,null,null,null,null,null,null,null,null,null,null,null,null,null,null,null,null,null,null,null,null,0,0]
[null,null,null,null,null,null,null,null,null,null,null,null,null,null,null,null,null,null,null,null,null,0,0]
[null,null,null,null,null,null,null,null,null,null,null,null,null,null,null,null,null,null,null,null,null,0,0]
[null,null,null,null,null,null,null,null,null,null,null,null,null,null,null,null,null,null,null,null,null,0,0]
[null,null,null,null,null,null,null,null,null,null,null,null,null,null,null,null,null,null,null,null,null,0,0]
[null,null,null,null,null,null,null,null,null,null,null,null,null,null,null,null,null,null,null,null,null,0,0]
[null,null,null,null,null,null,null,null,null,null,null,null,null,null,null,null,null,null,null,null,null,0,0]
[null,null,null,null,null,null,null,null,null,null,null,null,null,null,null,null,null,null,null,null,null,0,0]
[null,null,null,null,null,null,null,null,null,null,null,null,null,null,null,null,null,null,null,null,null,0,0]
[null,null,null,null,null,null,null,null,null,null,null,null,null,null,null,null,null,null,null,null,null,0,0]
[null,null,null,null,null,null,null,null,null,null,null,null,null,null,null,null,null,null,null,null,null,0,0]
[null,null,null,null,null,null,null,null,null,null,null,null,null,null,null,null,null,null,null,null,null,0,0]
[null,null,null,null,null,null,null,null,null,null,null,null,null,null,null,null,null,null,null,null,null,0,0]
[null,null,null,null,null,null,null,null,null,null,null,null,null,null,null,null,null,null,null,null,null,0,0]
[null,null,null,null,null,null,null,null,null,null,null,null,null,null,null,null,null,null,null,null,null,0,0]
[null,null,null,null,null,null,null,null,null,null,null,null,null,null,null,null,null,null,null,null,null,0,0]
[null,null,null,null,null,null,null,null,null,null,null,null,null,null,null,null,null,null,null,null,null,0,0]
[null,null,null,null,null,null,null,null,null,null,null,null,null,null,null,null,null,null,null,null,null,0,0]
[null,null,null,null,null,null,null,null,null,null,null,null,null,null,null,null,null,null,null,null,null,0,0]
[null,null,null,null,null,null,null,null,null,null,null,null,null,null,null,null,null,null,null,null,null,0,0]
[null,null,null,null,null,null,null,null,null,null,null,null,null,null,null,null,null,null,null,null,null,0,0]
[null,null,null,null,null,null,null,null,null,null,null,null,null,null,null,null,null,null,null,null,null,0,0]
[null,null,null,null,null,null,null,null,null,null,null,null,null,null,null,null,null,null,null,null,null,0,0]
[null,null,null,null,null,null,null,null,null,null,null,null,null,null,null,null,null,null,null,null,null,0,0]
[null,null,null,null,null,null,null,null,null,null,null,null,null,null,null,null,null,null,null,null,null,0,0]
[null,null,null,null,null,null,null,null,null,null,null,null,null,null,null,null,null,null,null,null,null,0,0]
[null,null,null,null,null,null,null,null,null,null,null,null,null,null,null,null,null,null,null,null,null,0,0]
[null,null,null,null,null,null,null,null,null,null,null,null,null,null,null,null,null,null,null,null,null,0,0]
[null,null,null,null,null,null,null,null,null,null,null,null,null,null,null,null,null,null,null,null,null,0,0]
[null,null,null,null,null,null,null,null,null,null,null,null,null,null,null,null,null,null,null,null,null,0,0]
[null,null,null,null,null,null,null,null,null,null,null,null,null,null,null,null,null,null,null,null,null,0,0]
[null,null,null,null,null,null,null,null,null,null,null,null,null,null,null,null,null,null,null,null,null,0,0]
[null,null,null,null,null,null,null,null,null,null,null,null,null,null,null,null,null,null,null,null,null,0,0]
[null,null,null,null,null,null,null,null,null,null,null,null,null,null,null,null,null,null,null,null,null,0,0]
[null,null,null,null,null,null,null,null,null,null,null,null,null,null,null,null,null,null,null,null,null,0,0]
[null,null,null,null,null,null,null,null,null,null,null,null,null,null,null,null,null,null,null,null,null,0,0]
[null,null,null,null,null,null,null,null,null,null,null,null,null,null,null,null,null,null,null,null,null,0,0]
[null,null,null,null,null,null,null,null,null,null,null,null,null,null,null,null,null,null,null,null,null,0,0]
[null,null,null,null,null,null,null,null,null,null,null,null,null,null,null,null,null,null,null,null,null,0,0]
[null,null,null,null,null,null,null,null,null,null,null,null,null,null,null,null,null,null,null,null,null,0,0]
[null,null,null,null,null,null,null,null,null,null,null,null,null,null,null,null,null,null,null,null,null,0,0]
[null,null,null,null,null,null,null,null,null,null,null,null,null,null,null,null,null,null,null,null,null,0,0]
[null,null,null,null,null,null,null,null,null,null,null,null,null,null,null,null,null,null,null,null,null,0,0]
[null,null,null,null,null,null,null,null,null,null,null,null,null,null,null,null,null,null,null,null,null,0,0]
[null,null,null,null,null,null,null,null,null,null,null,null,null,null,null,null,null,null,null,null,null,0,0]
[null,null,null,null,null,null,null,null,null,null,null,null,null,null,null,null,null,null,null,null,null,0,0]
[null,null,null,null,null,null,null,null,null,null,null,null,null,null,null,null,null,null,null,null,null,0,0]
[null,null,null,null,null,null,null,null,null,null,null,null,null,null,null,null,null,null,null,null,null,0,0]
[null,null,null,null,null,null,null,null,null,null,null,null,null,null,null,null,null,null,null,null,null,0,0]
[null,null,null,null,null,null,null,null,null,null,null,null,null,null,null,null,null,null,null,null,null,0,0]
[null,null,null,null,null,null,null,null,null,null,null,null,null,null,null,null,null,null,null,null,null,0,0]
[null,null,null,null,null,null,null,null,null,null,null,null,null,null,null,null,null,null,null,null,null,0,0]
[null,null,null,null,null,null,null,null,null,null,null,null,null,null,null,null,null,null,null,null,null,0,0]
[null,null,null,null,null,null,null,null,null,null,null,null,null,null,null,null,null,null,null,null,null,0,0]
[null,null,null,null,null,null,null,null,null,null,null,null,null,null,null,null,null,null,null,null,null,0,0]
[null,null,null,null,null,null,null,null,null,null,null,null,null,null,null,null,null,null,null,null,null,0,0]
[null,null,null,null,null,null,null,null,null,null,null,null,null,null,null,null,null,null,null,null,null,0,0]
[null,null,null,null,null,null,null,null,null,null,null,null,null,null,null,null,null,null,null,null,null,0,0]
[null,null,null,null,null,null,null,null,null,null,null,null,null,null,null,null,null,null,null,null,null,0,0]
[null,null,null,null,null,null,null,null,null,null,null,null,null,null,null,null,null,null,null,null,null,0,0]
[null,null,null,null,null,null,null,null,null,null,null,null,null,null,null,null,null,null,null,null,null,0,0]
[null,null,null,null,null,null,null,null,null,null,null,null,null,null,null,null,null,null,null,null,null,0,0]
[null,null,null,null,null,null,null,null,null,null,null,null,null,null,null,null,null,null,null,null,null,{"$f":"D519+G519+J519+M519+P519+S519","v":0},{"$f":"E519+H519+K519+N519+Q519+T519","v":0}]
[null,null,null,null,null,null,null,null,null,null,null,null,null,null,null,null,null,null,null,null,null,0,0]
[null,null,null,null,null,null,null,null,null,null,null,null,null,null,null,null,null,null,null,null,null,0,0]
[null,null,null,null,null,null,null,null,null,null,null,null,null,null,null,null,null,null,null,null,null,0,0]
[null,null,null,null,null,null,null,null,null,null,null,null,null,null,null,null,null,null,null,null,null,0,0]
[null,null,null,null,null,null,null,null,null,null,null,null,null,null,null,null,null,null,null,null,null,0,0]
[null,null,null,null,null,null,null,null,null,null,null,null,null,null,null,null,null,null,null,null,null,0,0]
[null,null,null,null,null,null,null,null,null,null,null,null,null,null,null,null,null,null,null,null,null,0,0]
[null,null,null,null,null,null,null,null,null,null,null,null,null,null,null,null,null,null,null,null,null,0,0]
[null,null,null,null,null,null,null,null,null,null,null,null,null,null,null,null,null,null,null,null,null,0,0]
[null,null,null,null,null,null,null,null,null,null,null,null,null,null,null,null,null,null,null,null,null,0,0]
[null,null,null,null,null,null,null,null,null,null,null,null,null,null,null,null,null,null,null,null,null,0,0]
[null,null,null,null,null,null,null,null,null,null,null,null,null,null,null,null,null,null,null,null,null,0,0]
[null,null,null,null,null,null,null,null,null,null,null,null,null,null,null,null,null,null,null,null,null,0,0]
[null,null,null,null,null,null,null,null,null,null,null,null,null,null,null,null,null,null,null,null,null,0,0]
[null,null,null,null,null,null,null,null,null,null,null,null,null,null,null,null,null,null,null,null,null,0,0]
[null,null,null,null,null,null,null,null,null,null,null,null,null,null,null,null,null,null,null,null,null,0,0]
[null,null,null,null,null,null,null,null,null,null,null,null,null,null,null,null,null,null,null,null,null,0,0]
[null,null,null,null,null,null,null,null,null,null,null,null,null,null,null,null,null,null,null,null,null,0,0]
[null,null,null,null,null,null,null,null,null,null,null,null,null,null,null,null,null,null,null,null,null,0,0]
[null,null,null,null,null,null,null,null,null,null,null,null,null,null,null,null,null,null,null,null,null,0,0]
[null,null,null,null,null,null,null,null,null,null,null,null,null,null,null,null,null,null,null,null,null,0,0]
[null,null,null,null,null,null,null,null,null,null,null,null,null,null,null,null,null,null,null,null,null,0,0]
[null,null,null,null,null,null,null,null,null,null,null,null,null,null,null,null,null,null,null,null,null,0,0]
[null,null,null,null,null,null,null,null,null,null,null,null,null,null,null,null,null,null,null,null,null,0,0]
[null,null,null,null,null,null,null,null,null,null,null,null,null,null,null,null,null,null,null,null,null,0,0]
[null,null,null,null,null,null,null,null,null,null,null,null,null,null,null,null,null,null,null,null,null,0,0]
[null,null,null,null,null,null,null,null,null,null,null,null,null,null,null,null,null,null,null,null,null,0,0]
[null,null,null,null,null,null,null,null,null,null,null,null,null,null,null,null,null,null,null,null,null,0,0]
[null,null,null,null,null,null,null,null,null,null,null,null,null,null,null,null,null,null,null,null,null,0,0]
[null,null,null,null,null,null,null,null,null,null,null,null,null,null,null,null,null,null,null,null,null,0,0]
[null,null,null,null,null,null,null,null,null,null,null,null,null,null,null,null,null,null,null,null,null,0,0]
[null,null,null,null,null,null,null,null,null,null,null,null,null,null,null,null,null,null,null,null,null,0,0]
[null,null,null,null,null,null,null,null,null,null,null,null,null,null,null,null,null,null,null,null,null,0,0]
[null,null,null,null,null,null,null,null,null,null,null,null,null,null,null,null,null,null,null,null,null,0,0]
[null,null,null,null,null,null,null,null,null,null,null,null,null,null,null,null,null,null,null,null,null,0,0]
[null,null,null,null,null,null,null,null,null,null,null,null,null,null,null,null,null,null,null,null,null,0,0]
[null,null,null,null,null,null,null,null,null,null,null,null,null,null,null,null,null,null,null,null,null,0,0]
[null,null,null,null,null,null,null,null,null,null,null,null,null,null,null,null,null,null,null,null,null,0,0]
[null,null,null,null,null,null,null,null,null,null,null,null,null,null,null,null,null,null,null,null,null,0,0]
[null,null,null,null,null,null,null,null,null,null,null,null,null,null,null,null,null,null,null,null,null,0,0]
[null,null,null,null,null,null,null,null,null,null,null,null,null,null,null,null,null,null,null,null,null,0,0]
[null,null,null,null,null,null,null,null,null,null,null,null,null,null,null,null,null,null,null,null,null,0,0]
[null,null,null,null,null,null,null,null,null,null,null,null,null,null,null,null,null,null,null,null,null,0,0]
[null,null,null,null,null,null,null,null,null,null,null,null,null,null,null,null,null,null,null,null,null,0,0]
[null,null,null,null,null,null,null,null,null,null,null,null,null,null,null,null,null,null,null,null,null,0,0]
[null,null,null,null,null,null,null,null,null,null,null,null,null,null,null,null,null,null,null,null,null,0,0]
[null,null,null,null,null,null,null,null,null,null,null,null,null,null,null,null,null,null,null,null,null,0,0]
[null,null,null,null,null,null,null,null,null,null,null,null,null,null,null,null,null,null,null,null,null,0,0]
[null,null,null,null,null,null,null,null,null,null,null,null,null,null,null,null,null,null,null,null,null,0,0]
[null,null,null,null,null,null,null,null,null,null,null,null,null,null,null,null,null,null,null,null,null,0,0]
[null,null,null,null,null,null,null,null,null,null,null,null,null,null,null,null,null,null,null,null,null,0,0]
[null,null,null,null,null,null,null,null,null,null,null,null,null,null,null,null,null,null,null,null,null,0,0]
[null,null,null,null,null,null,null,null,null,null,null,null,null,null,null,null,null,null,null,null,null,0,0]
[null,null,null,null,null,null,null,null,null,null,null,null,null,null,null,null,null,null,null,null,null,0,0]
[null,null,null,null,null,null,null,null,null,null,null,null,null,null,null,null,null,null,null,null,null,0,0]
[null,null,null,null,null,null,null,null,null,null,null,null,null,null,null,null,null,null,null,null,null,0,0]
[null,null,null,null,null,null,null,null,null,null,null,null,null,null,null,null,null,null,null,null,null,0,0]
[null,null,null,null,null,null,null,null,null,null,null,null,null,null,null,null,null,null,null,null,null,0,0]
[null,null,null,null,null,null,null,null,null,null,null,null,null,null,null,null,null,null,null,null,null,0,0]
[null,null,null,null,null,null,null,null,null,null,null,null,null,null,null,null,null,null,null,null,null,0,0]
[null,null,null,null,null,null,null,null,null,null,null,null,null,null,null,null,null,null,null,null,null,0,0]
[null,null,null,null,null,null,null,null,null,null,null,null,null,null,null,null,null,null,null,null,null,0,0]
[null,null,null,null,null,null,null,null,null,null,null,null,null,null,null,null,null,null,null,null,null,0,0]
[null,null,null,null,null,null,null,null,null,null,null,null,null,null,null,null,null,null,null,null,null,{"$f":"D583+G583+J583+M583+P583+S583","v":0},{"$f":"E583+H583+K583+N583+Q583+T583","v":0}]
[null,null,null,null,null,null,null,null,null,null,null,null,null,null,null,null,null,null,null,null,null,0,0]
[null,null,null,null,null,null,null,null,null,null,null,null,null,null,null,null,null,null,null,null,null,0,0]
[null,null,null,null,null,null,null,null,null,null,null,null,null,null,null,null,null,null,null,null,null,0,0]
[null,null,null,null,null,null,null,null,null,null,null,null,null,null,null,null,null,null,null,null,null,0,0]
[null,null,null,null,null,null,null,null,null,null,null,null,null,null,null,null,null,null,null,null,null,0,0]
[null,null,null,null,null,null,null,null,null,null,null,null,null,null,null,null,null,null,null,null,null,0,0]
[null,null,null,null,null,null,null,null,null,null,null,null,null,null,null,null,null,null,null,null,null,0,0]
[null,null,null,null,null,null,null,null,null,null,null,null,null,null,null,null,null,null,null,null,null,0,0]
[null,null,null,null,null,null,null,null,null,null,null,null,null,null,null,null,null,null,null,null,null,0,0]
[null,null,null,null,null,null,null,null,null,null,null,null,null,null,null,null,null,null,null,null,null,0,0]
[null,null,null,null,null,null,null,null,null,null,null,null,null,null,null,null,null,null,null,null,null,0,0]
[null,null,null,null,null,null,null,null,null,null,null,null,null,null,null,null,null,null,null,null,null,0,0]
[null,null,null,null,null,null,null,null,null,null,null,null,null,null,null,null,null,null,null,null,null,0,0]
[null,null,null,null,null,null,null,null,null,null,null,null,null,null,null,null,null,null,null,null,null,0,0]
[null,null,null,null,null,null,null,null,null,null,null,null,null,null,null,null,null,null,null,null,null,0,0]
[null,null,null,null,null,null,null,null,null,null,null,null,null,null,null,null,null,null,null,null,null,0,0]
[null,null,null,null,null,null,null,null,null,null,null,null,null,null,null,null,null,null,null,null,null,0,0]
[null,null,null,null,null,null,null,null,null,null,null,null,null,null,null,null,null,null,null,null,null,0,0]
[null,null,null,null,null,null,null,null,null,null,null,null,null,null,null,null,null,null,null,null,null,0,0]
[null,null,null,null,null,null,null,null,null,null,null,null,null,null,null,null,null,null,null,null,null,0,0]
[null,null,null,null,null,null,null,null,null,null,null,null,null,null,null,null,null,null,null,null,null,0,0]
[null,null,null,null,null,null,null,null,null,null,null,null,null,null,null,null,null,null,null,null,null,0,0]
[null,null,null,null,null,null,null,null,null,null,null,null,null,null,null,null,null,null,null,null,null,0,0]
[null,null,null,null,null,null,null,null,null,null,null,null,null,null,null,null,null,null,null,null,null,0,0]
[null,null,null,null,null,null,null,null,null,null,null,null,null,null,null,null,null,null,null,null,null,0,0]
[null,null,null,null,null,null,null,null,null,null,null,null,null,null,null,null,null,null,null,null,null,0,0]
[null,null,null,null,null,null,null,null,null,null,null,null,null,null,null,null,null,null,null,null,null,0,0]
[null,null,null,null,null,null,null,null,null,null,null,null,null,null,null,null,null,null,null,null,null,0,0]
[null,null,null,null,null,null,null,null,null,null,null,null,null,null,null,null,null,null,null,null,null,0,0]
[null,null,null,null,null,null,null,null,null,null,null,null,null,null,null,null,null,null,null,null,null,0,0]
[null,null,null,null,null,null,null,null,null,null,null,null,null,null,null,null,null,null,null,null,null,0,0]
[null,null,null,null,null,null,null,null,null,null,null,null,null,null,null,null,null,null,null,null,null,0,0]
[null,null,null,null,null,null,null,null,null,null,null,null,null,null,null,null,null,null,null,null,null,0,0]
[null,null,null,null,null,null,null,null,null,null,null,null,null,null,null,null,null,null,null,null,null,0,0]
[null,null,null,null,null,null,null,null,null,null,null,null,null,null,null,null,null,null,null,null,null,0,0]
[null,null,null,null,null,null,null,null,null,null,null,null,null,null,null,null,null,null,null,null,null,0,0]
[null,null,null,null,null,null,null,null,null,null,null,null,null,null,null,null,null,null,null,null,null,0,0]
[null,null,null,null,null,null,null,null,null,null,null,null,null,null,null,null,null,null,null,null,null,0,0]
[null,null,null,null,null,null,null,null,null,null,null,null,null,null,null,null,null,null,null,null,null,0,0]
[null,null,null,null,null,null,null,null,null,null,null,null,null,null,null,null,null,null,null,null,null,0,0]
[null,null,null,null,null,null,null,null,null,null,null,null,null,null,null,null,null,null,null,null,null,0,0]
[null,null,null,null,null,null,null,null,null,null,null,null,null,null,null,null,null,null,null,null,null,0,0]
[null,null,null,null,null,null,null,null,null,null,null,null,null,null,null,null,null,null,null,null,null,0,0]
[null,null,null,null,null,null,null,null,null,null,null,null,null,null,null,null,null,null,null,null,null,0,0]
[null,null,null,null,null,null,null,null,null,null,null,null,null,null,null,null,null,null,null,null,null,0,0]
[null,null,null,null,null,null,null,null,null,null,null,null,null,null,null,null,null,null,null,null,null,0,0]
[null,null,null,null,null,null,null,null,null,null,null,null,null,null,null,null,null,null,null,null,null,0,0]
[null,null,null,null,null,null,null,null,null,null,null,null,null,null,null,null,null,null,null,null,null,0,0]
[null,null,null,null,null,null,null,null,null,null,null,null,null,null,null,null,null,null,null,null,null,0,0]
[null,null,null,null,null,null,null,null,null,null,null,null,null,null,null,null,null,null,null,null,null,0,0]
[null,null,null,null,null,null,null,null,null,null,null,null,null,null,null,null,null,null,null,null,null,0,0]
[null,null,null,null,null,null,null,null,null,null,null,null,null,null,null,null,null,null,null,null,null,0,0]
[null,null,null,null,null,null,null,null,null,null,null,null,null,null,null,null,null,null,null,null,null,0,0]
[null,null,null,null,null,null,null,null,null,null,null,null,null,null,null,null,null,null,null,null,null,0,0]
[null,null,null,null,null,null,null,null,null,null,null,null,null,null,null,null,null,null,null,null,null,0,0]
[null,null,null,null,null,null,null,null,null,null,null,null,null,null,null,null,null,null,null,null,null,0,0]
[null,null,null,null,null,null,null,null,null,null,null,null,null,null,null,null,null,null,null,null,null,0,0]
[null,null,null,null,null,null,null,null,null,null,null,null,null,null,null,null,null,null,null,null,null,0,0]
[null,null,null,null,null,null,null,null,null,null,null,null,null,null,null,null,null,null,null,null,null,0,0]
[null,null,null,null,null,null,null,null,null,null,null,null,null,null,null,null,null,null,null,null,null,0,0]
[null,null,null,null,null,null,null,null,null,null,null,null,null,null,null,null,null,null,null,null,null,0,0]
[null,null,null,null,null,null,null,null,null,null,null,null,null,null,null,null,null,null,null,null,null,0,0]
[null,null,null,null,null,null,null,null,null,null,null,null,null,null,null,null,null,null,null,null,null,0,0]
[null,null,null,null,null,null,null,null,null,null,null,null,null,null,null,null,null,null,null,null,null,{"$f":"D647+G647+J647+M647+P647+S647","v":0},{"$f":"E647+H647+K647+N647+Q647+T647","v":0}]
[null,null,null,null,null,null,null,null,null,null,null,null,null,null,null,null,null,null,null,null,null,0,0]
[null,null,null,null,null,null,null,null,null,null,null,null,null,null,null,null,null,null,null,null,null,0,0]
[null,null,null,null,null,null,null,null,null,null,null,null,null,null,null,null,null,null,null,null,null,0,0]
[null,null,null,null,null,null,null,null,null,null,null,null,null,null,null,null,null,null,null,null,null,0,0]
[null,null,null,null,null,null,null,null,null,null,null,null,null,null,null,null,null,null,null,null,null,0,0]
[null,null,null,null,null,null,null,null,null,null,null,null,null,null,null,null,null,null,null,null,null,0,0]
[null,null,null,null,null,null,null,null,null,null,null,null,null,null,null,null,null,null,null,null,null,0,0]
[null,null,null,null,null,null,null,null,null,null,null,null,null,null,null,null,null,null,null,null,null,0,0]
[null,null,null,null,null,null,null,null,null,null,null,null,null,null,null,null,null,null,null,null,null,0,0]
[null,null,null,null,null,null,null,null,null,null,null,null,null,null,null,null,null,null,null,null,null,0,0]
[null,null,null,null,null,null,null,null,null,null,null,null,null,null,null,null,null,null,null,null,null,0,0]
[null,null,null,null,null,null,null,null,null,null,null,null,null,null,null,null,null,null,null,null,null,0,0]
[null,null,null,null,null,null,null,null,null,null,null,null,null,null,null,null,null,null,null,null,null,0,0]
[null,null,null,null,null,null,null,null,null,null,null,null,null,null,null,null,null,null,null,null,null,0,0]
[null,null,null,null,null,null,null,null,null,null,null,null,null,null,null,null,null,null,null,null,null,0,0]
[null,null,null,null,null,null,null,null,null,null,null,null,null,null,null,null,null,null,null,null,null,0,0]
[null,null,null,null,null,null,null,null,null,null,null,null,null,null,null,null,null,null,null,null,null,0,0]
[null,null,null,null,null,null,null,null,null,null,null,null,null,null,null,null,null,null,null,null,null,0,0]
[null,null,null,null,null,null,null,null,null,null,null,null,null,null,null,null,null,null,null,null,null,0,0]
[null,null,null,null,null,null,null,null,null,null,null,null,null,null,null,null,null,null,null,null,null,0,0]
[null,null,null,null,null,null,null,null,null,null,null,null,null,null,null,null,null,null,null,null,null,0,0]
[null,null,null,null,null,null,null,null,null,null,null,null,null,null,null,null,null,null,null,null,null,0,0]
[null,null,null,null,null,null,null,null,null,null,null,null,null,null,null,null,null,null,null,null,null,0,0]
[null,null,null,null,null,null,null,null,null,null,null,null,null,null,null,null,null,null,null,null,null,0,0]
[null,null,null,null,null,null,null,null,null,null,null,null,null,null,null,null,null,null,null,null,null,0,0]
[null,null,null,null,null,null,null,null,null,null,null,null,null,null,null,null,null,null,null,null,null,0,0]
[null,null,null,null,null,null,null,null,null,null,null,null,null,null,null,null,null,null,null,null,null,0,0]
[null,null,null,null,null,null,null,null,null,null,null,null,null,null,null,null,null,null,null,null,null,0,0]
[null,null,null,null,null,null,null,null,null,null,null,null,null,null,null,null,null,null,null,null,null,0,0]
[null,null,null,null,null,null,null,null,null,null,null,null,null,null,null,null,null,null,null,null,null,0,0]
[null,null,null,null,null,null,null,null,null,null,null,null,null,null,null,null,null,null,null,null,null,0,0]
[null,null,null,null,null,null,null,null,null,null,null,null,null,null,null,null,null,null,null,null,null,0,0]
[null,null,null,null,null,null,null,null,null,null,null,null,null,null,null,null,null,null,null,null,null,0,0]
[null,null,null,null,null,null,null,null,null,null,null,null,null,null,null,null,null,null,null,null,null,0,0]
[null,null,null,null,null,null,null,null,null,null,null,null,null,null,null,null,null,null,null,null,null,0,0]
[null,null,null,null,null,null,null,null,null,null,null,null,null,null,null,null,null,null,null,null,null,0,0]
[null,null,null,null,null,null,null,null,null,null,null,null,null,null,null,null,null,null,null,null,null,0,0]
[null,null,null,null,null,null,null,null,null,null,null,null,null,null,null,null,null,null,null,null,null,0,0]
[null,null,null,null,null,null,null,null,null,null,null,null,null,null,null,null,null,null,null,null,null,0,0]
[null,null,null,null,null,null,null,null,null,null,null,null,null,null,null,null,null,null,null,null,null,0,0]
[null,null,null,null,null,null,null,null,null,null,null,null,null,null,null,null,null,null,null,null,null,0,0]
[null,null,null,null,null,null,null,null,null,null,null,null,null,null,null,null,null,null,null,null,null,0,0]
[null,null,null,null,null,null,null,null,null,null,null,null,null,null,null,null,null,null,null,null,null,0,0]
[null,null,null,null,null,null,null,null,null,null,null,null,null,null,null,null,null,null,null,null,null,0,0]
[null,null,null,null,null,null,null,null,null,null,null,null,null,null,null,null,null,null,null,null,null,0,0]
[null,null,null,null,null,null,null,null,null,null,null,null,null,null,null,null,null,null,null,null,null,0,0]
[null,null,null,null,null,null,null,null,null,null,null,null,null,null,null,null,null,null,null,null,null,0,0]
[null,null,null,null,null,null,null,null,null,null,null,null,null,null,null,null,null,null,null,null,null,0,0]
[null,null,null,null,null,null,null,null,null,null,null,null,null,null,null,null,null,null,null,null,null,0,0]
[null,null,null,null,null,null,null,null,null,null,null,null,null,null,null,null,null,null,null,null,null,0,0]
[null,null,null,null,null,null,null,null,null,null,null,null,null,null,null,null,null,null,null,null,null,0,0]
[null,null,null,null,null,null,null,null,null,null,null,null,null,null,null,null,null,null,null,null,null,0,0]
[null,null,null,null,null,null,null,null,null,null,null,null,null,null,null,null,null,null,null,null,null,0,0]
[null,null,null,null,null,null,null,null,null,null,null,null,null,null,null,null,null,null,null,null,null,0,0]
[null,null,null,null,null,null,null,null,null,null,null,null,null,null,null,null,null,null,null,null,null,0,0]
[null,null,null,null,null,null,null,null,null,null,null,null,null,null,null,null,null,null,null,null,null,0,0]
[null,null,null,null,null,null,null,null,null,null,null,null,null,null,null,null,null,null,null,null,null,0,0]
[null,null,null,null,null,null,null,null,null,null,null,null,null,null,null,null,null,null,null,null,null,0,0]
[null,null,null,null,null,null,null,null,null,null,null,null,null,null,null,null,null,null,null,null,null,0,0]
[null,null,null,null,null,null,null,null,null,null,null,null,null,null,null,null,null,null,null,null,null,0,0]
[null,null,null,null,null,null,null,null,null,null,null,null,null,null,null,null,null,null,null,null,null,0,0]
[null,null,null,null,null,null,null,null,null,null,null,null,null,null,null,null,null,null,null,null,null,0,0]
[null,null,null,null,null,null,null,null,null,null,null,null,null,null,null,null,null,null,null,null,null,0,0]
[null,null,null,null,null,null,null,null,null,null,null,null,null,null,null,null,null,null,null,null,null,{"$f":"D711+G711+J711+M711+P711+S711","v":0},{"$f":"E711+H711+K711+N711+Q711+T711","v":0}]
[null,null,null,null,null,null,null,null,null,null,null,null,null,null,null,null,null,null,null,null,null,0,0]
[null,null,null,null,null,null,null,null,null,null,null,null,null,null,null,null,null,null,null,null,null,0,0]
[null,null,null,null,null,null,null,null,null,null,null,null,null,null,null,null,null,null,null,null,null,0,0]
[null,null,null,null,null,null,null,null,null,null,null,null,null,null,null,null,null,null,null,null,null,0,0]
[null,null,null,null,null,null,null,null,null,null,null,null,null,null,null,null,null,null,null,null,null,0,0]
[null,null,null,null,null,null,null,null,null,null,null,null,null,null,null,null,null,null,null,null,null,0,0]
[null,null,null,null,null,null,null,null,null,null,null,null,null,null,null,null,null,null,null,null,null,0,0]
[null,null,null,null,null,null,null,null,null,null,null,null,null,null,null,null,null,null,null,null,null,0,0]
[null,null,null,null,null,null,null,null,null,null,null,null,null,null,null,null,null,null,null,null,null,0,0]
[null,null,null,null,null,null,null,null,null,null,null,null,null,null,null,null,null,null,null,null,null,0,0]
[null,null,null,null,null,null,null,null,null,null,null,null,null,null,null,null,null,null,null,null,null,0,0]
[null,null,null,null,null,null,null,null,null,null,null,null,null,null,null,null,null,null,null,null,null,0,0]
[null,null,null,null,null,null,null,null,null,null,null,null,null,null,null,null,null,null,null,null,null,0,0]
[null,null,null,null,null,null,null,null,null,null,null,null,null,null,null,null,null,null,null,null,null,0,0]
[null,null,null,null,null,null,null,null,null,null,null,null,null,null,null,null,null,null,null,null,null,0,0]
[null,null,null,null,null,null,null,null,null,null,null,null,null,null,null,null,null,null,null,null,null,0,0]
[null,null,null,null,null,null,null,null,null,null,null,null,null,null,null,null,null,null,null,null,null,0,0]
[null,null,null,null,null,null,null,null,null,null,null,null,null,null,null,null,null,null,null,null,null,0,0]
[null,null,null,null,null,null,null,null,null,null,null,null,null,null,null,null,null,null,null,null,null,0,0]
[null,null,null,null,null,null,null,null,null,null,null,null,null,null,null,null,null,null,null,null,null,0,0]
[null,null,null,null,null,null,null,null,null,null,null,null,null,null,null,null,null,null,null,null,null,0,0]
[null,null,null,null,null,null,null,null,null,null,null,null,null,null,null,null,null,null,null,null,null,0,0]
[null,null,null,null,null,null,null,null,null,null,null,null,null,null,null,null,null,null,null,null,null,0,0]
[null,null,null,null,null,null,null,null,null,null,null,null,null,null,null,null,null,null,null,null,null,0,0]
[null,null,null,null,null,null,null,null,null,null,null,null,null,null,null,null,null,null,null,null,null,0,0]
[null,null,null,null,null,null,null,null,null,null,null,null,null,null,null,null,null,null,null,null,null,0,0]
[null,null,null,null,null,null,null,null,null,null,null,null,null,null,null,null,null,null,null,null,null,0,0]
[null,null,null,null,null,null,null,null,null,null,null,null,null,null,null,null,null,null,null,null,null,0,0]
[null,null,null,null,null,null,null,null,null,null,null,null,null,null,null,null,null,null,null,null,null,0,0]
[null,null,null,null,null,null,null,null,null,null,null,null,null,null,null,null,null,null,null,null,null,0,0]
[null,null,null,null,null,null,null,null,null,null,null,null,null,null,null,null,null,null,null,null,null,0,0]
[null,null,null,null,null,null,null,null,null,null,null,null,null,null,null,null,null,null,null,null,null,0,0]
[null,null,null,null,null,null,null,null,null,null,null,null,null,null,null,null,null,null,null,null,null,0,0]
[null,null,null,null,null,null,null,null,null,null,null,null,null,null,null,null,null,null,null,null,null,0,0]
[null,null,null,null,null,null,null,null,null,null,null,null,null,null,null,null,null,null,null,null,null,0,0]
[null,null,null,null,null,null,null,null,null,null,null,null,null,null,null,null,null,null,null,null,null,0,0]
[null,null,null,null,null,null,null,null,null,null,null,null,null,null,null,null,null,null,null,null,null,0,0]
[null,null,null,null,null,null,null,null,null,null,null,null,null,null,null,null,null,null,null,null,null,0,0]
[null,null,null,null,null,null,null,null,null,null,null,null,null,null,null,null,null,null,null,null,null,0,0]
[null,null,null,null,null,null,null,null,null,null,null,null,null,null,null,null,null,null,null,null,null,0,0]
[null,null,null,null,null,null,null,null,null,null,null,null,null,null,null,null,null,null,null,null,null,0,0]
[null,null,null,null,null,null,null,null,null,null,null,null,null,null,null,null,null,null,null,null,null,0,0]
[null,null,null,null,null,null,null,null,null,null,null,null,null,null,null,null,null,null,null,null,null,0,0]
[null,null,null,null,null,null,null,null,null,null,null,null,null,null,null,null,null,null,null,null,null,0,0]
[null,null,null,null,null,null,null,null,null,null,null,null,null,null,null,null,null,null,null,null,null,0,0]
[null,null,null,null,null,null,null,null,null,null,null,null,null,null,null,null,null,null,null,null,null,0,0]
[null,null,null,null,null,null,null,null,null,null,null,null,null,null,null,null,null,null,null,null,null,0,0]
[null,null,null,null,null,null,null,null,null,null,null,null,null,null,null,null,null,null,null,null,null,0,0]
[null,null,null,null,null,null,null,null,null,null,null,null,null,null,null,null,null,null,null,null,null,0,0]
[null,null,null,null,null,null,null,null,null,null,null,null,null,null,null,null,null,null,null,null,null,0,0]
[null,null,null,null,null,null,null,null,null,null,null,null,null,null,null,null,null,null,null,null,null,0,0]
[null,null,null,null,null,null,null,null,null,null,null,null,null,null,null,null,null,null,null,null,null,0,0]
[null,null,null,null,null,null,null,null,null,null,null,null,null,null,null,null,null,null,null,null,null,0,0]
[null,null,null,null,null,null,null,null,null,null,null,null,null,null,null,null,null,null,null,null,null,0,0]
[null,null,null,null,null,null,null,null,null,null,null,null,null,null,null,null,null,null,null,null,null,0,0]
[null,null,null,null,null,null,null,null,null,null,null,null,null,null,null,null,null,null,null,null,null,0,0]
[null,null,null,null,null,null,null,null,null,null,null,null,null,null,null,null,null,null,null,null,null,0,0]
[null,null,null,null,null,null,null,null,null,null,null,null,null,null,null,null,null,null,null,null,null,0,0]
[null,null,null,null,null,null,null,null,null,null,null,null,null,null,null,null,null,null,null,null,null,0,0]
[null,null,null,null,null,null,null,null,null,null,null,null,null,null,null,null,null,null,null,null,null,0,0]
[null,null,null,null,null,null,null,null,null,null,null,null,null,null,null,null,null,null,null,null,null,0,0]
[null,null,null,null,null,null,null,null,null,null,null,null,null,null,null,null,null,null,null,null,null,0,0]
[null,null,null,null,null,null,null,null,null,null,null,null,null,null,null,null,null,null,null,null,null,0,0]
[null,null,null,null,null,null,null,null,null,null,null,null,null,null,null,null,null,null,null,null,null,{"$f":"D775+G775+J775+M775+P775+S775","v":0},{"$f":"E775+H775+K775+N775+Q775+T775","v":0}]
[null,null,null,null,null,null,null,null,null,null,null,null,null,null,null,null,null,null,null,null,null,0,0]
[null,null,null,null,null,null,null,null,null,null,null,null,null,null,null,null,null,null,null,null,null,0,0]
[null,null,null,null,null,null,null,null,null,null,null,null,null,null,null,null,null,null,null,null,null,0,0]
[null,null,null,null,null,null,null,null,null,null,null,null,null,null,null,null,null,null,null,null,null,0,0]
[null,null,null,null,null,null,null,null,null,null,null,null,null,null,null,null,null,null,null,null,null,0,0]
[null,null,null,null,null,null,null,null,null,null,null,null,null,null,null,null,null,null,null,null,null,0,0]
[null,null,null,null,null,null,null,null,null,null,null,null,null,null,null,null,null,null,null,null,null,0,0]
[null,null,null,null,null,null,null,null,null,null,null,null,null,null,null,null,null,null,null,null,null,0,0]
[null,null,null,null,null,null,null,null,null,null,null,null,null,null,null,null,null,null,null,null,null,0,0]
[null,null,null,null,null,null,null,null,null,null,null,null,null,null,null,null,null,null,null,null,null,0,0]
[null,null,null,null,null,null,null,null,null,null,null,null,null,null,null,null,null,null,null,null,null,0,0]
[null,null,null,null,null,null,null,null,null,null,null,null,null,null,null,null,null,null,null,null,null,0,0]
[null,null,null,null,null,null,null,null,null,null,null,null,null,null,null,null,null,null,null,null,null,0,0]
[null,null,null,null,null,null,null,null,null,null,null,null,null,null,null,null,null,null,null,null,null,0,0]
[null,null,null,null,null,null,null,null,null,null,null,null,null,null,null,null,null,null,null,null,null,0,0]
[null,null,null,null,null,null,null,null,null,null,null,null,null,null,null,null,null,null,null,null,null,0,0]
[null,null,null,null,null,null,null,null,null,null,null,null,null,null,null,null,null,null,null,null,null,0,0]
[null,null,null,null,null,null,null,null,null,null,null,null,null,null,null,null,null,null,null,null,null,0,0]
[null,null,null,null,null,null,null,null,null,null,null,null,null,null,null,null,null,null,null,null,null,0,0]
[null,null,null,null,null,null,null,null,null,null,null,null,null,null,null,null,null,null,null,null,null,0,0]
[null,null,null,null,null,null,null,null,null,null,null,null,null,null,null,null,null,null,null,null,null,0,0]
[null,null,null,null,null,null,null,null,null,null,null,null,null,null,null,null,null,null,null,null,null,0,0]
[null,null,null,null,null,null,null,null,null,null,null,null,null,null,null,null,null,null,null,null,null,0,0]
[null,null,null,null,null,null,null,null,null,null,null,null,null,null,null,null,null,null,null,null,null,0,0]
[null,null,null,null,null,null,null,null,null,null,null,null,null,null,null,null,null,null,null,null,null,0,0]
[null,null,null,null,null,null,null,null,null,null,null,null,null,null,null,null,null,null,null,null,null,0,0]
[null,null,null,null,null,null,null,null,null,null,null,null,null,null,null,null,null,null,null,null,null,0,0]
[null,null,null,null,null,null,null,null,null,null,null,null,null,null,null,null,null,null,null,null,null,0,0]
[null,null,null,null,null,null,null,null,null,null,null,null,null,null,null,null,null,null,null,null,null,0,0]
[null,null,null,null,null,null,null,null,null,null,null,null,null,null,null,null,null,null,null,null,null,0,0]
[null,null,null,null,null,null,null,null,null,null,null,null,null,null,null,null,null,null,null,null,null,0,0]
[null,null,null,null,null,null,null,null,null,null,null,null,null,null,null,null,null,null,null,null,null,0,0]
[null,null,null,null,null,null,null,null,null,null,null,null,null,null,null,null,null,null,null,null,null,0,0]
[null,null,null,null,null,null,null,null,null,null,null,null,null,null,null,null,null,null,null,null,null,0,0]
[null,null,null,null,null,null,null,null,null,null,null,null,null,null,null,null,null,null,null,null,null,0,0]
[null,null,null,null,null,null,null,null,null,null,null,null,null,null,null,null,null,null,null,null,null,0,0]
[null,null,null,null,null,null,null,null,null,null,null,null,null,null,null,null,null,null,null,null,null,0,0]
[null,null,null,null,null,null,null,null,null,null,null,null,null,null,null,null,null,null,null,null,null,0,0]
[null,null,null,null,null,null,null,null,null,null,null,null,null,null,null,null,null,null,null,null,null,0,0]
[null,null,null,null,null,null,null,null,null,null,null,null,null,null,null,null,null,null,null,null,null,0,0]
[null,null,null,null,null,null,null,null,null,null,null,null,null,null,null,null,null,null,null,null,null,0,0]
[null,null,null,null,null,null,null,null,null,null,null,null,null,null,null,null,null,null,null,null,null,0,0]
[null,null,null,null,null,null,null,null,null,null,null,null,null,null,null,null,null,null,null,null,null,0,0]
[null,null,null,null,null,null,null,null,null,null,null,null,null,null,null,null,null,null,null,null,null,0,0]
[null,null,null,null,null,null,null,null,null,null,null,null,null,null,null,null,null,null,null,null,null,0,0]
[null,null,null,null,null,null,null,null,null,null,null,null,null,null,null,null,null,null,null,null,null,0,0]
[null,null,null,null,null,null,null,null,null,null,null,null,null,null,null,null,null,null,null,null,null,0,0]
[null,null,null,null,null,null,null,null,null,null,null,null,null,null,null,null,null,null,null,null,null,0,0]
[null,null,null,null,null,null,null,null,null,null,null,null,null,null,null,null,null,null,null,null,null,0,0]
[null,null,null,null,null,null,null,null,null,null,null,null,null,null,null,null,null,null,null,null,null,0,0]
[null,null,null,null,null,null,null,null,null,null,null,null,null,null,null,null,null,null,null,null,null,0,0]
[null,null,null,null,null,null,null,null,null,null,null,null,null,null,null,null,null,null,null,null,null,0,0]
[null,null,null,null,null,null,null,null,null,null,null,null,null,null,null,null,null,null,null,null,null,0,0]
[null,null,null,null,null,null,null,null,null,null,null,null,null,null,null,null,null,null,null,null,null,0,0]
[null,null,null,null,null,null,null,null,null,null,null,null,null,null,null,null,null,null,null,null,null,0,0]
[null,null,null,null,null,null,null,null,null,null,null,null,null,null,null,null,null,null,null,null,null,0,0]
[null,null,null,null,null,null,null,null,null,null,null,null,null,null,null,null,null,null,null,null,null,0,0]
[null,null,null,null,null,null,null,null,null,null,null,null,null,null,null,null,null,null,null,null,null,0,0]
[null,null,null,null,null,null,null,null,null,null,null,null,null,null,null,null,null,null,null,null,null,0,0]
[null,null,null,null,null,null,null,null,null,null,null,null,null,null,null,null,null,null,null,null,null,0,0]
[null,null,null,null,null,null,null,null,null,null,null,null,null,null,null,null,null,null,null,null,null,0,0]
[null,null,null,null,null,null,null,null,null,null,null,null,null,null,null,null,null,null,null,null,null,0,0]
[null,null,null,null,null,null,null,null,null,null,null,null,null,null,null,null,null,null,null,null,null,0,0]
[null,null,null,null,null,null,null,null,null,null,null,null,null,null,null,null,null,null,null,null,null,{"$f":"D839+G839+J839+M839+P839+S839","v":0},{"$f":"E839+H839+K839+N839+Q839+T839","v":0}]
[null,null,null,null,null,null,null,null,null,null,null,null,null,null,null,null,null,null,null,null,null,0,0]
[null,null,null,null,null,null,null,null,null,null,null,null,null,null,null,null,null,null,null,null,null,0,0]
[null,null,null,null,null,null,null,null,null,null,null,null,null,null,null,null,null,null,null,null,null,0,0]
[null,null,null,null,null,null,null,null,null,null,null,null,null,null,null,null,null,null,null,null,null,0,0]
[null,null,null,null,null,null,null,null,null,null,null,null,null,null,null,null,null,null,null,null,null,0,0]
[null,null,null,null,null,null,null,null,null,null,null,null,null,null,null,null,null,null,null,null,null,0,0]
[null,null,null,null,null,null,null,null,null,null,null,null,null,null,null,null,null,null,null,null,null,0,0]
[null,null,null,null,null,null,null,null,null,null,null,null,null,null,null,null,null,null,null,null,null,0,0]
[null,null,null,null,null,null,null,null,null,null,null,null,null,null,null,null,null,null,null,null,null,0,0]
[null,null,null,null,null,null,null,null,null,null,null,null,null,null,null,null,null,null,null,null,null,0,0]
[null,null,null,null,null,null,null,null,null,null,null,null,null,null,null,null,null,null,null,null,null,0,0]
[null,null,null,null,null,null,null,null,null,null,null,null,null,null,null,null,null,null,null,null,null,0,0]
[null,null,null,null,null,null,null,null,null,null,null,null,null,null,null,null,null,null,null,null,null,0,0]
[null,null,null,null,null,null,null,null,null,null,null,null,null,null,null,null,null,null,null,null,null,0,0]
[null,null,null,null,null,null,null,null,null,null,null,null,null,null,null,null,null,null,null,null,null,0,0]
[null,null,null,null,null,null,null,null,null,null,null,null,null,null,null,null,null,null,null,null,null,0,0]
[null,null,null,null,null,null,null,null,null,null,null,null,null,null,null,null,null,null,null,null,null,0,0]
[null,null,null,null,null,null,null,null,null,null,null,null,null,null,null,null,null,null,null,null,null,0,0]
[null,null,null,null,null,null,null,null,null,null,null,null,null,null,null,null,null,null,null,null,null,0,0]
[null,null,null,null,null,null,null,null,null,null,null,null,null,null,null,null,null,null,null,null,null,0,0]
[null,null,null,null,null,null,null,null,null,null,null,null,null,null,null,null,null,null,null,null,null,0,0]
[null,null,null,null,null,null,null,null,null,null,null,null,null,null,null,null,null,null,null,null,null,0,0]
[null,null,null,null,null,null,null,null,null,null,null,null,null,null,null,null,null,null,null,null,null,0,0]
[null,null,null,null,null,null,null,null,null,null,null,null,null,null,null,null,null,null,null,null,null,0,0]
[null,null,null,null,null,null,null,null,null,null,null,null,null,null,null,null,null,null,null,null,null,0,0]
[null,null,null,null,null,null,null,null,null,null,null,null,null,null,null,null,null,null,null,null,null,0,0]
[null,null,null,null,null,null,null,null,null,null,null,null,null,null,null,null,null,null,null,null,null,0,0]
[null,null,null,null,null,null,null,null,null,null,null,null,null,null,null,null,null,null,null,null,null,0,0]
[null,null,null,null,null,null,null,null,null,null,null,null,null,null,null,null,null,null,null,null,null,0,0]
[null,null,null,null,null,null,null,null,null,null,null,null,null,null,null,null,null,null,null,null,null,0,0]
[null,null,null,null,null,null,null,null,null,null,null,null,null,null,null,null,null,null,null,null,null,0,0]
[null,null,null,null,null,null,null,null,null,null,null,null,null,null,null,null,null,null,null,null,null,0,0]
[null,null,null,null,null,null,null,null,null,null,null,null,null,null,null,null,null,null,null,null,null,0,0]
[null,null,null,null,null,null,null,null,null,null,null,null,null,null,null,null,null,null,null,null,null,0,0]
[null,null,null,null,null,null,null,null,null,null,null,null,null,null,null,null,null,null,null,null,null,0,0]
[null,null,null,null,null,null,null,null,null,null,null,null,null,null,null,null,null,null,null,null,null,0,0]
[null,null,null,null,null,null,null,null,null,null,null,null,null,null,null,null,null,null,null,null,null,0,0]
[null,null,null,null,null,null,null,null,null,null,null,null,null,null,null,null,null,null,null,null,null,0,0]
[null,null,null,null,null,null,null,null,null,null,null,null,null,null,null,null,null,null,null,null,null,0,0]
[null,null,null,null,null,null,null,null,null,null,null,null,null,null,null,null,null,null,null,null,null,0,0]
[null,null,null,null,null,null,null,null,null,null,null,null,null,null,null,null,null,null,null,null,null,0,0]
[null,null,null,null,null,null,null,null,null,null,null,null,null,null,null,null,null,null,null,null,null,0,0]
[null,null,null,null,null,null,null,null,null,null,null,null,null,null,null,null,null,null,null,null,null,0,0]
[null,null,null,null,null,null,null,null,null,null,null,null,null,null,null,null,null,null,null,null,null,0,0]
[null,null,null,null,null,null,null,null,null,null,null,null,null,null,null,null,null,null,null,null,null,0,0]
[null,null,null,null,null,null,null,null,null,null,null,null,null,null,null,null,null,null,null,null,null,0,0]
[null,null,null,null,null,null,null,null,null,null,null,null,null,null,null,null,null,null,null,null,null,0,0]
[null,null,null,null,null,null,null,null,null,null,null,null,null,null,null,null,null,null,null,null,null,0,0]
[null,null,null,null,null,null,null,null,null,null,null,null,null,null,null,null,null,null,null,null,null,0,0]
[null,null,null,null,null,null,null,null,null,null,null,null,null,null,null,null,null,null,null,null,null,0,0]
[null,null,null,null,null,null,null,null,null,null,null,null,null,null,null,null,null,null,null,null,null,0,0]
[null,null,null,null,null,null,null,null,null,null,null,null,null,null,null,null,null,null,null,null,null,0,0]
[null,null,null,null,null,null,null,null,null,null,null,null,null,null,null,null,null,null,null,null,null,0,0]
[null,null,null,null,null,null,null,null,null,null,null,null,null,null,null,null,null,null,null,null,null,0,0]
[null,null,null,null,null,null,null,null,null,null,null,null,null,null,null,null,null,null,null,null,null,0,0]
[null,null,null,null,null,null,null,null,null,null,null,null,null,null,null,null,null,null,null,null,null,0,0]
[null,null,null,null,null,null,null,null,null,null,null,null,null,null,null,null,null,null,null,null,null,0,0]
[null,null,null,null,null,null,null,null,null,null,null,null,null,null,null,null,null,null,null,null,null,0,0]
[null,null,null,null,null,null,null,null,null,null,null,null,null,null,null,null,null,null,null,null,null,0,0]
[null,null,null,null,null,null,null,null,null,null,null,null,null,null,null,null,null,null,null,null,null,0,0]
[null,null,null,null,null,null,null,null,null,null,null,null,null,null,null,null,null,null,null,null,null,0,0]
[null,null,null,null,null,null,null,null,null,null,null,null,null,null,null,null,null,null,null,null,null,0,0]
[null,null,null,null,null,null,null,null,null,null,null,null,null,null,null,null,null,null,null,null,null,0,0]
[null,null,null,null,null,null,null,null,null,null,null,null,null,null,null,null,null,null,null,null,null,{"$f":"D903+G903+J903+M903+P903+S903","v":0},{"$f":"E903+H903+K903+N903+Q903+T903","v":0}]
[null,null,null,null,null,null,null,null,null,null,null,null,null,null,null,null,null,null,null,null,null,0,0]
[null,null,null,null,null,null,null,null,null,null,null,null,null,null,null,null,null,null,null,null,null,0,0]
[null,null,null,null,null,null,null,null,null,null,null,null,null,null,null,null,null,null,null,null,null,0,0]
[null,null,null,null,null,null,null,null,null,null,null,null,null,null,null,null,null,null,null,null,null,0,0]
[null,null,null,null,null,null,null,null,null,null,null,null,null,null,null,null,null,null,null,null,null,0,0]
[null,null,null,null,null,null,null,null,null,null,null,null,null,null,null,null,null,null,null,null,null,0,0]
[null,null,null,null,null,null,null,null,null,null,null,null,null,null,null,null,null,null,null,null,null,0,0]
[null,null,null,null,null,null,null,null,null,null,null,null,null,null,null,null,null,null,null,null,null,0,0]
[null,null,null,null,null,null,null,null,null,null,null,null,null,null,null,null,null,null,null,null,null,0,0]
[null,null,null,null,null,null,null,null,null,null,null,null,null,null,null,null,null,null,null,null,null,0,0]
[null,null,null,null,null,null,null,null,null,null,null,null,null,null,null,null,null,null,null,null,null,0,0]
[null,null,null,null,null,null,null,null,null,null,null,null,null,null,null,null,null,null,null,null,null,0,0]
[null,null,null,null,null,null,null,null,null,null,null,null,null,null,null,null,null,null,null,null,null,0,0]
[null,null,null,null,null,null,null,null,null,null,null,null,null,null,null,null,null,null,null,null,null,0,0]
[null,null,null,null,null,null,null,null,null,null,null,null,null,null,null,null,null,null,null,null,null,0,0]
[null,null,null,null,null,null,null,null,null,null,null,null,null,null,null,null,null,null,null,null,null,0,0]
[null,null,null,null,null,null,null,null,null,null,null,null,null,null,null,null,null,null,null,null,null,0,0]
[null,null,null,null,null,null,null,null,null,null,null,null,null,null,null,null,null,null,null,null,null,0,0]
[null,null,null,null,null,null,null,null,null,null,null,null,null,null,null,null,null,null,null,null,null,0,0]
[null,null,null,null,null,null,null,null,null,null,null,null,null,null,null,null,null,null,null,null,null,0,0]
[null,null,null,null,null,null,null,null,null,null,null,null,null,null,null,null,null,null,null,null,null,0,0]
[null,null,null,null,null,null,null,null,null,null,null,null,null,null,null,null,null,null,null,null,null,0,0]
[null,null,null,null,null,null,null,null,null,null,null,null,null,null,null,null,null,null,null,null,null,0,0]
[null,null,null,null,null,null,null,null,null,null,null,null,null,null,null,null,null,null,null,null,null,0,0]
[null,null,null,null,null,null,null,null,null,null,null,null,null,null,null,null,null,null,null,null,null,0,0]
[null,null,null,null,null,null,null,null,null,null,null,null,null,null,null,null,null,null,null,null,null,0,0]
[null,null,null,null,null,null,null,null,null,null,null,null,null,null,null,null,null,null,null,null,null,0,0]
[null,null,null,null,null,null,null,null,null,null,null,null,null,null,null,null,null,null,null,null,null,0,0]
[null,null,null,null,null,null,null,null,null,null,null,null,null,null,null,null,null,null,null,null,null,0,0]
[null,null,null,null,null,null,null,null,null,null,null,null,null,null,null,null,null,null,null,null,null,0,0]
[null,null,null,null,null,null,null,null,null,null,null,null,null,null,null,null,null,null,null,null,null,0,0]
[null,null,null,null,null,null,null,null,null,null,null,null,null,null,null,null,null,null,null,null,null,0,0]
[null,null,null,null,null,null,null,null,null,null,null,null,null,null,null,null,null,null,null,null,null,0,0]
[null,null,null,null,null,null,null,null,null,null,null,null,null,null,null,null,null,null,null,null,null,0,0]
[null,null,null,null,null,null,null,null,null,null,null,null,null,null,null,null,null,null,null,null,null,0,0]
[null,null,null,null,null,null,null,null,null,null,null,null,null,null,null,null,null,null,null,null,null,0,0]
[null,null,null,null,null,null,null,null,null,null,null,null,null,null,null,null,null,null,null,null,null,0,0]
[null,null,null,null,null,null,null,null,null,null,null,null,null,null,null,null,null,null,null,null,null,0,0]
[null,null,null,null,null,null,null,null,null,null,null,null,null,null,null,null,null,null,null,null,null,0,0]
[null,null,null,null,null,null,null,null,null,null,null,null,null,null,null,null,null,null,null,null,null,0,0]
[null,null,null,null,null,null,null,null,null,null,null,null,null,null,null,null,null,null,null,null,null,0,0]
[null,null,null,null,null,null,null,null,null,null,null,null,null,null,null,null,null,null,null,null,null,0,0]
[null,null,null,null,null,null,null,null,null,null,null,null,null,null,null,null,null,null,null,null,null,0,0]
[null,null,null,null,null,null,null,null,null,null,null,null,null,null,null,null,null,null,null,null,null,0,0]
[null,null,null,null,null,null,null,null,null,null,null,null,null,null,null,null,null,null,null,null,null,0,0]
[null,null,null,null,null,null,null,null,null,null,null,null,null,null,null,null,null,null,null,null,null,0,0]
[null,null,null,null,null,null,null,null,null,null,null,null,null,null,null,null,null,null,null,null,null,0,0]
[null,null,null,null,null,null,null,null,null,null,null,null,null,null,null,null,null,null,null,null,null,0,0]
[null,null,null,null,null,null,null,null,null,null,null,null,null,null,null,null,null,null,null,null,null,0,0]
[null,null,null,null,null,null,null,null,null,null,null,null,null,null,null,null,null,null,null,null,null,0,0]
[null,null,null,null,null,null,null,null,null,null,null,null,null,null,null,null,null,null,null,null,null,0,0]
[null,null,null,null,null,null,null,null,null,null,null,null,null,null,null,null,null,null,null,null,null,0,0]
[null,null,null,null,null,null,null,null,null,null,null,null,null,null,null,null,null,null,null,null,null,0,0]
[null,null,null,null,null,null,null,null,null,null,null,null,null,null,null,null,null,null,null,null,null,0,0]
[null,null,null,null,null,null,null,null,null,null,null,null,null,null,null,null,null,null,null,null,null,0,0]
[null,null,null,null,null,null,null,null,null,null,null,null,null,null,null,null,null,null,null,null,null,0,0]
[null,null,null,null,null,null,null,null,null,null,null,null,null,null,null,null,null,null,null,null,null,0,0]
[null,null,null,null,null,null,null,null,null,null,null,null,null,null,null,null,null,null,null,null,null,0,0]
[null,null,null,null,null,null,null,null,null,null,null,null,null,null,null,null,null,null,null,null,null,0,0]
[null,null,null,null,null,null,null,null,null,null,null,null,null,null,null,null,null,null,null,null,null,0,0]
[null,null,null,null,null,null,null,null,null,null,null,null,null,null,null,null,null,null,null,null,null,0,0]
[null,null,null,null,null,null,null,null,null,null,null,null,null,null,null,null,null,null,null,null,null,0,0]
[null,null,null,null,null,null,null,null,null,null,null,null,null,null,null,null,null,null,null,null,null,0,0]
[null,null,null,null,null,null,null,null,null,null,null,null,null,null,null,null,null,null,null,null,null,{"$f":"D967+G967+J967+M967+P967+S967","v":0},{"$f":"E967+H967+K967+N967+Q967+T967","v":0}]
[null,null,null,null,null,null,null,null,null,null,null,null,null,null,null,null,null,null,null,null,null,0,0]
[null,null,null,null,null,null,null,null,null,null,null,null,null,null,null,null,null,null,null,null,null,0,0]
[null,null,null,null,null,null,null,null,null,null,null,null,null,null,null,null,null,null,null,null,null,0,0]
[null,null,null,null,null,null,null,null,null,null,null,null,null,null,null,null,null,null,null,null,null,0,0]
[null,null,null,null,null,null,null,null,null,null,null,null,null,null,null,null,null,null,null,null,null,0,0]
[null,null,null,null,null,null,null,null,null,null,null,null,null,null,null,null,null,null,null,null,null,0,0]
[null,null,null,null,null,null,null,null,null,null,null,null,null,null,null,null,null,null,null,null,null,0,0]
[null,null,null,null,null,null,null,null,null,null,null,null,null,null,null,null,null,null,null,null,null,0,0]
[null,null,null,null,null,null,null,null,null,null,null,null,null,null,null,null,null,null,null,null,null,0,0]
[null,null,null,null,null,null,null,null,null,null,null,null,null,null,null,null,null,null,null,null,null,0,0]
[null,null,null,null,null,null,null,null,null,null,null,null,null,null,null,null,null,null,null,null,null,0,0]
[null,null,null,null,null,null,null,null,null,null,null,null,null,null,null,null,null,null,null,null,null,0,0]
[null,null,null,null,null,null,null,null,null,null,null,null,null,null,null,null,null,null,null,null,null,0,0]
[null,null,null,null,null,null,null,null,null,null,null,null,null,null,null,null,null,null,null,null,null,0,0]
[null,null,null,null,null,null,null,null,null,null,null,null,null,null,null,null,null,null,null,null,null,0,0]
[null,null,null,null,null,null,null,null,null,null,null,null,null,null,null,null,null,null,null,null,null,0,0]
[null,null,null,null,null,null,null,null,null,null,null,null,null,null,null,null,null,null,null,null,null,0,0]
[null,null,null,null,null,null,null,null,null,null,null,null,null,null,null,null,null,null,null,null,null,0,0]
[null,null,null,null,null,null,null,null,null,null,null,null,null,null,null,null,null,null,null,null,null,0,0]
[null,null,null,null,null,null,null,null,null,null,null,null,null,null,null,null,null,null,null,null,null,0,0]
[null,null,null,null,null,null,null,null,null,null,null,null,null,null,null,null,null,null,null,null,null,0,0]
[null,null,null,null,null,null,null,null,null,null,null,null,null,null,null,null,null,null,null,null,null,0,0]
[null,null,null,null,null,null,null,null,null,null,null,null,null,null,null,null,null,null,null,null,null,0,0]
[null,null,null,null,null,null,null,null,null,null,null,null,null,null,null,null,null,null,null,null,null,0,0]
[null,null,null,null,null,null,null,null,null,null,null,null,null,null,null,null,null,null,null,null,null,0,0]
[null,null,null,null,null,null,null,null,null,null,null,null,null,null,null,null,null,null,null,null,null,0,0]
[null,null,null,null,null,null,null,null,null,null,null,null,null,null,null,null,null,null,null,null,null,0,0]
[null,null,null,null,null,null,null,null,null,null,null,null,null,null,null,null,null,null,null,null,null,0,0]
[null,null,null,null,null,null,null,null,null,null,null,null,null,null,null,null,null,null,null,null,null,0,0]
[null,null,null,null,null,null,null,null,null,null,null,null,null,null,null,null,null,null,null,null,null,0,0]
[null,null,null,null,null,null,null,null,null,null,null,null,null,null,null,null,null,null,null,null,null,0,0]
[null,null,null,null,null,null,null,null,null,null,null,null,null,null,null,null,null,null,null,null,null,0,0]
[null,null,null,null,null,null,null,null,null,null,null,null,null,null,null,null,null,null,null,null,null,0,0]

{"sheet":"Лист1","index":3,"n_rows":41,"n_cols":7,"rows_kept":41,"cut":false,"hidden":true,"merged":[[13,2,13,5],[0,0,1,6],[2,2,2,6],[4,2,4,6],[7,1,7,6],[9,1,9,6],[14,2,14,5],[16,1,17,1],[16,2,17,2],[16,3,17,3],[16,4,17,4],[16,5,16,6],[29,1,30,1],[29,5,30,6],[31,5,31,6],[32,1,32,2],[43,0,43,7]]}
["Приложение №1"]
[]
[null,"х","   1 звено"]
[]
[]
[]
["Наряд № ______от   _________  2021г."]
[]
[]
[]
[]
[]
[]
[null,"№","Наименование работ",null,null,null,"Расценка работ"]
[null,null,"Сборка ППЦ: Х8А "]
[]
[null,"№","ФИО","Должность","таб.№"]
[]
[null,1]
[null,2]
[null,3]
[null,4]
[null,5]
[null,6]
[null,7]
[null,8]
[null,9]
[]
[]
[]
[]
[]
[null,"Работа принята:   "]
[null,"                                                                                        ","Начальник цеха  : Исаев И.П.",null,"Подпись__________________",null,"Дата ____________"]
[null,"                                                                                        ","Мастер Димитриев А.В.",null,"Подпись__________________",null,"Дата ____________"]
[null,null,"Мастер Пушкин О.П. ",null,"Подпись__________________",null,"Дата ____________"]
[null,null,"Мастер Иванов Е.А.",null,"Подпись__________________",null,"Дата ____________"]
[null,null,"Мастер Федоров А.В.",null,"Подпись__________________",null,"Дата ____________"]
[null,null,"ОТК _______________________",null,"Подпись__________________",null,"Дата ____________"]
[null,null,"ПДО_Кондрашев Д.С.",null,"Подпись__________________",null,"Дата ____________"]
[null,null,"Начальник производства Атаманчук М.Е.",null,"Подпись__________________",null,"Дата ____________"]